BodyName,ServiceAreaCategorisation,ServiceDivisionCategorisation,ExpensesType,Date,TransactionNumber,Amount,CapitalorRevenue,SupplierName,MerchantCategory
Peterborough City Council,Children's & Safeguarding,Adult & Children Safeguarding Board,Services,01/02/2019,30201664,660.00,Revenue,Cambridgeshire County Council,Training
Peterborough City Council,Commissioning and Commercial Operations,Commissioning Team,Agency Staff,01/02/2019,30209393,14146.80,Revenue,Sanctuary Personnel Ltd,External Temporary Staff
Peterborough City Council,Children's & Safeguarding,Access to Resources & Specialist Commissioning,Services,01/02/2019,30209501,1519.28,Revenue,PCH Integration Services Ltd,Boarding Out Fees
Peterborough City Council,Children's & Safeguarding,Access to Resources & Specialist Commissioning,Services,01/02/2019,30209502,1519.28,Revenue,PCH Integration Services Ltd,Boarding Out Fees
Peterborough City Council,Children's & Safeguarding,Access to Resources & Specialist Commissioning,Services,01/02/2019,30209504,1519.28,Revenue,PCH Integration Services Ltd,Boarding Out Fees
Peterborough City Council,Children's & Safeguarding,Access to Resources & Specialist Commissioning,Services,01/02/2019,30209505,1519.28,Revenue,PCH Integration Services Ltd,Boarding Out Fees
Peterborough City Council,Children's & Safeguarding,Access to Resources & Specialist Commissioning,Services,01/02/2019,30209506,1519.28,Revenue,PCH Integration Services Ltd,Boarding Out Fees
Peterborough City Council,Children's & Safeguarding,Access to Resources & Specialist Commissioning,Services,01/02/2019,30209513,2002.28,Revenue,PCH Integration Services Ltd,Boarding Out Fees
Peterborough City Council,Children's & Safeguarding,Access to Resources & Specialist Commissioning,Services,01/02/2019,30209514,2002.28,Revenue,PCH Integration Services Ltd,Boarding Out Fees
Peterborough City Council,Children's & Safeguarding,Access to Resources & Specialist Commissioning,Services,01/02/2019,30209515,1519.28,Revenue,PCH Integration Services Ltd,Boarding Out Fees
Peterborough City Council,Children's & Safeguarding,Access to Resources & Specialist Commissioning,Services,01/02/2019,30209516,1519.28,Revenue,PCH Integration Services Ltd,Boarding Out Fees
Peterborough City Council,Children's & Safeguarding,Access to Resources & Specialist Commissioning,Services,01/02/2019,30209517,1519.28,Revenue,PCH Integration Services Ltd,Boarding Out Fees
Peterborough City Council,Children's & Safeguarding,Access to Resources & Specialist Commissioning,Services,01/02/2019,30209518,1519.28,Revenue,PCH Integration Services Ltd,Boarding Out Fees
Peterborough City Council,Children's & Safeguarding,Access to Resources & Specialist Commissioning,Services,01/02/2019,30209582,12856.14,Revenue,The Beeches UK Limited,Boarding Out Fees
Peterborough City Council,Children's & Safeguarding,Access to Resources & Specialist Commissioning,Services,01/02/2019,30209589,605.00,Revenue,Maze Independent Care Ltd,Boarding Out Fees
Peterborough City Council,Children's & Safeguarding,Access to Resources & Specialist Commissioning,Services,01/02/2019,30209834,5748.33,Revenue,I S P,Boarding Out Fees
Peterborough City Council,Children's & Safeguarding,Access to Resources & Specialist Commissioning,Services,01/02/2019,30209864,15966.46,Revenue,Ethelbert Childrens Services,Boarding Out Fees
Peterborough City Council,Children's & Safeguarding,Access to Resources & Specialist Commissioning,Services,01/02/2019,30209868,4681.00,Revenue,Ethelbert Childrens Services,Boarding Out Fees
Peterborough City Council,Children's & Safeguarding,Access to Resources & Specialist Commissioning,Services,01/02/2019,30209892,11292.99,Revenue,Acorn Homes UK Ltd,Boarding Out Fees
Peterborough City Council,Children's & Safeguarding,Access to Resources & Specialist Commissioning,Services,01/02/2019,30209978,13285.67,Revenue,Care and Management Services Limited,Boarding Out Fees
Peterborough City Council,Children's & Safeguarding,Access to Resources & Specialist Commissioning,Services,01/02/2019,30209991,5748.33,Revenue,I S P,Boarding Out Fees
Peterborough City Council,Children's & Safeguarding,Access to Resources & Specialist Commissioning,Services,01/02/2019,30209992,5748.33,Revenue,I S P,Boarding Out Fees
Peterborough City Council,Children's & Safeguarding,Access to Resources & Specialist Commissioning,Services,01/02/2019,30209993,5748.02,Revenue,Nexus Fostering Ltd,Boarding Out Fees
Peterborough City Council,Children's & Safeguarding,Access to Resources & Specialist Commissioning,Services,01/02/2019,30210030,3941.34,Revenue,Byrne House Ltd,Boarding Out Fees
Peterborough City Council,Children's & Safeguarding,Access to Resources & Specialist Commissioning,Services,01/02/2019,30210059,3588.25,Revenue,Fosterplus Ltd,Boarding Out Fees
Peterborough City Council,Children's & Safeguarding,Access to Resources & Specialist Commissioning,Services,01/02/2019,30210060,3827.88,Revenue,Fosterplus Ltd,Boarding Out Fees
Peterborough City Council,Westcombe Engineering,Westcombe Engineering,"Tools, Equipment, Furniture & Materials",01/02/2019,30210175,972.70,Revenue,AALCO,Materials
Peterborough City Council,Commissioning and Commercial Operations,Commissioning,Services,01/02/2019,30210178,5458.50,Revenue,Mind in Cambridgeshire Ltd,Hired Services
Peterborough City Council,Children's & Safeguarding,Access to Resources & Specialist Commissioning,Services,01/02/2019,30210180,840.00,Revenue,Florinee Homes Ltd,Boarding Out Fees
Peterborough City Council,Children's & Safeguarding,Access to Resources & Specialist Commissioning,Services,01/02/2019,30210182,1980.00,Revenue,Florinee Homes Ltd,Boarding Out Fees
Peterborough City Council,Children's & Safeguarding,Access to Resources & Specialist Commissioning,Services,01/02/2019,30210183,1980.00,Revenue,Florinee Homes Ltd,Boarding Out Fees
Peterborough City Council,Children's & Safeguarding,Access to Resources & Specialist Commissioning,Services,01/02/2019,30210185,2400.00,Revenue,Florinee Homes Ltd,Boarding Out Fees
Peterborough City Council,Children's & Safeguarding,Access to Resources & Specialist Commissioning,Services,01/02/2019,30210213,3816.10,Revenue,Nexus Fostering Ltd,Boarding Out Fees
Peterborough City Council,Children's & Safeguarding,Access to Resources & Specialist Commissioning,Services,01/02/2019,30210215,3816.10,Revenue,Nexus Fostering Ltd,Boarding Out Fees
Peterborough City Council,Children's & Safeguarding,Access to Resources & Specialist Commissioning,Services,01/02/2019,30210216,3816.10,Revenue,Nexus Fostering Ltd,Boarding Out Fees
Peterborough City Council,Children's & Safeguarding,Access to Resources & Specialist Commissioning,Services,01/02/2019,30210218,3816.10,Revenue,Nexus Fostering Ltd,Boarding Out Fees
Peterborough City Council,Children's & Safeguarding,Access to Resources & Specialist Commissioning,Services,01/02/2019,30210220,3816.10,Revenue,Nexus Fostering Ltd,Boarding Out Fees
Peterborough City Council,Children's & Safeguarding,Children's Social Care,Agency Staff,01/02/2019,30210223,2826.82,Revenue,Service Care Solutions Ltd,External Temporary Staff
Peterborough City Council,Commissioning and Commercial Operations,Commissioning Team,Agency Staff,01/02/2019,30210231,1998.00,Revenue,Sanctuary Personnel Ltd,External Temporary Staff
Peterborough City Council,Corporate,Corporate,Non Revenue,01/02/2019,30210316,980.00,Capital,Spotless {Cleaning Services},Grant Payment
Peterborough City Council,Children's & Safeguarding,Access to Resources & Specialist Commissioning,Services,01/02/2019,30210317,780.01,Revenue,Swiis Foster Care Ltd,Boarding Out Fees
Peterborough City Council,Children's & Safeguarding,Access to Resources & Specialist Commissioning,Services,01/02/2019,30210324,780.01,Revenue,Swiis Foster Care Ltd,Boarding Out Fees
Peterborough City Council,Adults,Independent Sector Placements,Services,01/02/2019,30210342,4632.04,Revenue,PossAbilities CIC,Home Care
Peterborough City Council,Adults,Independent Sector Placements,Services,01/02/2019,30210344,4632.04,Revenue,PossAbilities CIC,Home Care
Peterborough City Council,Adults,Mental Capacity Act & DoLs,Services,01/02/2019,30210493,2799.80,Revenue,Dr Nauman Khalil Ltd,Hired Services
Peterborough City Council,Public Health,PH Commissioning,Third Party Payments,01/02/2019,30210503,68751.41,Revenue,Solutions 4 Health Ltd,Third Party Payments - Contract
Peterborough City Council,Adults,Independent Sector Placements,Services,01/02/2019,30210635,771.12,Revenue,Carers Trust Cambridgeshire,Home Care
Peterborough City Council,Adults,Independent Sector Placements,Services,01/02/2019,30210637,563.22,Revenue,Carers Trust Cambridgeshire,Home Care
Peterborough City Council,Adults,Independent Sector Placements,Services,01/02/2019,30210639,506.52,Revenue,Carers Trust Cambridgeshire,Home Care
Peterborough City Council,Adults,Independent Sector Placements,Services,01/02/2019,30210642,635.04,Revenue,Carers Trust Cambridgeshire,Home Care
Peterborough City Council,Adults,Independent Sector Placements,Services,01/02/2019,30210685,532.98,Revenue,Carers Trust Cambridgeshire,Home Care
Peterborough City Council,Adults,Independent Sector Placements,Services,01/02/2019,30210689,544.32,Revenue,Carers Trust Cambridgeshire,Home Care
Peterborough City Council,Adults,Independent Sector Placements,Services,01/02/2019,30210694,619.92,Revenue,Carers Trust Cambridgeshire,Home Care
Peterborough City Council,Peterborough Serco Strategic Partnership,PSSP Retained Services,Services,01/02/2019,30210728,1224.18,Revenue,Whistl UK Ltd,Postage
Peterborough City Council,Corporate,Corporate,Non Revenue,01/02/2019,30211054,242330.84,Capital,R G Carter Cambridge Ltd,Building And Site Works
Peterborough City Council,Corporate,Corporate,Non Revenue,01/02/2019,30211059,141495.55,Capital,R G Carter Cambridge Ltd,Building And Site Works
Peterborough City Council,Children's & Safeguarding,Access to Resources & Specialist Commissioning,Services,01/02/2019,30211203,3191.99,Revenue,PCH Integration Services Ltd,Boarding Out Fees
Peterborough City Council,Children's & Safeguarding,Access to Resources & Specialist Commissioning,Services,01/02/2019,30211205,3191.99,Revenue,PCH Integration Services Ltd,Boarding Out Fees
Peterborough City Council,Adults,Independent Sector Placements,Services,01/02/2019,30211287,2139.24,Revenue,HC-One Beamish Limited - St Clares Court,Residential Care
Peterborough City Council,Communities,Housing,Services,01/02/2019,30211420,9489.50,Revenue,Eastfield Guesthouse,Temporary Accommodation Costs
Peterborough City Council,Communities,Housing,Services,01/02/2019,30211422,10413.00,Revenue,Eastfield Guesthouse,Temporary Accommodation Costs
Peterborough City Council,Westcombe Engineering,Westcombe Engineering,"Tools, Equipment, Furniture & Materials",01/02/2019,30211650,679.44,Revenue,Barron Clark Castings Ltd,Materials
Peterborough City Council,Westcombe Engineering,Westcombe Engineering,"Tools, Equipment, Furniture & Materials",01/02/2019,30211652,666.90,Revenue,Barron Clark Castings Ltd,Materials
Peterborough City Council,Westcombe Engineering,Westcombe Engineering,"Tools, Equipment, Furniture & Materials",01/02/2019,30211655,565.34,Revenue,Barron Clark Castings Ltd,Materials
Peterborough City Council,Adults,Independent Sector Placements,Services,01/02/2019,30212067,3686.00,Revenue,Carers Trust Cambridgeshire,Home Care
Peterborough City Council,Communities,Cohesion,Services,01/02/2019,30212334,3999.66,Revenue,Solutions 4 Health Ltd,Hired Services
Peterborough City Council,Adults,Finance,Services,01/02/2019,30212477,3000.00,Revenue,Solutions 4 Health Ltd,Counselling
Peterborough City Council,Programme Management Office,Programme Management Office,Agency Staff,01/02/2019,30212723,6155.78,Revenue,Reed Specialist Recruitment Limited,External Temporary Staff
Peterborough City Council,"Waste, Cleansing and Open Spaces",Waste & Operational Svs Mgmt,Third Party Payments,01/02/2019,30212754,92864.00,Revenue,Enterprise Managed Services Limited,Third Party Payments - Contract
Peterborough City Council,Communities,Housing,Services,01/02/2019,30212936,1601.95,Revenue,Quantum Lettings,Financial Assistance
Peterborough City Council,Communities,Housing,Services,01/02/2019,30212941,700.00,Revenue,Property Line,Financial Assistance
Peterborough City Council,Communities,Housing,Services,01/02/2019,30212942,1540.61,Revenue,Woodcock Holmes,Financial Assistance
Peterborough City Council,Communities,Housing,Services,01/02/2019,30212949,900.00,Revenue,Majestic Lettings,Financial Assistance
Peterborough City Council,Director of Governance,Gov HOS,Services,01/02/2019,30213075,4003.89,Revenue,LGSS Law Ltd,Legal Costs
Peterborough City Council,Communities,Housing,Services,01/02/2019,30213078,1200.00,Revenue,Redacted Personal Information,Financial Assistance
Peterborough City Council,Corporate,Corporate,Non Revenue,01/02/2019,30213083,520.00,Capital,Olive Branch Community Garden CIC,Grant Payment
Peterborough City Council,Education,Financing - Resources,Services,01/02/2019,30213105,2080.50,Revenue,Sense,Education Expenses
Peterborough City Council,Children's & Safeguarding,Access to Resources & Specialist Commissioning,Services,01/02/2019,30213171,2625.00,Revenue,Transition Care Peterborough Ltd,Boarding Out Fees
Peterborough City Council,Education,Financing - Resources,Services,01/02/2019,30213177,6903.15,Revenue,Sense,Education Expenses
Peterborough City Council,Education,Financing - Resources,Services,01/02/2019,30213178,1225.28,Revenue,Sense,Education Expenses
Peterborough City Council,Education,Financing - Resources,Services,01/02/2019,30213179,1225.28,Revenue,Sense,Education Expenses
Peterborough City Council,Education,Financing - Resources,Services,01/02/2019,30213180,1225.28,Revenue,Sense,Education Expenses
Peterborough City Council,Children's & Safeguarding,Access to Resources & Specialist Commissioning,Services,01/02/2019,30213182,1869.00,Revenue,Transition Care Peterborough Ltd,Boarding Out Fees
Peterborough City Council,Education,Financing - Resources,Services,01/02/2019,30213183,2064.20,Revenue,Sense,Education Expenses
Peterborough City Council,ICT,ICT,Services,01/02/2019,30213196,7048.44,Revenue,Capita Business Services Ltd,Computer Software
Peterborough City Council,ICT,ICT,Services,01/02/2019,30213197,6380.13,Revenue,Capita Business Services Ltd,Computer Software
Peterborough City Council,Peterborough Highway Services,Network and Traffic Management,Agency Staff,01/02/2019,30213258,1351.60,Revenue,Reed Specialist Recruitment Limited,External Temporary Staff
Peterborough City Council,Peterborough Highway Services,Network and Traffic Management,Agency Staff,01/02/2019,30213259,1351.60,Revenue,Reed Specialist Recruitment Limited,External Temporary Staff
Peterborough City Council,Peterborough Highway Services,Network and Traffic Management,Agency Staff,01/02/2019,30213261,1351.60,Revenue,Reed Specialist Recruitment Limited,External Temporary Staff
Peterborough City Council,Peterborough Highway Services,Network and Traffic Management,Agency Staff,01/02/2019,30213263,810.96,Revenue,Reed Specialist Recruitment Limited,External Temporary Staff
Peterborough City Council,Peterborough Highway Services,Network and Traffic Management,Agency Staff,01/02/2019,30213265,1351.60,Revenue,Reed Specialist Recruitment Limited,External Temporary Staff
Peterborough City Council,Commissioning and Commercial Operations,Commissioning Team,Agency Staff,01/02/2019,30213321,2243.60,Revenue,Reed Specialist Recruitment Limited,External Temporary Staff
Peterborough City Council,Children's & Safeguarding,Access to Resources & Specialist Commissioning,Services,01/02/2019,30213357,2625.00,Revenue,Transition Care Peterborough Ltd,Boarding Out Fees
Peterborough City Council,Children's & Safeguarding,Access to Resources & Specialist Commissioning,Services,01/02/2019,30213358,2625.00,Revenue,Transition Care Peterborough Ltd,Boarding Out Fees
Peterborough City Council,Children's & Safeguarding,Access to Resources & Specialist Commissioning,Services,01/02/2019,30213359,2625.00,Revenue,Transition Care Peterborough Ltd,Boarding Out Fees
Peterborough City Council,Children's & Safeguarding,Access to Resources & Specialist Commissioning,Services,01/02/2019,30213360,2625.00,Revenue,Transition Care Peterborough Ltd,Boarding Out Fees
Peterborough City Council,Communities,Cultural Services,Services,01/02/2019,30213361,1662.90,Revenue,Peterborough Centre for Young Musicians,Hired Services
Peterborough City Council,Communities,Cultural Services,Services,01/02/2019,30213362,2400.00,Revenue,Peterborough Centre for Young Musicians,Hired Services
Peterborough City Council,Children's & Safeguarding,External Education Placements,Services,01/02/2019,30213423,3129.67,Revenue,Elton Church of England Primary School,Out Of Area Education Costs
Peterborough City Council,Children's & Safeguarding,External Education Placements,Services,01/02/2019,30213425,2347.25,Revenue,Elton Church of England Primary School,Out Of Area Education Costs
Peterborough City Council,Communities,Housing,Services,01/02/2019,30213433,535.00,Revenue,Redacted Personal Information,Financial Assistance
Peterborough City Council,Communities,Housing,Services,01/02/2019,30213435,535.00,Revenue,Redacted Personal Information,Financial Assistance
Peterborough City Council,Communities,Housing,Services,01/02/2019,30213436,600.00,Revenue,Redacted Personal Information,Financial Assistance
Peterborough City Council,Communities,Housing,Services,01/02/2019,30213437,750.00,Revenue,Bee Lettings Ltd,Financial Assistance
Peterborough City Council,Communities,Housing,Services,01/02/2019,30213438,550.00,Revenue,Redacted Personal Information,Financial Assistance
Peterborough City Council,Communities,Housing,Services,01/02/2019,30213439,550.00,Revenue,Redacted Personal Information,Financial Assistance
Peterborough City Council,Communities,Housing,Services,01/02/2019,30213442,550.00,Revenue,Hometime 2020 Ltd,Financial Assistance
Peterborough City Council,Communities,Housing,Services,01/02/2019,30213443,545.00,Revenue,Redacted Personal Information,Financial Assistance
Peterborough City Council,Communities,Housing,Services,01/02/2019,30213447,825.00,Revenue,Redacted Personal Information,Financial Assistance
Peterborough City Council,Communities,Housing,Services,01/02/2019,30213448,575.00,Revenue,Redacted Personal Information,Financial Assistance
Peterborough City Council,Communities,Housing,Services,01/02/2019,30213449,500.00,Revenue,English Estates Property Agents,Financial Assistance
Peterborough City Council,Communities,Housing,Services,01/02/2019,30213450,825.00,Revenue,Redacted Personal Information,Financial Assistance
Peterborough City Council,Communities,Housing,Services,01/02/2019,30213453,560.00,Revenue,Property Squires,Financial Assistance
Peterborough City Council,Communities,Housing,Services,01/02/2019,30213455,795.00,Revenue,M L Mills Trade,Financial Assistance
Peterborough City Council,Communities,Housing,Services,01/02/2019,30213457,650.00,Revenue,Redacted Personal Information,Financial Assistance
Peterborough City Council,Communities,Housing,Services,01/02/2019,30213458,750.00,Revenue,M L Mills Trade,Financial Assistance
Peterborough City Council,Communities,Housing,Services,01/02/2019,30213482,560.00,Revenue,RWP Property Management Ltd,Financial Assistance
Peterborough City Council,Constitutional Services,Democratic Services,Contract Hire and Operating Leases,01/02/2019,30213489,4614.64,Revenue,Northumbria Healthcare NHS Foundation Trust,Leasing Charges
Peterborough City Council,Communities,Targeted Youth Service,Contract Hire and Operating Leases,01/02/2019,30213490,4705.94,Revenue,Northumbria Healthcare NHS Foundation Trust,Leasing Charges
Peterborough City Council,Children's & Safeguarding,Children's Social Care,Contract Hire and Operating Leases,01/02/2019,30213491,4329.07,Revenue,Northumbria Healthcare NHS Foundation Trust,Leasing Charges
Peterborough City Council,Corporate,Corporate,Non Revenue,01/02/2019,30213570,850.00,Balance Sheet,Redacted Personal Information,Insurance Claims
Peterborough City Council,Adults,Block Contracts,Third Party Payments,01/02/2019,30214589,2318.36,Revenue,Park Vista Care Home,Third Party Payments - Contract
Peterborough City Council,Adults,Independent Sector Placements,Services,01/02/2019,8000134577,1050.75,Revenue,Sagecare Ltd,Home Care
Peterborough City Council,Adults,Independent Sector Placements,Services,01/02/2019,8000134578,1125.00,Revenue,Sagecare Ltd,Home Care
Peterborough City Council,Adults,Independent Sector Placements,Services,01/02/2019,8000134584,543.75,Revenue,Sagecare Ltd,Home Care
Peterborough City Council,Adults,Independent Sector Placements,Services,01/02/2019,8000134593,840.00,Revenue,Sagecare Ltd,Home Care
Peterborough City Council,Adults,Independent Sector Placements,Services,01/02/2019,8000134598,2310.00,Revenue,Sagecare Ltd,Home Care
Peterborough City Council,Adults,Independent Sector Placements,Services,01/02/2019,8000134599,672.50,Revenue,Sagecare Ltd,Home Care
Peterborough City Council,Adults,Independent Sector Placements,Services,01/02/2019,8000134601,840.00,Revenue,Sagecare Ltd,Home Care
Peterborough City Council,Adults,Independent Sector Placements,Services,01/02/2019,8000134605,630.00,Revenue,Sagecare Ltd,Home Care
Peterborough City Council,Adults,Independent Sector Placements,Services,01/02/2019,8000134606,735.00,Revenue,Sagecare Ltd,Home Care
Peterborough City Council,Adults,Independent Sector Placements,Services,01/02/2019,8000134610,532.50,Revenue,Sagecare Ltd,Home Care
Peterborough City Council,Adults,Independent Sector Placements,Services,01/02/2019,8000134614,578.66,Revenue,Sagecare Ltd,Home Care
Peterborough City Council,Adults,Independent Sector Placements,Services,01/02/2019,8000134616,583.51,Revenue,Sagecare Ltd,Home Care
Peterborough City Council,Adults,Independent Sector Placements,Services,01/02/2019,8000134622,864.86,Revenue,Sagecare Ltd,Home Care
Peterborough City Council,Adults,Independent Sector Placements,Services,01/02/2019,8000134628,970.20,Revenue,Sagecare Ltd,Home Care
Peterborough City Council,Adults,Independent Sector Placements,Services,01/02/2019,8000134629,679.14,Revenue,Sagecare Ltd,Home Care
Peterborough City Council,Adults,Independent Sector Placements,Services,01/02/2019,8000134631,942.48,Revenue,Sagecare Ltd,Home Care
Peterborough City Council,Adults,Independent Sector Placements,Services,01/02/2019,8000134632,1247.20,Revenue,Sagecare Ltd,Home Care
Peterborough City Council,Adults,Independent Sector Placements,Services,01/02/2019,8000134633,575.19,Revenue,Sagecare Ltd,Home Care
Peterborough City Council,Adults,Independent Sector Placements,Services,01/02/2019,8000134637,4242.08,Revenue,Sagecare Ltd,Home Care
Peterborough City Council,Adults,Independent Sector Placements,Services,01/02/2019,8000134638,572.88,Revenue,Sagecare Ltd,Home Care
Peterborough City Council,Adults,Independent Sector Placements,Services,01/02/2019,8000134639,598.98,Revenue,Sagecare Ltd,Home Care
Peterborough City Council,Adults,Independent Sector Placements,Services,01/02/2019,8000134643,979.67,Revenue,Sagecare Ltd,Home Care
Peterborough City Council,Adults,Independent Sector Placements,Services,01/02/2019,8000134644,502.43,Revenue,Sagecare Ltd,Home Care
Peterborough City Council,Adults,Independent Sector Placements,Services,01/02/2019,8000134645,517.44,Revenue,Sagecare Ltd,Home Care
Peterborough City Council,Adults,Independent Sector Placements,Services,01/02/2019,8000134647,1552.32,Revenue,Sagecare Ltd,Home Care
Peterborough City Council,Adults,Independent Sector Placements,Services,01/02/2019,8000134649,1926.54,Revenue,Sagecare Ltd,Home Care
Peterborough City Council,Adults,Independent Sector Placements,Services,01/02/2019,8000134650,1553.01,Revenue,Sagecare Ltd,Home Care
Peterborough City Council,Adults,Independent Sector Placements,Services,01/02/2019,8000134651,1340.96,Revenue,Sagecare Ltd,Home Care
Peterborough City Council,Adults,Independent Sector Placements,Services,01/02/2019,8000134652,879.42,Revenue,Sagecare Ltd,Home Care
Peterborough City Council,Adults,Independent Sector Placements,Services,01/02/2019,8000134653,613.07,Revenue,Sagecare Ltd,Home Care
Peterborough City Council,Adults,Independent Sector Placements,Services,01/02/2019,8000134655,889.58,Revenue,Sagecare Ltd,Home Care
Peterborough City Council,Adults,Independent Sector Placements,Services,01/02/2019,8000134656,690.46,Revenue,Sagecare Ltd,Home Care
Peterborough City Council,Adults,Independent Sector Placements,Services,01/02/2019,8000134657,1926.54,Revenue,Sagecare Ltd,Home Care
Peterborough City Council,Adults,Independent Sector Placements,Services,01/02/2019,8000134658,1746.36,Revenue,Sagecare Ltd,Home Care
Peterborough City Council,Adults,Independent Sector Placements,Services,01/02/2019,8000134659,970.20,Revenue,Sagecare Ltd,Home Care
Peterborough City Council,Adults,Independent Sector Placements,Services,01/02/2019,8000134664,860.94,Revenue,Sagecare Ltd,Home Care
Peterborough City Council,Adults,Independent Sector Placements,Services,01/02/2019,8000134666,771.77,Revenue,Sagecare Ltd,Home Care
Peterborough City Council,Adults,Independent Sector Placements,Services,01/02/2019,8000134667,679.60,Revenue,Sagecare Ltd,Home Care
Peterborough City Council,Adults,Independent Sector Placements,Services,01/02/2019,8000134739,754.22,Revenue,Sagecare Ltd,Home Care
Peterborough City Council,Adults,Independent Sector Placements,Services,01/02/2019,8000134744,2110.19,Revenue,Sagecare Ltd,Home Care
Peterborough City Council,Corporate,Corporate,Non Revenue,01/02/2019,8000136720,97500.00,Capital,"Waller, Needham & Green Solicitors",Land/Building Acquisition
Peterborough City Council,Corporate,Corporate,Non Revenue,01/02/2019,8000136720,102528.32,Capital,"Waller, Needham & Green Solicitors",Land/Building Acquisition
Peterborough City Council,Corporate,Corporate,Non Revenue,01/02/2019,8000136720,126000.00,Capital,Shoosmiths LLP Solicitors,Land/Building Acquisition
Peterborough City Council,Corporate,Corporate,Non Revenue,01/02/2019,8000136720,145753.60,Capital,Hegarty LLP Solicitors,Land/Building Acquisition
Peterborough City Council,Corporate,Corporate,Non Revenue,01/02/2019,8000136720,148000.00,Capital,City & County Conveyancing,Land/Building Acquisition
Peterborough City Council,Children's & Safeguarding,Access to Resources & Specialist Commissioning,Services,04/02/2019,30209508,1519.28,Revenue,PCH Integration Services Ltd,Boarding Out Fees
Peterborough City Council,Children's & Safeguarding,Access to Resources & Specialist Commissioning,Services,04/02/2019,30209866,12546.14,Revenue,Ethelbert Childrens Services,Boarding Out Fees
Peterborough City Council,Adults,Block Contracts,Third Party Payments,04/02/2019,30210202,6894.96,Revenue,Axiom Housing Association Ltd,Third Party Payments - Contract
Peterborough City Council,HR,HR WFD & Training,Services,04/02/2019,30210238,1000.00,Revenue,Cambridgeshire County Council,Training
Peterborough City Council,Westcombe Engineering,Westcombe Engineering,"Tools, Equipment, Furniture & Materials",04/02/2019,30210399,577.50,Revenue,Parkside Steel (Stockholders) Ltd,Materials
Peterborough City Council,Regulatory Services,Regulatory Services,Services,04/02/2019,30210425,1945.00,Revenue,Arcanum Digital Forensics Ltd,Hired Services
Peterborough City Council,Adults,Independent Sector Placements,Services,04/02/2019,30210477,535.31,Revenue,Bluebird Care Peterborough,Home Care
Peterborough City Council,Capital Financing,Capital Financing,Services,04/02/2019,30210971,7500.00,Revenue,Link Treasury Services Limited,Professional Services
Peterborough City Council,Adults,Independent Sector Placements,Services,04/02/2019,30211101,4591.60,Revenue,Mencap,Residential Care
Peterborough City Council,Adults,Independent Sector Placements,Services,04/02/2019,30211102,3991.00,Revenue,Mencap,Residential Care
Peterborough City Council,Adults,Independent Sector Placements,Services,04/02/2019,30211103,4896.60,Revenue,Mencap,Residential Care
Peterborough City Council,Adults,Independent Sector Placements,Services,04/02/2019,30211110,2015.00,Revenue,Klair House Residential Care Homes,Residential Care
Peterborough City Council,Adults,Independent Sector Placements,Services,04/02/2019,30211236,4559.00,Revenue,Voyage 1 Limited,Home Care
Peterborough City Council,Adults,Independent Sector Placements,Services,04/02/2019,30211240,4559.00,Revenue,Voyage 1 Limited,Home Care
Peterborough City Council,Adults,Independent Sector Placements,Services,04/02/2019,30211275,4559.00,Revenue,Voyage 1 Limited,Home Care
Peterborough City Council,Adults,Independent Sector Placements,Services,04/02/2019,30211277,4559.00,Revenue,Voyage 1 Limited,Home Care
Peterborough City Council,Westcombe Engineering,Westcombe Engineering,"Tools, Equipment, Furniture & Materials",04/02/2019,30211649,631.76,Revenue,Barron Clark Castings Ltd,Materials
Peterborough City Council,Westcombe Engineering,Westcombe Engineering,"Tools, Equipment, Furniture & Materials",04/02/2019,30211696,916.00,Revenue,Barron Clark Castings Ltd,Materials
Peterborough City Council,Adults,Independent Sector Placements,Services,04/02/2019,30212153,3000.00,Revenue,SOCIAL CARE SOLUTIONS LTD,Home Care
Peterborough City Council,Adults,Independent Sector Placements,Services,04/02/2019,30212155,900.00,Revenue,SOCIAL CARE SOLUTIONS LTD,Home Care
Peterborough City Council,Adults,Independent Sector Placements,Services,04/02/2019,30212161,6426.00,Revenue,SOCIAL CARE SOLUTIONS LTD,Home Care
Peterborough City Council,Adults,Independent Sector Placements,Services,04/02/2019,30212162,3290.12,Revenue,SOCIAL CARE SOLUTIONS LTD,Home Care
Peterborough City Council,Adults,Independent Sector Placements,Services,04/02/2019,30212163,1932.00,Revenue,SOCIAL CARE SOLUTIONS LTD,Home Care
Peterborough City Council,Adults,Independent Sector Placements,Services,04/02/2019,30212165,2462.44,Revenue,SOCIAL CARE SOLUTIONS LTD,Home Care
Peterborough City Council,Adults,Independent Sector Placements,Services,04/02/2019,30212166,2472.64,Revenue,SOCIAL CARE SOLUTIONS LTD,Home Care
Peterborough City Council,Adults,Independent Sector Placements,Services,04/02/2019,30212167,6591.00,Revenue,SOCIAL CARE SOLUTIONS LTD,Home Care
Peterborough City Council,Adults,Independent Sector Placements,Services,04/02/2019,30212171,4463.20,Revenue,SOCIAL CARE SOLUTIONS LTD,Home Care
Peterborough City Council,Adults,Independent Sector Placements,Services,04/02/2019,30212172,900.00,Revenue,SOCIAL CARE SOLUTIONS LTD,Home Care
Peterborough City Council,Adults,Independent Sector Placements,Services,04/02/2019,30212173,6674.40,Revenue,SOCIAL CARE SOLUTIONS LTD,Home Care
Peterborough City Council,Adults,Independent Sector Placements,Services,04/02/2019,30212175,3740.12,Revenue,SOCIAL CARE SOLUTIONS LTD,Home Care
Peterborough City Council,Adults,Independent Sector Placements,Services,04/02/2019,30212191,3400.00,Revenue,LESTER HALL APARTMENTS LTD,Residential Care
Peterborough City Council,Adults,Independent Sector Placements,Services,04/02/2019,30212196,3210.64,Revenue,SOCIAL CARE SOLUTIONS LTD,Home Care
Peterborough City Council,Adults,Independent Sector Placements,Services,04/02/2019,30212197,7699.80,Revenue,SOCIAL CARE SOLUTIONS LTD,Home Care
Peterborough City Council,City Centre Management,"Markets, Tourism & Events",Services,04/02/2019,30212781,4213.80,Revenue,Peterborough Sings,Tickets
Peterborough City Council,Children's & Safeguarding,Children's Social Care,Agency Staff,04/02/2019,30213352,3100.42,Revenue,Liquid Personnel,External Temporary Staff
Peterborough City Council,Education,HTS & CSC Transport,Contract Hire and Operating Leases,04/02/2019,30213557,1222.20,Revenue,Positive Steps (Care Services) Ltd,Hired Transport
Peterborough City Council,Communities,Cohesion,Services,04/02/2019,30213560,800.00,Revenue,Hope Into Action,Financial Assistance
Peterborough City Council,Corporate,Corporate,Non Revenue,04/02/2019,30213569,722.00,Capital,The Alpha Centre,Grant Payment
Peterborough City Council,Communities,Cohesion,Services,04/02/2019,30213574,575.00,Revenue,Record Property Solutions,Financial Assistance
Peterborough City Council,Communities,Cohesion,Services,04/02/2019,30213575,750.00,Revenue,Redacted Personal Information,Financial Assistance
Peterborough City Council,Communities,Cohesion,Services,04/02/2019,30213576,625.00,Revenue,Record Property Solutions,Financial Assistance
Peterborough City Council,Communities,Cohesion,Services,04/02/2019,30213577,800.00,Revenue,Rightroom Lettings Ltd,Financial Assistance
Peterborough City Council,Communities,Cohesion,Services,04/02/2019,30213578,625.00,Revenue,Rightroom Lettings Ltd,Financial Assistance
Peterborough City Council,Communities,Cohesion,Services,04/02/2019,30213580,575.00,Revenue,Redacted Personal Information,Financial Assistance
Peterborough City Council,Communities,Cohesion,Services,04/02/2019,30213581,625.00,Revenue,Record Property Solutions,Financial Assistance
Peterborough City Council,Communities,Cohesion,Services,04/02/2019,30213582,750.00,Revenue,Redacted Personal Information,Financial Assistance
Peterborough City Council,Corporate Property,Office Accomodation,Repair & Maintenance of Buildings,04/02/2019,30213676,4930.21,Revenue,The K A Wing Group Ltd,Premises Maintenance
Peterborough City Council,Corporate,Corporate,Non Revenue,04/02/2019,30213679,577587.83,Balance Sheet,Teachers Pensions,Pensions
Peterborough City Council,Communities,Cultural Services,Services,04/02/2019,30213725,11000.00,Revenue,Peterborough Centre for Young Musicians,Hired Services
Peterborough City Council,Communities,Cultural Services,Services,04/02/2019,30213760,1520.00,Revenue,Peterborough Centre for Young Musicians,Hired Services
Peterborough City Council,Adults,Independent Sector Placements,Services,04/02/2019,8000134298,660.96,Revenue,Axiom Housing Association Ltd,Home Care
Peterborough City Council,Adults,Independent Sector Placements,Services,04/02/2019,8000134299,1627.92,Revenue,Axiom Housing Association Ltd,Home Care
Peterborough City Council,Adults,Independent Sector Placements,Services,04/02/2019,8000134300,514.08,Revenue,Axiom Housing Association Ltd,Home Care
Peterborough City Council,Adults,Independent Sector Placements,Services,04/02/2019,8000134304,526.32,Revenue,Axiom Housing Association Ltd,Home Care
Peterborough City Council,Adults,Independent Sector Placements,Services,04/02/2019,8000134305,599.76,Revenue,Axiom Housing Association Ltd,Home Care
Peterborough City Council,Adults,Independent Sector Placements,Services,04/02/2019,8000134306,979.20,Revenue,Axiom Housing Association Ltd,Home Care
Peterborough City Council,Adults,Independent Sector Placements,Services,04/02/2019,8000134309,514.08,Revenue,Axiom Housing Association Ltd,Home Care
Peterborough City Council,Adults,Independent Sector Placements,Services,04/02/2019,8000134311,514.08,Revenue,Axiom Housing Association Ltd,Home Care
Peterborough City Council,Adults,Independent Sector Placements,Services,04/02/2019,8000134313,771.12,Revenue,Axiom Housing Association Ltd,Home Care
Peterborough City Council,Adults,Independent Sector Placements,Services,04/02/2019,8000134314,942.48,Revenue,Axiom Housing Association Ltd,Home Care
Peterborough City Council,Adults,Independent Sector Placements,Services,04/02/2019,8000134317,685.44,Revenue,Axiom Housing Association Ltd,Home Care
Peterborough City Council,Adults,Independent Sector Placements,Services,04/02/2019,8000134319,514.08,Revenue,Axiom Housing Association Ltd,Home Care
Peterborough City Council,Adults,Independent Sector Placements,Services,04/02/2019,8000134321,1199.52,Revenue,Axiom Housing Association Ltd,Home Care
Peterborough City Council,Adults,Independent Sector Placements,Services,04/02/2019,8000134322,514.08,Revenue,Axiom Housing Association Ltd,Home Care
Peterborough City Council,Adults,Independent Sector Placements,Services,04/02/2019,8000134323,514.08,Revenue,Axiom Housing Association Ltd,Home Care
Peterborough City Council,Adults,Independent Sector Placements,Services,04/02/2019,8000134324,722.16,Revenue,Axiom Housing Association Ltd,Home Care
Peterborough City Council,Adults,Independent Sector Placements,Services,04/02/2019,8000134325,1542.24,Revenue,Axiom Housing Association Ltd,Home Care
Peterborough City Council,Adults,Independent Sector Placements,Services,04/02/2019,8000134326,685.44,Revenue,Axiom Housing Association Ltd,Home Care
Peterborough City Council,Adults,Independent Sector Placements,Services,04/02/2019,8000134330,1884.96,Revenue,Axiom Housing Association Ltd,Home Care
Peterborough City Council,Adults,Independent Sector Placements,Services,04/02/2019,8000134332,590.58,Revenue,Axiom Housing Association Ltd,Home Care
Peterborough City Council,Adults,Independent Sector Placements,Services,04/02/2019,8000134337,771.12,Revenue,Axiom Housing Association Ltd,Home Care
Peterborough City Council,Adults,Independent Sector Placements,Services,04/02/2019,8000134338,599.76,Revenue,Axiom Housing Association Ltd,Home Care
Peterborough City Council,Adults,Independent Sector Placements,Services,04/02/2019,8000134339,954.72,Revenue,Axiom Housing Association Ltd,Home Care
Peterborough City Council,Adults,Independent Sector Placements,Services,04/02/2019,8000134342,685.44,Revenue,Axiom Housing Association Ltd,Home Care
Peterborough City Council,Adults,Independent Sector Placements,Services,04/02/2019,8000134343,599.76,Revenue,Axiom Housing Association Ltd,Home Care
Peterborough City Council,Adults,Independent Sector Placements,Services,04/02/2019,8000134349,514.08,Revenue,Axiom Housing Association Ltd,Home Care
Peterborough City Council,Adults,Independent Sector Placements,Services,04/02/2019,8000134350,771.12,Revenue,Axiom Housing Association Ltd,Home Care
Peterborough City Council,Adults,Independent Sector Placements,Services,04/02/2019,8000134351,771.12,Revenue,Axiom Housing Association Ltd,Home Care
Peterborough City Council,Adults,Independent Sector Placements,Services,04/02/2019,8000134354,771.12,Revenue,Axiom Housing Association Ltd,Home Care
Peterborough City Council,Adults,Independent Sector Placements,Services,04/02/2019,8000134357,612.00,Revenue,Axiom Housing Association Ltd,Home Care
Peterborough City Council,Adults,Independent Sector Placements,Services,04/02/2019,8000134359,685.44,Revenue,Axiom Housing Association Ltd,Home Care
Peterborough City Council,Adults,Independent Sector Placements,Services,04/02/2019,8000134361,783.36,Revenue,Axiom Housing Association Ltd,Home Care
Peterborough City Council,Adults,Independent Sector Placements,Services,04/02/2019,8000134362,1113.84,Revenue,Axiom Housing Association Ltd,Home Care
Peterborough City Council,Adults,Independent Sector Placements,Services,04/02/2019,8000134364,514.08,Revenue,Axiom Housing Association Ltd,Home Care
Peterborough City Council,Adults,Independent Sector Placements,Services,04/02/2019,8000134365,599.76,Revenue,Axiom Housing Association Ltd,Home Care
Peterborough City Council,Adults,Independent Sector Placements,Services,04/02/2019,8000134368,526.32,Revenue,Axiom Housing Association Ltd,Home Care
Peterborough City Council,Adults,Independent Sector Placements,Services,04/02/2019,8000134370,514.08,Revenue,Axiom Housing Association Ltd,Home Care
Peterborough City Council,Adults,Independent Sector Placements,Services,04/02/2019,8000134371,599.76,Revenue,Axiom Housing Association Ltd,Home Care
Peterborough City Council,Adults,Independent Sector Placements,Services,04/02/2019,8000134374,599.76,Revenue,Axiom Housing Association Ltd,Home Care
Peterborough City Council,Adults,Independent Sector Placements,Services,04/02/2019,8000134380,1542.24,Revenue,Axiom Housing Association Ltd,Home Care
Peterborough City Council,Adults,Independent Sector Placements,Services,04/02/2019,8000134381,514.08,Revenue,Axiom Housing Association Ltd,Home Care
Peterborough City Council,Adults,Independent Sector Placements,Services,04/02/2019,8000134506,945.00,Revenue,Axiom Housing Association Ltd,Home Care
Peterborough City Council,Adults,Independent Sector Placements,Services,04/02/2019,8000134510,630.00,Revenue,Axiom Housing Association Ltd,Home Care
Peterborough City Council,Adults,Independent Sector Placements,Services,04/02/2019,8000134511,538.58,Revenue,Axiom Housing Association Ltd,Home Care
Peterborough City Council,Adults,Independent Sector Placements,Services,04/02/2019,8000134514,572.22,Revenue,Axiom Housing Association Ltd,Home Care
Peterborough City Council,Corporate,Corporate,Non Revenue,04/02/2019,8000136720,165500.00,Capital,Shoosmiths LLP Solicitors,Land/Building Acquisition
Peterborough City Council,Corporate,Corporate,Non Revenue,05/02/2019,8000136720,154215.89,Capital,City & County Conveyancing,Land/Building Acquisition
Peterborough City Council,Children's & Safeguarding,Commissioning - CSC,Third Party Payments,05/02/2019,8000136720,542880.08,Revenue,IAS TACT,Third Party Payments - Contract
Peterborough City Council,ICT,ICT,Services,06/02/2019,30197966,28750.00,Revenue,Me Learning Ltd,Computer Software
Peterborough City Council,Adults,Independent Sector Placements,Services,06/02/2019,30205269,908.83,Revenue,Sense,Day Care
Peterborough City Council,Children's & Safeguarding,Access to Resources & Specialist Commissioning,Services,06/02/2019,30207076,22323.33,Revenue,Exeter Royal Academy for Deaf Education,Boarding Out Fees
Peterborough City Council,Adults,Independent Sector Placements,Services,06/02/2019,30207894,1431.48,Revenue,LAVENDER HOUSE RESIDENTIAL HOME,Residential Care
Peterborough City Council,Adults,Independent Sector Placements,Services,06/02/2019,30208993,1563.90,Revenue,Hales Group Ltd,Home Care
Peterborough City Council,Adults,Independent Sector Placements,Services,06/02/2019,30208994,841.65,Revenue,Hales Group Ltd,Home Care
Peterborough City Council,Children's & Safeguarding,Commissioning - CSC,Services,06/02/2019,30209829,980.00,Revenue,K2 CARE LTD,Purchased Social Care Services
Peterborough City Council,Communities,Housing,Services,06/02/2019,30210186,950.00,Revenue,Liam Varnam,Legal Costs
Peterborough City Council,Corporate Property,Commercial Propety,Third Party Payments,06/02/2019,30210405,185273.31,Revenue,NPS Peterborough Ltd,Third Party Payments - Contract
Peterborough City Council,City Centre Management,"Markets, Tourism & Events",Services,06/02/2019,30210410,2728.00,Revenue,CWS Sound & Lighting,Hired Services
Peterborough City Council,Communities,Travellers,Services,06/02/2019,30210411,1202.45,Revenue,Bryan Lecoche Ltd,Hired Services
Peterborough City Council,Regulatory Services,Regulatory Services,Services,06/02/2019,30210500,3562.50,Revenue,Mr Cameron Crowe,Legal Costs
Peterborough City Council,Westcombe Engineering,Westcombe Engineering,"Tools, Equipment, Furniture & Materials",06/02/2019,30210510,2499.44,Revenue,ANGLIA BEARING COMPANY LIMITED,Materials
Peterborough City Council,Adults,Independent Sector Placements,Services,06/02/2019,30210595,1630.00,Revenue,ABBEYGATE REST HOME,Residential Care
Peterborough City Council,Legal Services,Legal Services,Agency Staff,06/02/2019,30210596,1902.60,Revenue,Venn Group Ltd,External Temporary Staff
Peterborough City Council,Legal Services,Legal Services,Agency Staff,06/02/2019,30210600,556.92,Revenue,Venn Group Ltd,External Temporary Staff
Peterborough City Council,Legal Services,Legal Services,Agency Staff,06/02/2019,30210601,1240.83,Revenue,Venn Group Ltd,External Temporary Staff
Peterborough City Council,Legal Services,Legal Services,Agency Staff,06/02/2019,30210603,867.47,Revenue,Venn Group Ltd,External Temporary Staff
Peterborough City Council,Legal Services,Legal Services,Agency Staff,06/02/2019,30210607,1375.00,Revenue,Venn Group Ltd,External Temporary Staff
Peterborough City Council,Legal Services,Legal Services,Agency Staff,06/02/2019,30210610,2194.53,Revenue,Venn Group Ltd,External Temporary Staff
Peterborough City Council,Legal Services,Legal Services,Agency Staff,06/02/2019,30210613,604.88,Revenue,Venn Group Ltd,External Temporary Staff
Peterborough City Council,Children's & Safeguarding,Access to Resources & Specialist Commissioning,Services,06/02/2019,30210749,11712.00,Revenue,Positive Steps (Care Services) Ltd,Boarding Out Fees
Peterborough City Council,Adults,Independent Sector Placements,Services,06/02/2019,30210800,2607.00,Revenue,HEREWARD CARE SERVICES LIMITED,Residential Care
Peterborough City Council,Adults,Independent Sector Placements,Services,06/02/2019,30210803,3431.12,Revenue,HEREWARD CARE SERVICES LIMITED,Residential Care
Peterborough City Council,Adults,Independent Sector Placements,Services,06/02/2019,30210804,4491.36,Revenue,HEREWARD CARE SERVICES LIMITED,Residential Care
Peterborough City Council,Adults,Independent Sector Placements,Services,06/02/2019,30210805,2677.32,Revenue,HEREWARD CARE SERVICES LIMITED,Residential Care
Peterborough City Council,Adults,Independent Sector Placements,Services,06/02/2019,30210806,2671.84,Revenue,HEREWARD CARE SERVICES LIMITED,Residential Care
Peterborough City Council,Adults,Independent Sector Placements,Services,06/02/2019,30210809,2167.60,Revenue,HEREWARD CARE SERVICES LIMITED,Residential Care
Peterborough City Council,Commissioning and Commercial Operations,Commissioning,Services,06/02/2019,30210951,2361.70,Revenue,BDP Social Care Ltd,Hired Services
Peterborough City Council,Communities,Targeted Youth Service,Services,06/02/2019,30210953,1600.00,Revenue,The Lily Pad Cottages,Youth Programmes
Peterborough City Council,Children's & Safeguarding,Early Help ASC/CSC,Services,06/02/2019,30210954,1337.60,Revenue,BDP Social Care Ltd,Hired Services
Peterborough City Council,Adults,Home Services Delivery Model,Services,06/02/2019,30210955,726.75,Revenue,Nightingale Services,Contractors
Peterborough City Council,Legal Services,Legal Services,Agency Staff,06/02/2019,30210956,1144.00,Revenue,Spinks Notary,External Temporary Staff
Peterborough City Council,Legal Services,Legal Services,Agency Staff,06/02/2019,30210959,1320.00,Revenue,Spinks Notary,External Temporary Staff
Peterborough City Council,Adults,Block Contracts,Third Party Payments,06/02/2019,30210961,60548.12,Revenue,HEREWARD CARE SERVICES LIMITED,Third Party Payments - Contract
Peterborough City Council,"Waste, Cleansing and Open Spaces",Waste Management,Services,06/02/2019,30210965,355709.48,Revenue,Viridor Peterborough Ltd,Waste Disposal
Peterborough City Council,Marketing & Communications,Marketing & Communications,Rents,06/02/2019,30210972,516.00,Revenue,Allia Ltd,Hire of Premises
Peterborough City Council,Adults,OP/PD/SI,Third Party Payments,06/02/2019,30210974,610.75,Revenue,Italian Community Association,Third Party Payments - Contract
Peterborough City Council,Adults,Mental Capacity Act & DoLs,Services,06/02/2019,30211029,748.00,Revenue,SS Psychiatric Services Ltd,Hired Services
Peterborough City Council,Corporate,Corporate,Non Revenue,06/02/2019,30211057,155913.48,Capital,Jeakins Weir Ltd,Building And Site Works
Peterborough City Council,"Cemeteries, Cremation & Registrars",Bereavement Service,"Tools, Equipment, Furniture & Materials",06/02/2019,30211061,631.93,Revenue,Fenland Stoneworks,Memorials
Peterborough City Council,Adults,Independent Sector Placements,Services,06/02/2019,30211105,2535.48,Revenue,Kemps Place Ltd,Residential Care
Peterborough City Council,Adults,Independent Sector Placements,Services,06/02/2019,30211106,1094.56,Revenue,Kemps Place Ltd,Residential Care
Peterborough City Council,Adults,Independent Sector Placements,Services,06/02/2019,30211107,2735.48,Revenue,Kemps Place Ltd,Residential Care
Peterborough City Council,Adults,Independent Sector Placements,Services,06/02/2019,30211239,4291.04,Revenue,Voyage 1 Limited,Home Care
Peterborough City Council,Adults,Independent Sector Placements,Services,06/02/2019,30211242,1852.72,Revenue,Voyage 1 Limited,Residential Care
Peterborough City Council,Adults,Independent Sector Placements,Services,06/02/2019,30211243,4589.68,Revenue,Voyage 1 Limited,Residential Care
Peterborough City Council,Corporate,Corporate,Non Revenue,06/02/2019,30211359,3550.00,Capital,M J Greaves,Grant Payment
Peterborough City Council,Corporate,Corporate,Non Revenue,06/02/2019,30211360,2424.65,Capital,Casbon Building Services,Grant Payment
Peterborough City Council,Corporate,Corporate,Non Revenue,06/02/2019,30211361,740.99,Capital,Casbon Building Services,Grant Payment
Peterborough City Council,Corporate,Corporate,Non Revenue,06/02/2019,30211364,5882.01,Capital,Casbon Building Services,Grant Payment
Peterborough City Council,Corporate,Corporate,Non Revenue,06/02/2019,30211368,2512.35,Capital,Casbon Building Services,Grant Payment
Peterborough City Council,Corporate,Corporate,Non Revenue,06/02/2019,30211371,6447.44,Capital,Nadeem Construction Ltd,Grant Payment
Peterborough City Council,Corporate,Corporate,Non Revenue,06/02/2019,30211431,3000.00,Capital,Anglian Water Services Ltd,Grant Payment
Peterborough City Council,Children's & Safeguarding,Access to Resources & Specialist Commissioning,Services,06/02/2019,30211443,8400.00,Revenue,A & T Home Limited,Boarding Out Fees
Peterborough City Council,Children's & Safeguarding,Access to Resources & Specialist Commissioning,Services,06/02/2019,30211444,16855.14,Revenue,Blue Mountain Homes,Boarding Out Fees
Peterborough City Council,HR,HR WFD & Training,Services,06/02/2019,30211516,4100.00,Revenue,"EDGE Services,The Manual Handling Training Co.Ltd",Course Fees
Peterborough City Council,Communities,Cohesion,Services,06/02/2019,30211519,1600.00,Revenue,Codename Media Ltd,Advertising
Peterborough City Council,Adults,Independent Sector Placements,Services,06/02/2019,30211643,670.00,Revenue,FIELD HOUSE (EYE) LTD,Day Care
Peterborough City Council,Adults,Independent Sector Placements,Services,06/02/2019,30211682,645.05,Revenue,Peterborough Care  The Maltings,Residential Care
Peterborough City Council,Corporate,Corporate,Non Revenue,06/02/2019,30211689,4924.00,Capital,MORLEY BUILDING SERVICES LTD,Grant Payment
Peterborough City Council,Corporate,Corporate,Non Revenue,06/02/2019,30211690,3500.00,Capital,Casbon Building Services,Grant Payment
Peterborough City Council,Corporate,Corporate,Non Revenue,06/02/2019,30211691,3918.00,Capital,MORLEY BUILDING SERVICES LTD,Grant Payment
Peterborough City Council,Education,Special Educational Needs / Inclusion,Agency Staff,06/02/2019,30211699,1100.00,Revenue,Permanent Futures Ltd,External Temporary Staff
Peterborough City Council,Westcombe Engineering,Westcombe Engineering,"Tools, Equipment, Furniture & Materials",06/02/2019,30211701,1425.00,Revenue,Barron Clark Castings Ltd,Materials
Peterborough City Council,Adults,Independent Sector Placements,Services,06/02/2019,30211914,1847.60,Revenue,Alysia Caring Ltd T/a Cherry Blossom care Home,Residential Care
Peterborough City Council,Adults,Independent Sector Placements,Services,06/02/2019,30211915,2114.10,Revenue,Alysia Caring Ltd T/a Cherry Blossom care Home,Residential Care
Peterborough City Council,Adults,Independent Sector Placements,Services,06/02/2019,30211916,2324.48,Revenue,Alysia Caring Ltd T/a Cherry Blossom care Home,Residential Care
Peterborough City Council,Adults,Independent Sector Placements,Services,06/02/2019,30211982,2443.31,Revenue,Alysia Caring Ltd T/a Cherry Blossom care Home,Residential Care
Peterborough City Council,Adults,Independent Sector Placements,Services,06/02/2019,30211983,1883.32,Revenue,Alysia Caring Ltd T/a Cherry Blossom care Home,Residential Care
Peterborough City Council,Adults,Independent Sector Placements,Services,06/02/2019,30211984,1480.15,Revenue,Alysia Caring Ltd T/a Cherry Blossom care Home,Residential Care
Peterborough City Council,Adults,Independent Sector Placements,Services,06/02/2019,30211985,2930.04,Revenue,Alysia Caring Ltd T/a Cherry Blossom care Home,Residential Care
Peterborough City Council,Adults,Independent Sector Placements,Services,06/02/2019,30211986,2218.96,Revenue,Alysia Caring Ltd T/a Cherry Blossom care Home,Residential Care
Peterborough City Council,Adults,Independent Sector Placements,Services,06/02/2019,30211987,2240.72,Revenue,Alysia Caring Ltd T/a Cherry Blossom care Home,Residential Care
Peterborough City Council,Adults,Independent Sector Placements,Services,06/02/2019,30211988,3100.00,Revenue,Alysia Caring Ltd T/a Cherry Blossom care Home,Residential Care
Peterborough City Council,Adults,Independent Sector Placements,Services,06/02/2019,30212022,589.44,Revenue,Alysia Caring Ltd T/a Cherry Blossom care Home,Residential Care
Peterborough City Council,Adults,Independent Sector Placements,Services,06/02/2019,30212023,825.88,Revenue,Alysia Caring Ltd T/a Cherry Blossom care Home,Residential Care
Peterborough City Council,Adults,Independent Sector Placements,Services,06/02/2019,30212024,1210.49,Revenue,Alysia Caring Ltd T/a Cherry Blossom care Home,Residential Care
Peterborough City Council,Adults,Independent Sector Placements,Services,06/02/2019,30212025,2128.00,Revenue,Alysia Caring Ltd T/a Cherry Blossom care Home,Residential Care
Peterborough City Council,Commissioning and Commercial Operations,Clare Lodge,Cleaning & Domestic Supplies,06/02/2019,30212050,864.26,Revenue,Bunzl UK Ltd t/a Industrial Supplies,Cleaning Materials
Peterborough City Council,Adults,Independent Sector Placements,Services,06/02/2019,30212059,3784.00,Revenue,Community Care Solutions Ltd,Residential Care
Peterborough City Council,Adults,Independent Sector Placements,Services,06/02/2019,30212060,3767.20,Revenue,Community Care Solutions Ltd,Residential Care
Peterborough City Council,Adults,Independent Sector Placements,Services,06/02/2019,30212061,3767.20,Revenue,Community Care Solutions Ltd,Residential Care
Peterborough City Council,Adults,Independent Sector Placements,Services,06/02/2019,30212062,3767.20,Revenue,Community Care Solutions Ltd,Residential Care
Peterborough City Council,Adults,Independent Sector Placements,Services,06/02/2019,30212063,3767.20,Revenue,Community Care Solutions Ltd,Residential Care
Peterborough City Council,Adults,Independent Sector Placements,Services,06/02/2019,30212064,8049.72,Revenue,Community Care Solutions Ltd,Residential Care
Peterborough City Council,Adults,Independent Sector Placements,Services,06/02/2019,30212065,5600.00,Revenue,Community Care Solutions Ltd,Residential Care
Peterborough City Council,Adults,Independent Sector Placements,Services,06/02/2019,30212112,2616.88,Revenue,HC-One Oval Limited,Residential Care
Peterborough City Council,Adults,Independent Sector Placements,Services,06/02/2019,30212113,3175.00,Revenue,HC-One Oval Limited,Residential Care
Peterborough City Council,Adults,Independent Sector Placements,Services,06/02/2019,30212131,1574.20,Revenue,HC-One Oval Limited,Residential Care
Peterborough City Council,Adults,Independent Sector Placements,Services,06/02/2019,30212132,2575.00,Revenue,HC-One Oval Limited,Residential Care
Peterborough City Council,"Cemeteries, Cremation & Registrars",Bereavement Service,Services,06/02/2019,30212516,547.76,Revenue,Yaboo Company Ltd T/a Wesley Music,Hired Services
Peterborough City Council,Adults,Block Contracts,Services,06/02/2019,30212815,909.22,Revenue,Funding Affordable Homes Housing Assoc. Ltd,Home Care
Peterborough City Council,Westcombe Engineering,Westcombe Engineering,"Tools, Equipment, Furniture & Materials",06/02/2019,30212862,572.50,Revenue,Barron Clark Castings Ltd,Materials
Peterborough City Council,Westcombe Engineering,Westcombe Engineering,"Tools, Equipment, Furniture & Materials",06/02/2019,30212863,737.40,Revenue,Barron Clark Castings Ltd,Materials
Peterborough City Council,Legal Services,Legal Services,Agency Staff,06/02/2019,30212874,1016.75,Revenue,Giant Professional Limited,External Temporary Staff
Peterborough City Council,Corporate,Corporate,Non Revenue,06/02/2019,30212910,507.22,Capital,Posh Signs (Peterborough) Ltd t/a Fastsigns Peterborough,Infrastructure
Peterborough City Council,Adults,Independent Sector Placements,Services,06/02/2019,30212920,1557.90,Revenue,Hales Group Ltd,Home Care
Peterborough City Council,Children's & Safeguarding,Access to Resources & Specialist Commissioning,Services,06/02/2019,30212982,12796.53,Revenue,Ethelbert Childrens Services,Boarding Out Fees
Peterborough City Council,Adults,Independent Sector Placements,Services,06/02/2019,30213019,16310.00,Revenue,Focus Care Agency Ltd,Home Care
Peterborough City Council,Adults,Independent Sector Placements,Services,06/02/2019,30213057,21160.82,Revenue,The Regard Partnership Limited,Residential Care
Peterborough City Council,Adults,Independent Sector Placements,Services,06/02/2019,30213058,3718.82,Revenue,Alysia Caring Ltd T/a Cherry Blossom care Home,Residential Care
Peterborough City Council,Adults,Independent Sector Placements,Services,06/02/2019,30213081,2437.47,Revenue,Alysia Caring Ltd T/a Cherry Blossom care Home,Residential Care
Peterborough City Council,Adults,Independent Sector Placements,Services,06/02/2019,30213116,960.27,Revenue,Sagecare Ltd,Home Care
Peterborough City Council,Adults,Independent Sector Placements,Services,06/02/2019,30213117,890.51,Revenue,Sagecare Ltd,Home Care
Peterborough City Council,Adults,Independent Sector Placements,Services,06/02/2019,30213119,5234.52,Revenue,"ATCHISON, MR ALAN",Residential Care
Peterborough City Council,Adults,Independent Sector Placements,Services,06/02/2019,30213156,2400.00,Revenue,Park Vista Care Home,Residential Care
Peterborough City Council,Adults,Independent Sector Placements,Services,06/02/2019,30213157,1745.17,Revenue,Park Vista Care Home,Residential Care
Peterborough City Council,Adults,Independent Sector Placements,Services,06/02/2019,30213266,1220.00,Revenue,Caring Crew,Home Care
Peterborough City Council,Adults,Independent Sector Placements,Services,06/02/2019,30213268,617.63,Revenue,Caring Crew,Home Care
Peterborough City Council,Adults,Independent Sector Placements,Services,06/02/2019,30213285,655.75,Revenue,Caring Crew,Home Care
Peterborough City Council,Adults,Independent Sector Placements,Services,06/02/2019,30213294,671.00,Revenue,Caring Crew,Home Care
Peterborough City Council,Adults,Independent Sector Placements,Services,06/02/2019,30213303,1940.40,Revenue,Sagecare Ltd,Home Care
Peterborough City Council,Adults,Independent Sector Placements,Services,06/02/2019,30213304,736.89,Revenue,Sagecare Ltd,Home Care
Peterborough City Council,Adults,Independent Sector Placements,Services,06/02/2019,30213307,1244.17,Revenue,Sagecare Ltd,Home Care
Peterborough City Council,Adults,Independent Sector Placements,Services,06/02/2019,30213309,847.50,Revenue,Sagecare Ltd,Home Care
Peterborough City Council,Adults,Independent Sector Placements,Services,06/02/2019,30213310,520.00,Revenue,Sagecare Ltd,Home Care
Peterborough City Council,Adults,Independent Sector Placements,Services,06/02/2019,30213312,1114.00,Revenue,Sagecare Ltd,Home Care
Peterborough City Council,Adults,Independent Sector Placements,Services,06/02/2019,30213313,3780.00,Revenue,Sagecare Ltd,Home Care
Peterborough City Council,Adults,Independent Sector Placements,Services,06/02/2019,30213323,549.00,Revenue,Caring Crew,Home Care
Peterborough City Council,Adults,Independent Sector Placements,Services,06/02/2019,30213324,2470.00,Revenue,Caring Crew,Home Care
Peterborough City Council,Adults,Independent Sector Placements,Services,06/02/2019,30213328,549.00,Revenue,Caring Crew,Home Care
Peterborough City Council,Adults,Independent Sector Placements,Services,06/02/2019,30213334,854.00,Revenue,Caring Crew,Home Care
Peterborough City Council,Adults,Independent Sector Placements,Services,06/02/2019,30213350,640.50,Revenue,Caring Crew,Home Care
Peterborough City Council,Adults,Independent Sector Placements,Services,06/02/2019,30213353,3278.57,Revenue,Alysia Caring Ltd T/a Cherry Blossom care Home,Residential Care
Peterborough City Council,Adults,Independent Sector Placements,Services,06/02/2019,30213355,3103.92,Revenue,"ATCHISON, MR ALAN",Residential Care
Peterborough City Council,Adults,Independent Sector Placements,Services,06/02/2019,30213426,21160.82,Revenue,The Regard Partnership Limited,Residential Care
Peterborough City Council,Adults,Independent Sector Placements,Services,06/02/2019,30213427,47867.07,Revenue,The Regard Partnership Limited,Residential Care
Peterborough City Council,Adults,Independent Sector Placements,Services,06/02/2019,30213440,582.40,Revenue,Choices Care Ltd,Home Care
Peterborough City Council,Adults,Independent Sector Placements,Services,06/02/2019,30213456,509.60,Revenue,Choices Care Ltd,Home Care
Peterborough City Council,Communities,Cohesion,Public Transport,06/02/2019,30213498,1500.00,Revenue,PARCA,Bus Fares
Peterborough City Council,Adults,Independent Sector Placements,Services,06/02/2019,30213534,3423.52,Revenue,Sanctuary Care Limited,Residential Care
Peterborough City Council,Children's & Safeguarding,Access to Resources & Specialist Commissioning,Services,06/02/2019,30213583,-7500.00,Revenue,A & T Home Limited,Boarding Out Fees
Peterborough City Council,Adults,Independent Sector Placements,Services,06/02/2019,30213605,-550.00,Revenue,Goldcare Homes t/a The Tudors Care Home,Residential Care
Peterborough City Council,Adults,Independent Sector Placements,Services,06/02/2019,30213606,1964.29,Revenue,Goldcare Homes t/a The Tudors Care Home,Residential Care
Peterborough City Council,Children's & Safeguarding,Access to Resources & Specialist Commissioning,Services,06/02/2019,30213696,1519.28,Revenue,PCH Integration Services Ltd,Boarding Out Fees
Peterborough City Council,Children's & Safeguarding,Access to Resources & Specialist Commissioning,Services,06/02/2019,30213704,1355.99,Revenue,PCH Integration Services Ltd,Boarding Out Fees
Peterborough City Council,HR,HR,Services,06/02/2019,30213761,11060.44,Revenue,Edenred,Childcare
Peterborough City Council,ICT,ICT,Services,06/02/2019,30213770,55944.48,Revenue,Amazon Web Services Inc.,Computer Software
Peterborough City Council,Commissioning and Commercial Operations,Clare Lodge,Agency Staff,06/02/2019,30213775,723.33,Revenue,Reed Specialist Recruitment Limited,External Temporary Staff
Peterborough City Council,Commissioning and Commercial Operations,Clare Lodge,Agency Staff,06/02/2019,30213776,591.61,Revenue,Reed Specialist Recruitment Limited,External Temporary Staff
Peterborough City Council,ICT,ICT,Agency Staff,06/02/2019,30213783,678.80,Revenue,Reed Specialist Recruitment Limited,External Temporary Staff
Peterborough City Council,Commissioning and Commercial Operations,Commissioning Team,Agency Staff,06/02/2019,30213785,2243.60,Revenue,Reed Specialist Recruitment Limited,External Temporary Staff
Peterborough City Council,Financial Services,Internal Audit,Agency Staff,06/02/2019,30213791,1796.60,Revenue,Reed Specialist Recruitment Limited,External Temporary Staff
Peterborough City Council,Development and Construction,Development Management,Agency Staff,06/02/2019,30213793,1182.91,Revenue,Reed Specialist Recruitment Limited,External Temporary Staff
Peterborough City Council,Legal Services,Legal Services,Agency Staff,06/02/2019,30213795,2025.38,Revenue,Reed Specialist Recruitment Limited,External Temporary Staff
Peterborough City Council,Corporate Property,Commercial Propety,Agency Staff,06/02/2019,30213796,2474.62,Revenue,Reed Specialist Recruitment Limited,External Temporary Staff
Peterborough City Council,Legal Services,Legal Services,Agency Staff,06/02/2019,30213797,1848.70,Revenue,Reed Specialist Recruitment Limited,External Temporary Staff
Peterborough City Council,Financial Services,Finance,Agency Staff,06/02/2019,30213798,702.32,Revenue,Reed Specialist Recruitment Limited,External Temporary Staff
Peterborough City Council,ICT,ICT,Agency Staff,06/02/2019,30213799,2268.60,Revenue,Reed Specialist Recruitment Limited,External Temporary Staff
Peterborough City Council,Corporate,Corporate,Non Revenue,06/02/2019,30213800,2583.60,Capital,Reed Specialist Recruitment Limited,Consultants Fees
Peterborough City Council,Peterborough Highway Services,Highway & Drainage Control,Agency Staff,06/02/2019,30213802,1336.00,Revenue,Reed Specialist Recruitment Limited,External Temporary Staff
Peterborough City Council,Development and Construction,Building Control,Agency Staff,06/02/2019,30213804,1075.05,Revenue,Reed Specialist Recruitment Limited,External Temporary Staff
Peterborough City Council,Adults,Independent Sector Placements,Services,06/02/2019,30213807,1127.52,Revenue,Hales Group Ltd,Home Care
Peterborough City Council,Adults,Independent Sector Placements,Services,06/02/2019,30213808,1011.36,Revenue,Hales Group Ltd,Home Care
Peterborough City Council,Adults,Independent Sector Placements,Services,06/02/2019,30213810,1953.60,Revenue,Hales Group Ltd,Home Care
Peterborough City Council,Adults,Independent Sector Placements,Services,06/02/2019,30213811,1009.95,Revenue,Hales Group Ltd,Home Care
Peterborough City Council,Commissioning and Commercial Operations,Clare Lodge,Agency Staff,06/02/2019,30213823,544.00,Revenue,Wrixon Care Services,External Temporary Staff
Peterborough City Council,Commissioning and Commercial Operations,Clare Lodge,Agency Staff,06/02/2019,30213831,1680.00,Revenue,Wrixon Care Services,External Temporary Staff
Peterborough City Council,Commissioning and Commercial Operations,Clare Lodge,Agency Staff,06/02/2019,30213832,1288.00,Revenue,Wrixon Care Services,External Temporary Staff
Peterborough City Council,Commissioning and Commercial Operations,Clare Lodge,Agency Staff,06/02/2019,30213836,4064.00,Revenue,Wrixon Care Services,External Temporary Staff
Peterborough City Council,Commissioning and Commercial Operations,Clare Lodge,Agency Staff,06/02/2019,30213837,2224.00,Revenue,Wrixon Care Services,External Temporary Staff
Peterborough City Council,Children's & Safeguarding,Access to Resources & Specialist Commissioning,Services,06/02/2019,30213849,3317.00,Revenue,National Fostering Agency,Boarding Out Fees
Peterborough City Council,Children's & Safeguarding,Access to Resources & Specialist Commissioning,Services,06/02/2019,30213850,3250.66,Revenue,National Fostering Agency,Boarding Out Fees
Peterborough City Council,Children's & Safeguarding,Access to Resources & Specialist Commissioning,Services,06/02/2019,30213851,3179.96,Revenue,National Fostering Agency,Boarding Out Fees
Peterborough City Council,Children's & Safeguarding,Access to Resources & Specialist Commissioning,Services,06/02/2019,30213901,3520.67,Revenue,National Fostering Agency,Boarding Out Fees
Peterborough City Council,Communities,Housing,Services,06/02/2019,30213973,2890.00,Revenue,Singh and Sons Property Management Ltd,Temporary Accommodation Costs
Peterborough City Council,Communities,Housing,Services,06/02/2019,30213976,2660.00,Revenue,Singh and Sons Property Management Ltd,Temporary Accommodation Costs
Peterborough City Council,Communities,Housing,Services,06/02/2019,30213979,2600.00,Revenue,Singh and Sons Property Management Ltd,Temporary Accommodation Costs
Peterborough City Council,Communities,Housing,Services,06/02/2019,30213980,2005.00,Revenue,Singh and Sons Property Management Ltd,Temporary Accommodation Costs
Peterborough City Council,Education,Special Educational Needs / Inclusion,Agency Staff,06/02/2019,30213997,3927.00,Revenue,Sanctuary Personnel Ltd,External Temporary Staff
Peterborough City Council,Education,Special Educational Needs / Inclusion,Agency Staff,06/02/2019,30214000,9900.00,Revenue,Permanent Futures Ltd,External Temporary Staff
Peterborough City Council,Education,Special Educational Needs / Inclusion,Agency Staff,06/02/2019,30214002,4240.00,Revenue,Permanent Futures Ltd,External Temporary Staff
Peterborough City Council,Corporate,Corporate,Non Revenue,06/02/2019,30214032,1200.00,Capital,M J Greaves,Building And Site Works
Peterborough City Council,Corporate,Corporate,Non Revenue,06/02/2019,30214033,650.00,Capital,M J Greaves,Building And Site Works
Peterborough City Council,Communities,Housing,Services,06/02/2019,30214038,3220.00,Revenue,Singh and Sons Property Management Ltd,Temporary Accommodation Costs
Peterborough City Council,Communities,Housing,Services,06/02/2019,30214039,2275.00,Revenue,Singh and Sons Property Management Ltd,Temporary Accommodation Costs
Peterborough City Council,Communities,Housing,Services,06/02/2019,30214040,2795.00,Revenue,Singh and Sons Property Management Ltd,Temporary Accommodation Costs
Peterborough City Council,Communities,Housing,Services,06/02/2019,30214041,2955.00,Revenue,Singh and Sons Property Management Ltd,Temporary Accommodation Costs
Peterborough City Council,Adults,Strategic Commissioning - Management,Agency Staff,06/02/2019,30214045,664.28,Revenue,Reed Specialist Recruitment Limited,External Temporary Staff
Peterborough City Council,Adults,Strategic Commissioning - Management,Agency Staff,06/02/2019,30214065,637.98,Revenue,Reed Specialist Recruitment Limited,External Temporary Staff
Peterborough City Council,Commissioning and Commercial Operations,Clare Lodge,Agency Staff,06/02/2019,30214085,1976.00,Revenue,Wrixon Care Services,External Temporary Staff
Peterborough City Council,Commissioning and Commercial Operations,Clare Lodge,Agency Staff,06/02/2019,30214086,1200.00,Revenue,Mana Resourcing Ltd,Supply Teachers
Peterborough City Council,Commissioning and Commercial Operations,Clare Lodge,Agency Staff,06/02/2019,30214087,1328.00,Revenue,Wrixon Care Services,External Temporary Staff
Peterborough City Council,Communities,Cultural Services,Services,06/02/2019,30214093,6000.00,Revenue,Peterborough Centre for Young Musicians,Hired Services
Peterborough City Council,City Centre Management,"Markets, Tourism & Events",Services,06/02/2019,30214174,2715.51,Revenue,The K A Wing Group Ltd,Contractors
Peterborough City Council,Communities,Cultural Services,Services,06/02/2019,30214215,840.00,Revenue,Peterborough Centre for Young Musicians,Hired Services
Peterborough City Council,Communities,Cultural Services,Services,06/02/2019,30214216,3150.00,Revenue,Peterborough Centre for Young Musicians,Hired Services
Peterborough City Council,Communities,Cultural Services,Services,06/02/2019,30214218,700.00,Revenue,Peterborough Centre for Young Musicians,Hired Services
Peterborough City Council,Adults,Independent Sector Placements,Services,06/02/2019,8000133331,619.26,Revenue,Cross Keys Homes,Home Care
Peterborough City Council,Adults,Independent Sector Placements,Services,06/02/2019,8000133332,822.75,Revenue,Cross Keys Homes,Home Care
Peterborough City Council,Adults,Independent Sector Placements,Services,06/02/2019,8000133333,526.25,Revenue,Cross Keys Homes,Home Care
Peterborough City Council,Adults,Independent Sector Placements,Services,06/02/2019,8000134295,1227.75,Revenue,Cross Keys Homes,Home Care
Peterborough City Council,Adults,Independent Sector Placements,Services,06/02/2019,8000135108,685.44,Revenue,Axiom Housing Association Ltd,Home Care
Peterborough City Council,Adults,Independent Sector Placements,Services,06/02/2019,8000135109,685.44,Revenue,Axiom Housing Association Ltd,Home Care
Peterborough City Council,Education,HTS & CSC Transport,Contract Hire and Operating Leases,06/02/2019,8000135169,782.40,Revenue,A2B Euro Cars,Hired Transport
Peterborough City Council,Education,HTS & CSC Transport,Contract Hire and Operating Leases,06/02/2019,8000135170,938.00,Revenue,A2B Euro Cars,Hired Transport
Peterborough City Council,Education,HTS & CSC Transport,Contract Hire and Operating Leases,06/02/2019,8000135171,988.00,Revenue,A2B Euro Cars,Hired Transport
Peterborough City Council,Education,HTS & CSC Transport,Contract Hire and Operating Leases,06/02/2019,8000135173,690.00,Revenue,R T Enterprises Ltd T/A Royal Taxis,Hired Transport
Peterborough City Council,Education,HTS & CSC Transport,Contract Hire and Operating Leases,06/02/2019,8000135174,639.34,Revenue,R T Enterprises Ltd T/A Royal Taxis,Hired Transport
Peterborough City Council,Education,HTS & CSC Transport,Contract Hire and Operating Leases,06/02/2019,8000135175,1336.05,Revenue,Goldstar Cabs Ltd,Hired Transport
Peterborough City Council,Education,HTS & CSC Transport,Contract Hire and Operating Leases,06/02/2019,8000135176,532.76,Revenue,Goldstar Cabs Ltd,Hired Transport
Peterborough City Council,Education,HTS & CSC Transport,Contract Hire and Operating Leases,06/02/2019,8000135177,877.04,Revenue,Goldstar Cabs Ltd,Hired Transport
Peterborough City Council,Education,HTS & CSC Transport,Contract Hire and Operating Leases,06/02/2019,8000135178,1740.00,Revenue,Goldstar Cabs Ltd,Hired Transport
Peterborough City Council,Education,HTS & CSC Transport,Contract Hire and Operating Leases,06/02/2019,8000135179,2520.00,Revenue,Goldstar Cabs Ltd,Hired Transport
Peterborough City Council,Education,HTS & CSC Transport,Contract Hire and Operating Leases,06/02/2019,8000135180,1103.50,Revenue,Goldstar Cabs Ltd,Hired Transport
Peterborough City Council,Education,HTS & CSC Transport,Contract Hire and Operating Leases,06/02/2019,8000135181,1337.50,Revenue,Goldstar Cabs Ltd,Hired Transport
Peterborough City Council,Education,HTS & CSC Transport,Contract Hire and Operating Leases,06/02/2019,8000135183,666.00,Revenue,Goldstar Cabs Ltd,Hired Transport
Peterborough City Council,Education,HTS & CSC Transport,Contract Hire and Operating Leases,06/02/2019,8000135184,1005.00,Revenue,Goldstar Cabs Ltd,Hired Transport
Peterborough City Council,Education,HTS & CSC Transport,Contract Hire and Operating Leases,06/02/2019,8000135185,630.00,Revenue,Goldstar Cabs Ltd,Hired Transport
Peterborough City Council,Education,HTS & CSC Transport,Contract Hire and Operating Leases,06/02/2019,8000135186,1122.00,Revenue,Goldstar Cabs Ltd,Hired Transport
Peterborough City Council,Education,HTS & CSC Transport,Contract Hire and Operating Leases,06/02/2019,8000135188,1196.49,Revenue,Goldstar Cabs Ltd,Hired Transport
Peterborough City Council,Education,HTS & CSC Transport,Contract Hire and Operating Leases,06/02/2019,8000135189,1244.25,Revenue,Goldstar Cabs Ltd,Hired Transport
Peterborough City Council,Education,HTS & CSC Transport,Contract Hire and Operating Leases,06/02/2019,8000135190,1505.75,Revenue,Goldstar Cabs Ltd,Hired Transport
Peterborough City Council,Education,HTS & CSC Transport,Contract Hire and Operating Leases,06/02/2019,8000135191,827.00,Revenue,Goldstar Cabs Ltd,Hired Transport
Peterborough City Council,Education,HTS & CSC Transport,Contract Hire and Operating Leases,06/02/2019,8000135192,708.50,Revenue,King Carz Ltd,Hired Transport
Peterborough City Council,Education,HTS & CSC Transport,Contract Hire and Operating Leases,06/02/2019,8000135193,1130.00,Revenue,King Carz Ltd,Hired Transport
Peterborough City Council,Education,HTS & CSC Transport,Contract Hire and Operating Leases,06/02/2019,8000135194,518.00,Revenue,King Carz Ltd,Hired Transport
Peterborough City Council,Education,HTS & CSC Transport,Contract Hire and Operating Leases,06/02/2019,8000135196,675.00,Revenue,The Taxi Firm Limited,Hired Transport
Peterborough City Council,Education,HTS & CSC Transport,Contract Hire and Operating Leases,06/02/2019,8000135197,1006.40,Revenue,The Taxi Firm Limited,Hired Transport
Peterborough City Council,Education,HTS & CSC Transport,Contract Hire and Operating Leases,06/02/2019,8000135206,526.80,Revenue,A2B Euro Cars,Hired Transport
Peterborough City Council,Education,HTS & CSC Transport,Contract Hire and Operating Leases,06/02/2019,8000135207,1326.00,Revenue,Goldstar Cabs Ltd,Hired Transport
Peterborough City Council,Education,HTS & CSC Transport,Contract Hire and Operating Leases,06/02/2019,8000135208,2775.00,Revenue,Goldstar Cabs Ltd,Hired Transport
Peterborough City Council,Education,HTS & CSC Transport,Contract Hire and Operating Leases,06/02/2019,8000135225,2907.40,Revenue,Marks Passenger Services Ltd,Hired Transport
Peterborough City Council,Education,HTS & CSC Transport,Contract Hire and Operating Leases,06/02/2019,8000135227,520.80,Revenue,Redacted Personal Information,Hired Transport
Peterborough City Council,Corporate,Corporate,Non Revenue,07/02/2019,8000136720,148500.00,Capital,Collings Law Ltd,Land/Building Acquisition
Peterborough City Council,Corporate,Corporate,Non Revenue,08/02/2019,30201940,7133.76,Capital,SSE Contracting Ltd,Building And Site Works
Peterborough City Council,Corporate,Corporate,Non Revenue,08/02/2019,30205225,2695.00,Capital,NPS Peterborough Ltd,Consultants Fees
Peterborough City Council,Children's & Safeguarding,Commissioning - CSC,Services,08/02/2019,30208871,1170.42,Revenue,CambridgeshireHome Care,Purchased Social Care Services
Peterborough City Council,Children's & Safeguarding,Access to Resources & Specialist Commissioning,Services,08/02/2019,30209891,10407.01,Revenue,Acorn Homes UK Ltd,Boarding Out Fees
Peterborough City Council,Children's & Safeguarding,Access to Resources & Specialist Commissioning,Services,08/02/2019,30209910,15278.58,Revenue,The Caldecott Foundation Ltd,Boarding Out Fees
Peterborough City Council,Adults,Independent Sector Placements,Services,08/02/2019,30209952,1159.18,Revenue,Athena (Ashlynn Grange),Residential Care
Peterborough City Council,Adults,Therapy/Reablement/Community Equipment,Agency Staff,08/02/2019,30210071,3636.04,Revenue,Commercial Services Trading Limited,External Temporary Staff
Peterborough City Council,Children's & Safeguarding,Commissioning - CSC,Services,08/02/2019,30210796,1208.17,Revenue,CambridgeshireHome Care,Purchased Social Care Services
Peterborough City Council,Children's & Safeguarding,Commissioning - CSC,Services,08/02/2019,30210798,729.94,Revenue,CambridgeshireHome Care,Purchased Social Care Services
Peterborough City Council,Peterborough Highway Services,Network and Traffic Management,Services,08/02/2019,30210945,3856.07,Revenue,Dynniq UK Ltd,Infrastructure Maintenance
Peterborough City Council,Peterborough Highway Services,Network and Traffic Management,Services,08/02/2019,30210947,3981.03,Revenue,Dynniq UK Ltd,Infrastructure Maintenance
Peterborough City Council,Legal Services,Legal Services,Agency Staff,08/02/2019,30210960,825.00,Revenue,Spinks Notary,External Temporary Staff
Peterborough City Council,Adults,Independent Sector Placements,Services,08/02/2019,30211348,5354.44,Revenue,Accomplish Group Limited (Orchard Hill),Residential Care
Peterborough City Council,Corporate,Corporate,Non Revenue,08/02/2019,30211358,2584.84,Capital,Casbon Building Services,Grant Payment
Peterborough City Council,Peterborough Highway Services,Network and Traffic Management,Services,08/02/2019,30211456,4439.37,Revenue,Cambridgeshire County Council,Real Time Passenger Information
Peterborough City Council,Children's & Safeguarding,Children's Social Care,Transport Costs,08/02/2019,30211479,1500.00,Revenue,Stagecoach in Peterborough,Public Transport
Peterborough City Council,Education,HTS & CSC Transport,Transport Costs,08/02/2019,30211498,94468.00,Revenue,Stagecoach in Peterborough,Public Transport
Peterborough City Council,Corporate,Corporate,Non Revenue,08/02/2019,30211579,500.00,Capital,Casbon Building Services,Grant Payment
Peterborough City Council,Adults,Independent Sector Placements,Services,08/02/2019,30211704,1032.88,Revenue,Athena (Ashlynn Grange),Residential Care
Peterborough City Council,Adults,Independent Sector Placements,Services,08/02/2019,30211705,1161.47,Revenue,Athena (Ashlynn Grange),Residential Care
Peterborough City Council,Adults,Independent Sector Placements,Services,08/02/2019,30211706,3738.91,Revenue,Athena (Ashlynn Grange),Residential Care
Peterborough City Council,Adults,Independent Sector Placements,Services,08/02/2019,30211707,920.92,Revenue,Athena (Ashlynn Grange),Residential Care
Peterborough City Council,Adults,Independent Sector Placements,Services,08/02/2019,30211708,1409.63,Revenue,Athena (Ashlynn Grange),Residential Care
Peterborough City Council,Adults,Independent Sector Placements,Services,08/02/2019,30211709,1492.23,Revenue,Athena (Ashlynn Grange),Residential Care
Peterborough City Council,Adults,Independent Sector Placements,Services,08/02/2019,30211710,1821.88,Revenue,Athena (Ashlynn Grange),Residential Care
Peterborough City Council,Adults,Independent Sector Placements,Services,08/02/2019,30211712,1821.88,Revenue,Athena (Ashlynn Grange),Residential Care
Peterborough City Council,Adults,Independent Sector Placements,Services,08/02/2019,30211713,2024.64,Revenue,Athena (Ashlynn Grange),Residential Care
Peterborough City Council,Adults,Independent Sector Placements,Services,08/02/2019,30211714,1444.23,Revenue,Athena (Ashlynn Grange),Residential Care
Peterborough City Council,Adults,Independent Sector Placements,Services,08/02/2019,30211717,1472.23,Revenue,Athena (Ashlynn Grange),Residential Care
Peterborough City Council,Adults,Independent Sector Placements,Services,08/02/2019,30211718,1685.72,Revenue,Athena (Ashlynn Grange),Residential Care
Peterborough City Council,Adults,Independent Sector Placements,Services,08/02/2019,30211719,2024.64,Revenue,Athena (Ashlynn Grange),Residential Care
Peterborough City Council,Adults,Independent Sector Placements,Services,08/02/2019,30211720,1997.83,Revenue,Athena (Ashlynn Grange),Residential Care
Peterborough City Council,Adults,Independent Sector Placements,Services,08/02/2019,30211721,1480.24,Revenue,Athena (Ashlynn Grange),Residential Care
Peterborough City Council,Adults,Independent Sector Placements,Services,08/02/2019,30211722,1437.72,Revenue,Athena (Ashlynn Grange),Residential Care
Peterborough City Council,Adults,Independent Sector Placements,Services,08/02/2019,30211728,1821.88,Revenue,Athena (Ashlynn Grange),Residential Care
Peterborough City Council,Adults,Independent Sector Placements,Services,08/02/2019,30211729,1014.96,Revenue,Athena (Ashlynn Grange),Residential Care
Peterborough City Council,Adults,Independent Sector Placements,Services,08/02/2019,30211734,1165.92,Revenue,Athena (Ashlynn Grange),Residential Care
Peterborough City Council,Adults,Independent Sector Placements,Services,08/02/2019,30211755,974.43,Revenue,Athena (Ashlynn Grange),Residential Care
Peterborough City Council,Adults,Independent Sector Placements,Services,08/02/2019,30211757,1980.00,Revenue,Athena (Ashlynn Grange),Residential Care
Peterborough City Council,Adults,Independent Sector Placements,Services,08/02/2019,30211758,1115.20,Revenue,Athena (Ashlynn Grange),Residential Care
Peterborough City Council,Adults,Independent Sector Placements,Services,08/02/2019,30211759,1649.48,Revenue,Athena (Ashlynn Grange),Residential Care
Peterborough City Council,Adults,Independent Sector Placements,Services,08/02/2019,30211760,1275.64,Revenue,Athena (Ashlynn Grange),Residential Care
Peterborough City Council,Adults,Independent Sector Placements,Services,08/02/2019,30211790,1527.32,Revenue,Athena (Ashlynn Grange),Residential Care
Peterborough City Council,Children's & Safeguarding,Access to Resources & Specialist Commissioning,Services,08/02/2019,30211855,780.01,Revenue,Swiis Foster Care Ltd,Boarding Out Fees
Peterborough City Council,Adults,Independent Sector Placements,Services,08/02/2019,30211877,1393.27,Revenue,Athena (Ashlynn Grange),Residential Care
Peterborough City Council,Adults,Independent Sector Placements,Services,08/02/2019,30211879,1297.48,Revenue,Athena (Ashlynn Grange),Residential Care
Peterborough City Council,Adults,Independent Sector Placements,Services,08/02/2019,30211882,2024.64,Revenue,Athena (Ashlynn Grange),Residential Care
Peterborough City Council,Adults,Independent Sector Placements,Services,08/02/2019,30211884,2024.64,Revenue,Athena (Ashlynn Grange),Residential Care
Peterborough City Council,Adults,Independent Sector Placements,Services,08/02/2019,30211886,1435.27,Revenue,Athena (Ashlynn Grange),Residential Care
Peterborough City Council,Adults,Independent Sector Placements,Services,08/02/2019,30211889,730.27,Revenue,Goldcare Homes t/a The Tudors Care Home,Residential Care
Peterborough City Council,Adults,Independent Sector Placements,Services,08/02/2019,30211890,2300.00,Revenue,Goldcare Homes t/a The Tudors Care Home,Residential Care
Peterborough City Council,Adults,Independent Sector Placements,Services,08/02/2019,30211894,1703.04,Revenue,Goldcare Homes t/a The Tudors Care Home,Residential Care
Peterborough City Council,Adults,Independent Sector Placements,Services,08/02/2019,30211895,1776.24,Revenue,Goldcare Homes t/a The Tudors Care Home,Residential Care
Peterborough City Council,Adults,Independent Sector Placements,Services,08/02/2019,30211896,982.12,Revenue,Goldcare Homes t/a The Tudors Care Home,Residential Care
Peterborough City Council,Adults,Independent Sector Placements,Services,08/02/2019,30211899,1507.60,Revenue,Goldcare Homes t/a The Tudors Care Home,Residential Care
Peterborough City Council,Adults,Independent Sector Placements,Services,08/02/2019,30211902,1594.68,Revenue,Goldcare Homes t/a The Tudors Care Home,Residential Care
Peterborough City Council,Adults,Independent Sector Placements,Services,08/02/2019,30211905,1517.28,Revenue,Goldcare Homes t/a The Tudors Care Home,Residential Care
Peterborough City Council,Adults,Independent Sector Placements,Services,08/02/2019,30211909,1424.76,Revenue,Goldcare Homes t/a The Tudors Care Home,Residential Care
Peterborough City Council,Commissioning and Commercial Operations,Commissioning,Services,08/02/2019,30211947,1428.00,Revenue,Crisp and Crane Training Limited,Training
Peterborough City Council,Commissioning and Commercial Operations,Commissioning,Services,08/02/2019,30211949,1698.50,Revenue,Crisp and Crane Training Limited,Training
Peterborough City Council,Commissioning and Commercial Operations,Commissioning,Services,08/02/2019,30211951,1170.00,Revenue,Crisp and Crane Training Limited,Training
Peterborough City Council,Adults,Independent Sector Placements,Services,08/02/2019,30212011,2833.63,Revenue,FIELD HOUSE (EYE) LTD,Residential Care
Peterborough City Council,Adults,Independent Sector Placements,Services,08/02/2019,30212012,600.00,Revenue,FIELD HOUSE (EYE) LTD,Residential Care
Peterborough City Council,Peterborough Serco Strategic Partnership,PSSP Retained Services,Services,08/02/2019,30212040,2269.70,Revenue,Whistl UK Ltd,Postage
Peterborough City Council,Adults,Independent Sector Placements,Services,08/02/2019,30212097,1076.63,Revenue,Athena (Ashlynn Grange),Residential Care
Peterborough City Council,Adults,Independent Sector Placements,Services,08/02/2019,30212122,3300.00,Revenue,Athena (Ashlynn Grange),Residential Care
Peterborough City Council,Adults,Independent Sector Placements,Services,08/02/2019,30212124,3300.00,Revenue,Athena (Ashlynn Grange),Residential Care
Peterborough City Council,Adults,Independent Sector Placements,Services,08/02/2019,30212154,-9075.00,Revenue,Athena (Ashlynn Grange),Residential Care
Peterborough City Council,Corporate,Corporate,Non Revenue,08/02/2019,30212331,4115.00,Capital,Casbon Building Services,Grant Payment
Peterborough City Council,Westcombe Engineering,Westcombe Engineering,"Tools, Equipment, Furniture & Materials",08/02/2019,30212860,526.70,Revenue,Barron Clark Castings Ltd,Materials
Peterborough City Council,Corporate,Corporate,Non Revenue,08/02/2019,30212923,5584.00,Capital,Casbon Building Services,Grant Payment
Peterborough City Council,Communities,Housing,Services,08/02/2019,30212935,9726.50,Revenue,Eastfield Guesthouse,Temporary Accommodation Costs
Peterborough City Council,Communities,Housing,Services,08/02/2019,30212937,9366.00,Revenue,Eastfield Guesthouse,Temporary Accommodation Costs
Peterborough City Council,Adults,Mental Health,Third Party Payments,08/02/2019,30212954,103447.50,Revenue,Cambs & P'boro NHS Foundation Trust,Third Party Payments - Contract
Peterborough City Council,Adults,Independent Sector Placements,Services,08/02/2019,30213086,1784.03,Revenue,BROADLEIGH NURSING HOME,Residential Care
Peterborough City Council,Adults,Independent Sector Placements,Services,08/02/2019,30213088,2402.40,Revenue,BROADLEIGH NURSING HOME,Residential Care
Peterborough City Council,Adults,Independent Sector Placements,Services,08/02/2019,30213089,2085.87,Revenue,BROADLEIGH NURSING HOME,Residential Care
Peterborough City Council,Corporate,Corporate,Non Revenue,08/02/2019,30213090,3889.00,Capital,Casbon Building Services,Grant Payment
Peterborough City Council,Corporate,Corporate,Non Revenue,08/02/2019,30213092,11867.40,Capital,Casbon Building Services,Grant Payment
Peterborough City Council,Adults,Independent Sector Placements,Services,08/02/2019,30213103,897.60,Revenue,BROADLEIGH NURSING HOME,Residential Care
Peterborough City Council,Adults,Independent Sector Placements,Services,08/02/2019,30213113,795.39,Revenue,BROADLEIGH NURSING HOME,Residential Care
Peterborough City Council,Adults,Independent Sector Placements,Services,08/02/2019,30213114,809.03,Revenue,BROADLEIGH NURSING HOME,Residential Care
Peterborough City Council,Adults,Independent Sector Placements,Services,08/02/2019,30213120,2156.36,Revenue,LAVENDER HOUSE RESIDENTIAL HOME,Residential Care
Peterborough City Council,Adults,Independent Sector Placements,Services,08/02/2019,30213121,1360.00,Revenue,LAVENDER HOUSE RESIDENTIAL HOME,Residential Care
Peterborough City Council,Adults,Independent Sector Placements,Services,08/02/2019,30213122,1943.60,Revenue,LAVENDER HOUSE RESIDENTIAL HOME,Residential Care
Peterborough City Council,Adults,Independent Sector Placements,Services,08/02/2019,30213135,2520.00,Revenue,LAVENDER HOUSE RESIDENTIAL HOME,Residential Care
Peterborough City Council,Adults,Independent Sector Placements,Services,08/02/2019,30213136,559.56,Revenue,LAVENDER HOUSE RESIDENTIAL HOME,Residential Care
Peterborough City Council,Adults,Independent Sector Placements,Services,08/02/2019,30213137,1985.52,Revenue,LAVENDER HOUSE RESIDENTIAL HOME,Residential Care
Peterborough City Council,Adults,Independent Sector Placements,Services,08/02/2019,30213138,1647.60,Revenue,LAVENDER HOUSE RESIDENTIAL HOME,Residential Care
Peterborough City Council,Adults,Independent Sector Placements,Services,08/02/2019,30213143,1273.00,Revenue,LAVENDER HOUSE RESIDENTIAL HOME,Residential Care
Peterborough City Council,Adults,Independent Sector Placements,Services,08/02/2019,30213144,1765.84,Revenue,LAVENDER HOUSE RESIDENTIAL HOME,Residential Care
Peterborough City Council,Adults,Independent Sector Placements,Services,08/02/2019,30213145,2180.96,Revenue,LAVENDER HOUSE RESIDENTIAL HOME,Residential Care
Peterborough City Council,Adults,Independent Sector Placements,Services,08/02/2019,30213146,1223.44,Revenue,LAVENDER HOUSE RESIDENTIAL HOME,Residential Care
Peterborough City Council,Adults,Independent Sector Placements,Services,08/02/2019,30213147,1782.92,Revenue,LAVENDER HOUSE RESIDENTIAL HOME,Residential Care
Peterborough City Council,Adults,Independent Sector Placements,Services,08/02/2019,30213162,2413.40,Revenue,Peterborough Care  The Maltings,Residential Care
Peterborough City Council,Adults,Independent Sector Placements,Services,08/02/2019,30213163,2483.28,Revenue,Peterborough Care  The Maltings,Residential Care
Peterborough City Council,Commissioning and Commercial Operations,Early Years & Quality Improvement,Services,08/02/2019,30213356,500.50,Revenue,Acorn Academy Day Nursery Ltd,Grant Payment
Peterborough City Council,Communities,Housing,Services,08/02/2019,30213463,560.00,Revenue,Redacted Personal Information,Financial Assistance
Peterborough City Council,Adults,Independent Sector Placements,Services,08/02/2019,30213464,-1821.88,Revenue,Avery House (Peterborough) t/a Brighterkind,Residential Care
Peterborough City Council,Communities,Housing,Services,08/02/2019,30213465,750.00,Revenue,Bee Lettings Ltd,Financial Assistance
Peterborough City Council,Adults,Independent Sector Placements,Services,08/02/2019,30213466,-1821.88,Revenue,Avery House (Peterborough) t/a Brighterkind,Residential Care
Peterborough City Council,Communities,Housing,Services,08/02/2019,30213483,750.00,Revenue,Bee Lettings Ltd,Financial Assistance
Peterborough City Council,Communities,Housing,Services,08/02/2019,30213485,625.00,Revenue,Redacted Personal Information,Financial Assistance
Peterborough City Council,Communities,Housing,Services,08/02/2019,30213486,550.00,Revenue,Redacted Personal Information,Financial Assistance
Peterborough City Council,Communities,Housing,Services,08/02/2019,30213487,565.00,Revenue,Redacted Personal Information,Financial Assistance
Peterborough City Council,Communities,Housing,Services,08/02/2019,30213492,750.00,Revenue,Record Property Solutions,Financial Assistance
Peterborough City Council,Communities,Housing,Services,08/02/2019,30213494,750.00,Revenue,Redacted Personal Information,Financial Assistance
Peterborough City Council,Adults,Independent Sector Placements,Services,08/02/2019,30213504,1281.48,Revenue,Avery House (Peterborough) t/a Brighterkind,Residential Care
Peterborough City Council,Adults,Independent Sector Placements,Services,08/02/2019,30213521,-532.67,Revenue,Avery House (Peterborough) t/a Brighterkind,Residential Care
Peterborough City Council,Children's & Safeguarding,Access to Resources & Specialist Commissioning,Services,08/02/2019,30213541,2968.28,Revenue,PCH Integration Services Ltd,Boarding Out Fees
Peterborough City Council,Corporate,Corporate,Non Revenue,08/02/2019,30213666,1473.42,Capital,Specialised Movers Ltd,Building And Site Works
Peterborough City Council,Children's & Safeguarding,Access to Resources & Specialist Commissioning,Services,08/02/2019,30213697,3764.33,Revenue,Compass Fostering East Limited,Boarding Out Fees
Peterborough City Council,Children's & Safeguarding,Access to Resources & Specialist Commissioning,Services,08/02/2019,30213698,3658.00,Revenue,Compass Fostering East Limited,Boarding Out Fees
Peterborough City Council,Children's & Safeguarding,Access to Resources & Specialist Commissioning,Services,08/02/2019,30213699,3764.33,Revenue,Compass Fostering East Limited,Boarding Out Fees
Peterborough City Council,Children's & Safeguarding,Access to Resources & Specialist Commissioning,Services,08/02/2019,30213700,3675.67,Revenue,Compass Fostering East Limited,Boarding Out Fees
Peterborough City Council,Children's & Safeguarding,Access to Resources & Specialist Commissioning,Services,08/02/2019,30213701,3658.00,Revenue,Compass Fostering East Limited,Boarding Out Fees
Peterborough City Council,Children's & Safeguarding,Access to Resources & Specialist Commissioning,Services,08/02/2019,30213703,3675.67,Revenue,Compass Fostering East Limited,Boarding Out Fees
Peterborough City Council,Adults,Finance,Third Party Payments,08/02/2019,30213771,50000.00,Revenue,Peterborough Citizens Advice Bureau,Third Party Payments - Contract
Peterborough City Council,Commissioning and Commercial Operations,Clare Lodge,Agency Staff,08/02/2019,30213824,632.00,Revenue,Wrixon Care Services,External Temporary Staff
Peterborough City Council,Commissioning and Commercial Operations,Clare Lodge,Agency Staff,08/02/2019,30213825,1448.00,Revenue,Wrixon Care Services,External Temporary Staff
Peterborough City Council,Children's & Safeguarding,Access to Resources & Specialist Commissioning,Services,08/02/2019,30213847,3157.35,Revenue,National Fostering Agency,Boarding Out Fees
Peterborough City Council,Children's & Safeguarding,Access to Resources & Specialist Commissioning,Services,08/02/2019,30213848,3454.33,Revenue,National Fostering Agency,Boarding Out Fees
Peterborough City Council,Children's & Safeguarding,Access to Resources & Specialist Commissioning,Services,08/02/2019,30213854,2967.01,Revenue,National Fostering Agency,Boarding Out Fees
Peterborough City Council,Children's & Safeguarding,Access to Resources & Specialist Commissioning,Services,08/02/2019,30213856,4557.00,Revenue,National Fostering Agency,Boarding Out Fees
Peterborough City Council,Children's & Safeguarding,Access to Resources & Specialist Commissioning,Services,08/02/2019,30213865,3350.79,Revenue,National Fostering Agency,Boarding Out Fees
Peterborough City Council,Children's & Safeguarding,Access to Resources & Specialist Commissioning,Services,08/02/2019,30213866,3157.35,Revenue,National Fostering Agency,Boarding Out Fees
Peterborough City Council,Children's & Safeguarding,Access to Resources & Specialist Commissioning,Services,08/02/2019,30213867,3454.33,Revenue,National Fostering Agency,Boarding Out Fees
Peterborough City Council,Children's & Safeguarding,Access to Resources & Specialist Commissioning,Services,08/02/2019,30213883,6421.34,Revenue,National Fostering Agency,Boarding Out Fees
Peterborough City Council,Children's & Safeguarding,Access to Resources & Specialist Commissioning,Services,08/02/2019,30213884,4057.59,Revenue,National Fostering Agency,Boarding Out Fees
Peterborough City Council,Children's & Safeguarding,Access to Resources & Specialist Commissioning,Services,08/02/2019,30213903,3520.67,Revenue,National Fostering Agency,Boarding Out Fees
Peterborough City Council,Children's & Safeguarding,Access to Resources & Specialist Commissioning,Services,08/02/2019,30213904,3520.67,Revenue,National Fostering Agency,Boarding Out Fees
Peterborough City Council,Children's & Safeguarding,Access to Resources & Specialist Commissioning,Services,08/02/2019,30213906,4557.00,Revenue,National Fostering Agency,Boarding Out Fees
Peterborough City Council,Children's & Safeguarding,Access to Resources & Specialist Commissioning,Services,08/02/2019,30213907,3454.33,Revenue,National Fostering Agency,Boarding Out Fees
Peterborough City Council,Children's & Safeguarding,Access to Resources & Specialist Commissioning,Services,08/02/2019,30213912,3454.33,Revenue,National Fostering Agency,Boarding Out Fees
Peterborough City Council,Children's & Safeguarding,Access to Resources & Specialist Commissioning,Services,08/02/2019,30213927,2967.01,Revenue,National Fostering Agency,Boarding Out Fees
Peterborough City Council,Children's & Safeguarding,Access to Resources & Specialist Commissioning,Services,08/02/2019,30213936,3454.33,Revenue,National Fostering Agency,Boarding Out Fees
Peterborough City Council,Children's & Safeguarding,Access to Resources & Specialist Commissioning,Services,08/02/2019,30213937,4557.00,Revenue,National Fostering Agency,Boarding Out Fees
Peterborough City Council,Children's & Safeguarding,Access to Resources & Specialist Commissioning,Services,08/02/2019,30213966,-7385.62,Revenue,Acorn Homes UK Ltd,Boarding Out Fees
Peterborough City Council,Corporate,Corporate,Non Revenue,08/02/2019,30214042,3540.00,Capital,WYG,Consultants Fees
Peterborough City Council,Corporate,Corporate,Non Revenue,08/02/2019,30214043,680.00,Capital,WYG,Consultants Fees
Peterborough City Council,Public Health,PH Commissioning,Third Party Payments,08/02/2019,30214048,1895.89,Revenue,Botolph Bridge Pharmacy,Third Party Payments - Contract
Peterborough City Council,Public Health,PH Commissioning,Third Party Payments,08/02/2019,30214049,952.49,Revenue,Lloyds Pharmacy,Third Party Payments - Contract
Peterborough City Council,Public Health,PH Commissioning,Third Party Payments,08/02/2019,30214054,4507.10,Revenue,Boroughbury Medical Centre,Third Party Payments - Contract
Peterborough City Council,Public Health,PH Commissioning,Third Party Payments,08/02/2019,30214055,1990.50,Revenue,Boroughbury Medical Centre,Third Party Payments - Contract
Peterborough City Council,Public Health,PH Commissioning,Third Party Payments,08/02/2019,30214059,1799.00,Revenue,Thorney Medical Practice,Third Party Payments - Contract
Peterborough City Council,Public Health,PH Commissioning,Third Party Payments,08/02/2019,30214062,12602.32,Revenue,Thorney Medical Practice,Third Party Payments - Contract
Peterborough City Council,Commissioning and Commercial Operations,Clare Lodge,Agency Staff,08/02/2019,30214084,936.00,Revenue,Wrixon Care Services,External Temporary Staff
Peterborough City Council,Public Health,PH Commissioning,Third Party Payments,08/02/2019,30214133,579.07,Revenue,Graham Young Pharmacy,Third Party Payments - Contract
Peterborough City Council,Public Health,PH Commissioning,Third Party Payments,08/02/2019,30214140,1092.00,Revenue,Paston Health Centre,Third Party Payments - Contract
Peterborough City Council,Public Health,PH Commissioning,Third Party Payments,08/02/2019,30214141,682.16,Revenue,Central Medical Centre,Third Party Payments - Contract
Peterborough City Council,Adults,Independent Sector Placements,Services,08/02/2019,30214149,3808.44,Revenue,Fins Care Ltd t/a St Margarets Rest Home,Residential Care
Peterborough City Council,Adults,Independent Sector Placements,Services,08/02/2019,30214150,3294.36,Revenue,Fins Care Ltd t/a St Margarets Rest Home,Residential Care
Peterborough City Council,Adults,Independent Sector Placements,Services,08/02/2019,30214151,5945.64,Revenue,Fins Care Ltd t/a St Margarets Rest Home,Residential Care
Peterborough City Council,Adults,Independent Sector Placements,Services,08/02/2019,30214153,3005.40,Revenue,Fins Care Ltd t/a St Margarets Rest Home,Residential Care
Peterborough City Council,Adults,Independent Sector Placements,Services,08/02/2019,30214154,5945.64,Revenue,Fins Care Ltd t/a St Margarets Rest Home,Residential Care
Peterborough City Council,Adults,Independent Sector Placements,Services,08/02/2019,30214155,2976.12,Revenue,Fins Care Ltd t/a St Margarets Rest Home,Residential Care
Peterborough City Council,Adults,Independent Sector Placements,Services,08/02/2019,30214156,9982.55,Revenue,Fins Care Ltd t/a St Margarets Rest Home,Residential Care
Peterborough City Council,Public Health,PH Commissioning,Third Party Payments,08/02/2019,30214157,1842.50,Revenue,Central Medical Centre,Third Party Payments - Contract
Peterborough City Council,Children's & Safeguarding,External Education Placements,Services,08/02/2019,30214199,2670.72,Revenue,Ethelbert Childrens Services,Boarding Out Fees
Peterborough City Council,Adults,Independent Sector Placements,Services,08/02/2019,30214202,4188.12,Revenue,Fins Care Ltd t/a St Margarets Rest Home,Residential Care
Peterborough City Council,Adults,Independent Sector Placements,Services,08/02/2019,30214204,5945.64,Revenue,Fins Care Ltd t/a St Margarets Rest Home,Residential Care
Peterborough City Council,Adults,Independent Sector Placements,Services,08/02/2019,30214207,3583.08,Revenue,Fins Care Ltd t/a St Margarets Rest Home,Residential Care
Peterborough City Council,Adults,Independent Sector Placements,Services,08/02/2019,30214208,910.94,Revenue,Fins Care Ltd t/a St Margarets Rest Home,Residential Care
Peterborough City Council,Adults,Independent Sector Placements,Services,08/02/2019,30214209,2648.00,Revenue,PHILIA LODGE REST HOME,Residential Care
Peterborough City Council,Adults,Independent Sector Placements,Services,08/02/2019,30214210,2648.00,Revenue,PHILIA LODGE REST HOME,Residential Care
Peterborough City Council,Adults,Independent Sector Placements,Services,08/02/2019,30214211,2648.00,Revenue,PHILIA LODGE REST HOME,Residential Care
Peterborough City Council,Adults,Independent Sector Placements,Services,08/02/2019,30214212,1674.44,Revenue,PHILIA LODGE REST HOME,Residential Care
Peterborough City Council,Adults,Independent Sector Placements,Services,08/02/2019,30214214,1968.96,Revenue,PHILIA LODGE REST HOME,Residential Care
Peterborough City Council,Adults,Independent Sector Placements,Services,08/02/2019,30214217,1236.72,Revenue,PHILIA LODGE REST HOME,Residential Care
Peterborough City Council,Adults,Independent Sector Placements,Services,08/02/2019,30214220,1994.20,Revenue,PHILIA LODGE REST HOME,Residential Care
Peterborough City Council,Adults,Independent Sector Placements,Services,08/02/2019,30214221,1822.44,Revenue,PHILIA LODGE REST HOME,Residential Care
Peterborough City Council,Adults,Independent Sector Placements,Services,08/02/2019,30214224,2648.00,Revenue,PHILIA LODGE REST HOME,Residential Care
Peterborough City Council,Adults,Independent Sector Placements,Services,08/02/2019,30214228,3233.44,Revenue,STAR RESIDENTIAL HOME LTD,Residential Care
Peterborough City Council,Adults,Independent Sector Placements,Services,08/02/2019,30214229,2019.16,Revenue,STAR RESIDENTIAL HOME LTD,Residential Care
Peterborough City Council,Adults,Independent Sector Placements,Services,08/02/2019,30214230,2051.40,Revenue,STAR RESIDENTIAL HOME LTD,Residential Care
Peterborough City Council,Adults,Independent Sector Placements,Services,08/02/2019,30214231,2144.20,Revenue,STAR RESIDENTIAL HOME LTD,Residential Care
Peterborough City Council,Adults,Independent Sector Placements,Services,08/02/2019,30214233,1721.92,Revenue,STAR RESIDENTIAL HOME LTD,Residential Care
Peterborough City Council,Adults,Independent Sector Placements,Services,08/02/2019,30214234,2047.60,Revenue,STAR RESIDENTIAL HOME LTD,Residential Care
Peterborough City Council,Adults,Independent Sector Placements,Services,08/02/2019,30214235,2047.60,Revenue,STAR RESIDENTIAL HOME LTD,Residential Care
Peterborough City Council,Adults,Independent Sector Placements,Services,08/02/2019,30214236,1947.40,Revenue,STAR RESIDENTIAL HOME LTD,Residential Care
Peterborough City Council,Adults,Independent Sector Placements,Services,08/02/2019,30214237,2052.40,Revenue,STAR RESIDENTIAL HOME LTD,Residential Care
Peterborough City Council,Children's & Safeguarding,Children's Social Care,Agency Staff,08/02/2019,30214238,1315.55,Revenue,Service Care Solutions Ltd,External Temporary Staff
Peterborough City Council,Corporate,Corporate,Non Revenue,08/02/2019,30214252,2137.50,Capital,NPS Peterborough Ltd,Consultants Fees
Peterborough City Council,Corporate,Corporate,Non Revenue,08/02/2019,30214253,47224.00,Capital,NPS Peterborough Ltd,Consultants Fees
Peterborough City Council,Corporate,Corporate,Non Revenue,08/02/2019,30214255,1600.00,Capital,NPS Peterborough Ltd,Consultants Fees
Peterborough City Council,Adults,Independent Sector Placements,Services,08/02/2019,30214259,2648.00,Revenue,PHILIA LODGE REST HOME,Residential Care
Peterborough City Council,Adults,Independent Sector Placements,Services,08/02/2019,30214260,2600.80,Revenue,STAR RESIDENTIAL HOME LTD,Residential Care
Peterborough City Council,Adults,Independent Sector Placements,Services,08/02/2019,30214261,1909.36,Revenue,STAR RESIDENTIAL HOME LTD,Residential Care
Peterborough City Council,Adults,Independent Sector Placements,Services,08/02/2019,30214262,2235.32,Revenue,STAR RESIDENTIAL HOME LTD,Residential Care
Peterborough City Council,Communities,Cultural Services,Services,08/02/2019,30214266,1200.00,Revenue,Peterborough Centre for Young Musicians,Hired Services
Peterborough City Council,Communities,Cultural Services,Services,08/02/2019,30214267,640.00,Revenue,Peterborough Centre for Young Musicians,Hired Services
Peterborough City Council,Corporate,Corporate,Non Revenue,08/02/2019,30214269,9374.08,Balance Sheet,Plexus Law,Insurance Claims
Peterborough City Council,Adults,Independent Sector Placements,Services,08/02/2019,30214270,-1431.48,Revenue,LAVENDER HOUSE RESIDENTIAL HOME,Residential Care
Peterborough City Council,Adults,Independent Sector Placements,Services,08/02/2019,30214272,1827.32,Revenue,Ashmere,Residential Care
Peterborough City Council,Adults,Independent Sector Placements,Services,08/02/2019,30214274,913.72,Revenue,Park Vista Care Home,Residential Care
Peterborough City Council,Communities,Cultural Services,Services,08/02/2019,30214282,704.00,Revenue,Peterborough Centre for Young Musicians,Hired Services
Peterborough City Council,Children's & Safeguarding,External Education Placements,Services,08/02/2019,30214316,2138.00,Revenue,Stamford Welland Academy,Out Of Area Education Costs
Peterborough City Council,Adults,Independent Sector Placements,Services,08/02/2019,30214327,675.44,Revenue,Park Vista Care Home,Residential Care
Peterborough City Council,Adults,Independent Sector Placements,Services,08/02/2019,30214329,813.52,Revenue,Park Vista Care Home,Residential Care
Peterborough City Council,Adults,Independent Sector Placements,Services,08/02/2019,30214330,1251.28,Revenue,Park Vista Care Home,Residential Care
Peterborough City Council,Adults,Independent Sector Placements,Services,08/02/2019,30214331,628.64,Revenue,Park Vista Care Home,Residential Care
Peterborough City Council,Adults,Independent Sector Placements,Services,08/02/2019,30214332,831.64,Revenue,Park Vista Care Home,Residential Care
Peterborough City Council,Adults,Independent Sector Placements,Services,08/02/2019,30214333,1023.94,Revenue,Park Vista Care Home,Residential Care
Peterborough City Council,Adults,Independent Sector Placements,Services,08/02/2019,30214334,1821.88,Revenue,Park Vista Care Home,Residential Care
Peterborough City Council,Adults,Independent Sector Placements,Services,08/02/2019,30214335,2800.00,Revenue,Park Vista Care Home,Residential Care
Peterborough City Council,Adults,Independent Sector Placements,Services,08/02/2019,30214336,949.68,Revenue,Park Vista Care Home,Residential Care
Peterborough City Council,Adults,Independent Sector Placements,Services,08/02/2019,30214338,1205.28,Revenue,Park Vista Care Home,Residential Care
Peterborough City Council,Adults,Independent Sector Placements,Services,08/02/2019,30214339,1089.27,Revenue,Park Vista Care Home,Residential Care
Peterborough City Council,Adults,Independent Sector Placements,Services,08/02/2019,30214340,1265.84,Revenue,Park Vista Care Home,Residential Care
Peterborough City Council,Adults,Independent Sector Placements,Services,08/02/2019,30214342,1079.00,Revenue,Park Vista Care Home,Residential Care
Peterborough City Council,Adults,Independent Sector Placements,Services,08/02/2019,30214344,2400.00,Revenue,Park Vista Care Home,Residential Care
Peterborough City Council,Adults,Independent Sector Placements,Services,08/02/2019,30214345,1269.48,Revenue,Park Vista Care Home,Residential Care
Peterborough City Council,Adults,Independent Sector Placements,Services,08/02/2019,30214346,995.00,Revenue,Park Vista Care Home,Residential Care
Peterborough City Council,Adults,Independent Sector Placements,Services,08/02/2019,30214354,1163.32,Revenue,Park Vista Care Home,Residential Care
Peterborough City Council,Adults,Independent Sector Placements,Services,08/02/2019,30214355,1821.88,Revenue,Park Vista Care Home,Residential Care
Peterborough City Council,Children's & Safeguarding,Access to Resources & Specialist Commissioning,Services,08/02/2019,30214411,2856.00,Revenue,Fostering Solutions Limited,Boarding Out Fees
Peterborough City Council,Adults,Independent Sector Placements,Services,08/02/2019,30214432,17328.00,Revenue,Avery House (Peterborough) t/a Brighterkind,Residential Care
Peterborough City Council,Adults,Independent Sector Placements,Services,08/02/2019,30214433,6384.00,Revenue,Avery House (Peterborough) t/a Brighterkind,Residential Care
Peterborough City Council,Commissioning and Commercial Operations,Commissioning Team,Agency Staff,08/02/2019,30214451,659.33,Revenue,Reed Specialist Recruitment Limited,External Temporary Staff
Peterborough City Council,Communities,Community Safety,Third Party Payments,08/02/2019,30214485,6250.00,Revenue,Midland Environmental Contracts Ltd,Third Party Payments - Contract
Peterborough City Council,Adults,Home Services Delivery Model,Third Party Payments,08/02/2019,30214513,8259.09,Revenue,Cross Keys Homes,Grant-Third Party
Peterborough City Council,Legal Services,Legal Services,Agency Staff,08/02/2019,30214521,767.79,Revenue,Ten-Percent.co.uk Limited,External Temporary Staff
Peterborough City Council,Children's & Safeguarding,Access to Resources & Specialist Commissioning,Services,08/02/2019,30214523,16798.90,Revenue,Aurora Care & Education Opco Ltd,Boarding Out Fees
Peterborough City Council,Children's & Safeguarding,Access to Resources & Specialist Commissioning,Services,08/02/2019,30214524,16798.90,Revenue,Aurora Care & Education Opco Ltd,Boarding Out Fees
Peterborough City Council,Children's & Safeguarding,Children's Social Care,Transport Costs,08/02/2019,30214544,4623.65,Revenue,R S P LTD,Public Transport
Peterborough City Council,Westcombe Engineering,Westcombe Engineering,"Tools, Equipment, Furniture & Materials",08/02/2019,30214549,900.20,Revenue,Rowes Precision Products Ltd,Materials
Peterborough City Council,Adults,Other Services,Third Party Payments,08/02/2019,30214578,9548.85,Revenue,P'Boro Council For Voluntary Srvs (PCVS),Third Party Payments - Contract
Peterborough City Council,Education,HTS & CSC Transport,Contract Hire and Operating Leases,08/02/2019,8000135246,1356.00,Revenue,Redacted Personal Information,Hired Transport
Peterborough City Council,Education,HTS & CSC Transport,Contract Hire and Operating Leases,08/02/2019,8000135248,940.12,Revenue,Redacted Personal Information,Hired Transport
Peterborough City Council,Education,HTS & CSC Transport,Contract Hire and Operating Leases,08/02/2019,8000135249,923.62,Revenue,Redacted Personal Information,Hired Transport
Peterborough City Council,Education,HTS & CSC Transport,Contract Hire and Operating Leases,08/02/2019,8000135252,2046.70,Revenue,Redacted Personal Information,Hired Transport
Peterborough City Council,Education,HTS & CSC Transport,Contract Hire and Operating Leases,08/02/2019,8000135253,546.37,Revenue,Redacted Personal Information,Hired Transport
Peterborough City Council,Education,HTS & CSC Transport,Contract Hire and Operating Leases,08/02/2019,8000135282,534.00,Revenue,Goldstar Cabs Ltd,Hired Transport
Peterborough City Council,Education,HTS & CSC Transport,Contract Hire and Operating Leases,08/02/2019,8000135283,979.00,Revenue,Goldstar Cabs Ltd,Hired Transport
Peterborough City Council,Education,HTS & CSC Transport,Contract Hire and Operating Leases,08/02/2019,8000135286,954.00,Revenue,Goldstar Cabs Ltd,Hired Transport
Peterborough City Council,Education,HTS & CSC Transport,Contract Hire and Operating Leases,08/02/2019,8000135287,1395.00,Revenue,Goldstar Cabs Ltd,Hired Transport
Peterborough City Council,Education,HTS & CSC Transport,Contract Hire and Operating Leases,08/02/2019,8000135305,1658.83,Revenue,Redacted Personal Information,Hired Transport
Peterborough City Council,Education,HTS & CSC Transport,Contract Hire and Operating Leases,08/02/2019,8000135306,1066.50,Revenue,Redacted Personal Information,Hired Transport
Peterborough City Council,Corporate,Corporate,Non Revenue,08/02/2019,8000136720,142500.00,Capital,DC Law,Land/Building Acquisition
Peterborough City Council,Corporate,Corporate,Non Revenue,08/02/2019,8000136720,192500.00,Capital,Premier Property Lawyers,Land/Building Acquisition
Peterborough City Council,Children's & Safeguarding,Access to Resources & Specialist Commissioning,Services,11/02/2019,30210242,-1477.05,Revenue,Foster Care Associates Ltd FCA,Boarding Out Fees
Peterborough City Council,Adults,Strategic Commissioning - Management,Third Party Payments,11/02/2019,30211067,63750.00,Revenue,VoiceAbility,Third Party Payments - Contract
Peterborough City Council,Children's & Safeguarding,Access to Resources & Specialist Commissioning,Services,11/02/2019,30211224,5712.86,Revenue,Fostering Innovations Ltd,Boarding Out Fees
Peterborough City Council,Children's & Safeguarding,Access to Resources & Specialist Commissioning,Services,11/02/2019,30211225,3494.14,Revenue,Fostering Innovations Ltd,Boarding Out Fees
Peterborough City Council,Children's & Safeguarding,Access to Resources & Specialist Commissioning,Services,11/02/2019,30211362,4011.97,Revenue,Fostering Solutions Limited,Boarding Out Fees
Peterborough City Council,Children's & Safeguarding,Access to Resources & Specialist Commissioning,Services,11/02/2019,30211365,1359.60,Revenue,Fostering Solutions Limited,Boarding Out Fees
Peterborough City Council,Children's & Safeguarding,Access to Resources & Specialist Commissioning,Services,11/02/2019,30211367,3548.26,Revenue,Fostering Solutions Limited,Boarding Out Fees
Peterborough City Council,Children's & Safeguarding,Access to Resources & Specialist Commissioning,Services,11/02/2019,30211370,4011.97,Revenue,Fostering Solutions Limited,Boarding Out Fees
Peterborough City Council,Children's & Safeguarding,Access to Resources & Specialist Commissioning,Services,11/02/2019,30211372,6009.66,Revenue,Fostering Solutions Limited,Boarding Out Fees
Peterborough City Council,Children's & Safeguarding,Access to Resources & Specialist Commissioning,Services,11/02/2019,30211375,3620.80,Revenue,Fostering Solutions Limited,Boarding Out Fees
Peterborough City Council,Children's & Safeguarding,Access to Resources & Specialist Commissioning,Services,11/02/2019,30211381,3620.80,Revenue,Fostering Solutions Limited,Boarding Out Fees
Peterborough City Council,Children's & Safeguarding,Access to Resources & Specialist Commissioning,Services,11/02/2019,30211382,3620.80,Revenue,Fostering Solutions Limited,Boarding Out Fees
Peterborough City Council,Children's & Safeguarding,Access to Resources & Specialist Commissioning,Services,11/02/2019,30211383,3548.26,Revenue,Fostering Solutions Limited,Boarding Out Fees
Peterborough City Council,Children's & Safeguarding,Access to Resources & Specialist Commissioning,Services,11/02/2019,30211384,3620.80,Revenue,Fostering Solutions Limited,Boarding Out Fees
Peterborough City Council,Children's & Safeguarding,Access to Resources & Specialist Commissioning,Services,11/02/2019,30211385,1777.76,Revenue,Fostering Solutions Limited,Boarding Out Fees
Peterborough City Council,Children's & Safeguarding,Access to Resources & Specialist Commissioning,Services,11/02/2019,30211388,3541.44,Revenue,Fostering Solutions Limited,Boarding Out Fees
Peterborough City Council,Children's & Safeguarding,Access to Resources & Specialist Commissioning,Services,11/02/2019,30211389,1666.65,Revenue,Fostering Solutions Limited,Boarding Out Fees
Peterborough City Council,Children's & Safeguarding,Access to Resources & Specialist Commissioning,Services,11/02/2019,30211410,3555.70,Revenue,Foster Care Associates Ltd FCA,Boarding Out Fees
Peterborough City Council,Children's & Safeguarding,Access to Resources & Specialist Commissioning,Services,11/02/2019,30211411,668.61,Revenue,Foster Care Associates Ltd FCA,Boarding Out Fees
Peterborough City Council,Children's & Safeguarding,Access to Resources & Specialist Commissioning,Services,11/02/2019,30211412,2479.20,Revenue,Foster Care Associates Ltd FCA,Boarding Out Fees
Peterborough City Council,Children's & Safeguarding,Access to Resources & Specialist Commissioning,Services,11/02/2019,30211414,4248.89,Revenue,Foster Care Associates Ltd FCA,Boarding Out Fees
Peterborough City Council,Children's & Safeguarding,Access to Resources & Specialist Commissioning,Services,11/02/2019,30211415,3113.33,Revenue,Foster Care Associates Ltd FCA,Boarding Out Fees
Peterborough City Council,Children's & Safeguarding,Access to Resources & Specialist Commissioning,Services,11/02/2019,30211419,2556.00,Revenue,Foster Care Associates Ltd FCA,Boarding Out Fees
Peterborough City Council,Children's & Safeguarding,Access to Resources & Specialist Commissioning,Services,11/02/2019,30211424,3626.69,Revenue,Foster Care Associates Ltd FCA,Boarding Out Fees
Peterborough City Council,Children's & Safeguarding,Access to Resources & Specialist Commissioning,Services,11/02/2019,30211427,4380.30,Revenue,Foster Care Associates Ltd FCA,Boarding Out Fees
Peterborough City Council,Children's & Safeguarding,Access to Resources & Specialist Commissioning,Services,11/02/2019,30211432,3556.01,Revenue,Foster Care Associates Ltd FCA,Boarding Out Fees
Peterborough City Council,Children's & Safeguarding,Access to Resources & Specialist Commissioning,Services,11/02/2019,30211435,4292.69,Revenue,Foster Care Associates Ltd FCA,Boarding Out Fees
Peterborough City Council,Children's & Safeguarding,Access to Resources & Specialist Commissioning,Services,11/02/2019,30211438,689.29,Revenue,Foster Care Associates Ltd FCA,Boarding Out Fees
Peterborough City Council,Children's & Safeguarding,Access to Resources & Specialist Commissioning,Services,11/02/2019,30211439,3556.01,Revenue,Foster Care Associates Ltd FCA,Boarding Out Fees
Peterborough City Council,Children's & Safeguarding,Access to Resources & Specialist Commissioning,Services,11/02/2019,30211440,3555.70,Revenue,Foster Care Associates Ltd FCA,Boarding Out Fees
Peterborough City Council,Westcombe Engineering,Westcombe Engineering,"Tools, Equipment, Furniture & Materials",11/02/2019,30211548,2433.50,Revenue,Thomas Dudley Foundry Ltd,Materials
Peterborough City Council,Education,Special Educational Needs / Inclusion,Services,11/02/2019,30211574,2625.00,Revenue,ELYSIUM HEALTHCARE LTD,Boarding Out Fees
Peterborough City Council,Corporate,Corporate,Non Revenue,11/02/2019,30211598,3962.00,Capital,Rawheat Heating & Plumbing Eng.,Building And Site Works
Peterborough City Council,Peterborough Highway Services,Transport & Infrastructure Commissioning,Third Party Payments,11/02/2019,30211624,1136.50,Revenue,Royal Voluntary Service,Grant-Third Party
Peterborough City Council,Commissioning and Commercial Operations,Commissioning,Services,11/02/2019,30211625,37500.00,Revenue,Cambs & P'boro NHS Foundation Trust,Hired Services
Peterborough City Council,Commissioning and Commercial Operations,Commissioning,Services,11/02/2019,30211630,37500.00,Revenue,Cambs & P'boro NHS Foundation Trust,Hired Services
Peterborough City Council,Legal Services,Legal Services,Services,11/02/2019,30212018,1950.00,Revenue,"Pilkington, Ms Abigail",Legal Costs
Peterborough City Council,Legal Services,Legal Services,Services,11/02/2019,30212019,3500.00,Revenue,"Pilkington, Ms Abigail",Legal Costs
Peterborough City Council,Corporate,Corporate,Non Revenue,11/02/2019,30212051,12790.85,Capital,Enterprise Managed Services Limited,Building And Site Works
Peterborough City Council,Corporate Property,Commercial Propety,Repair & Maintenance of Buildings,11/02/2019,30212056,2165.43,Revenue,Enterprise Managed Services Limited,Premises Maintenance
Peterborough City Council,Westcombe Engineering,Westcombe Engineering,"Tools, Equipment, Furniture & Materials",11/02/2019,30212221,956.80,Revenue,Carillon Industrial Services Ltd,Tools
Peterborough City Council,Adults,Independent Sector Placements,Services,11/02/2019,30212336,1232.52,Revenue,FIELD HOUSE (EYE) LTD,Residential Care
Peterborough City Council,Adults,Independent Sector Placements,Services,11/02/2019,30212337,1847.60,Revenue,FIELD HOUSE (EYE) LTD,Residential Care
Peterborough City Council,Adults,Independent Sector Placements,Services,11/02/2019,30212338,1269.48,Revenue,FIELD HOUSE (EYE) LTD,Residential Care
Peterborough City Council,Adults,Independent Sector Placements,Services,11/02/2019,30212339,1747.60,Revenue,FIELD HOUSE (EYE) LTD,Residential Care
Peterborough City Council,Adults,Independent Sector Placements,Services,11/02/2019,30212340,1747.60,Revenue,FIELD HOUSE (EYE) LTD,Residential Care
Peterborough City Council,Adults,Independent Sector Placements,Services,11/02/2019,30212341,1315.08,Revenue,FIELD HOUSE (EYE) LTD,Residential Care
Peterborough City Council,Adults,Independent Sector Placements,Services,11/02/2019,30212363,600.00,Revenue,FIELD HOUSE (EYE) LTD,Residential Care
Peterborough City Council,Adults,Independent Sector Placements,Services,11/02/2019,30212364,562.28,Revenue,FIELD HOUSE (EYE) LTD,Residential Care
Peterborough City Council,Adults,Independent Sector Placements,Services,11/02/2019,30212365,1757.80,Revenue,FIELD HOUSE (EYE) LTD,Residential Care
Peterborough City Council,Adults,Independent Sector Placements,Services,11/02/2019,30212366,2320.00,Revenue,FIELD HOUSE (EYE) LTD,Residential Care
Peterborough City Council,Adults,Independent Sector Placements,Services,11/02/2019,30212367,1855.60,Revenue,FIELD HOUSE (EYE) LTD,Residential Care
Peterborough City Council,Education,PFI,Services,11/02/2019,30212446,2353.22,Revenue,IIC by Education (P'boro) Ltd,Service Charge
Peterborough City Council,Adults,Independent Sector Placements,Services,11/02/2019,30212503,1535.56,Revenue,FIELD HOUSE (EYE) LTD,Residential Care
Peterborough City Council,Adults,Independent Sector Placements,Services,11/02/2019,30212504,1576.64,Revenue,FIELD HOUSE (EYE) LTD,Residential Care
Peterborough City Council,Adults,Independent Sector Placements,Services,11/02/2019,30212505,1741.64,Revenue,FIELD HOUSE (EYE) LTD,Residential Care
Peterborough City Council,Adults,Independent Sector Placements,Services,11/02/2019,30212506,952.84,Revenue,FIELD HOUSE (EYE) LTD,Residential Care
Peterborough City Council,Adults,Independent Sector Placements,Services,11/02/2019,30212508,1687.60,Revenue,FIELD HOUSE (EYE) LTD,Residential Care
Peterborough City Council,Adults,Independent Sector Placements,Services,11/02/2019,30212509,1241.84,Revenue,FIELD HOUSE (EYE) LTD,Residential Care
Peterborough City Council,Adults,Independent Sector Placements,Services,11/02/2019,30212510,1124.56,Revenue,FIELD HOUSE (EYE) LTD,Residential Care
Peterborough City Council,Adults,Independent Sector Placements,Services,11/02/2019,30212512,1365.28,Revenue,FIELD HOUSE (EYE) LTD,Residential Care
Peterborough City Council,Adults,Independent Sector Placements,Services,11/02/2019,30212513,1110.44,Revenue,FIELD HOUSE (EYE) LTD,Residential Care
Peterborough City Council,Adults,Independent Sector Placements,Services,11/02/2019,30212514,1557.56,Revenue,FIELD HOUSE (EYE) LTD,Residential Care
Peterborough City Council,Adults,Independent Sector Placements,Services,11/02/2019,30212515,1459.52,Revenue,PRIME LIFE LTD (Caenarvon House),Residential Care
Peterborough City Council,Children's & Safeguarding,Access to Resources & Specialist Commissioning,Services,11/02/2019,30212789,2860.77,Revenue,Fostering Solutions Limited,Boarding Out Fees
Peterborough City Council,Westcombe Engineering,Westcombe Engineering,"Tools, Equipment, Furniture & Materials",11/02/2019,30212853,520.30,Revenue,Barron Clark Castings Ltd,Materials
Peterborough City Council,Commissioning and Commercial Operations,Clare Lodge,Agency Staff,11/02/2019,30213191,1225.00,Revenue,Mana Resourcing Ltd,Supply Teachers
Peterborough City Council,Children's & Safeguarding,Access to Resources & Specialist Commissioning,Services,11/02/2019,30213207,25445.51,Revenue,Aspire Scotland Ltd,Boarding Out Fees
Peterborough City Council,Children's & Safeguarding,Access to Resources & Specialist Commissioning,Services,11/02/2019,30213322,558.66,Revenue,Fostering Solutions Limited,Boarding Out Fees
Peterborough City Council,Communities,Housing,Services,11/02/2019,30213759,550.00,Revenue,Redacted Personal Information,Financial Assistance
Peterborough City Council,Children's & Safeguarding,Access to Resources & Specialist Commissioning,Services,11/02/2019,30213939,840.00,Revenue,Florinee Homes Ltd,Boarding Out Fees
Peterborough City Council,Public Health,PH Commissioning,Third Party Payments,11/02/2019,30214137,2887.50,Revenue,Old Fletton Surgery,Third Party Payments - Contract
Peterborough City Council,Public Health,PH Commissioning,Third Party Payments,11/02/2019,30214138,908.84,Revenue,Old Fletton Surgery,Third Party Payments - Contract
Peterborough City Council,Public Health,PH Commissioning,Third Party Payments,11/02/2019,30214139,1157.44,Revenue,Westwood Clinic,Third Party Payments - Contract
Peterborough City Council,Corporate,Corporate,Non Revenue,11/02/2019,30214285,3150.00,Capital,EMS Stairlifts,Grant Payment
Peterborough City Council,Commissioning and Commercial Operations,Early Years & Quality Improvement,Services,11/02/2019,30214286,18527.85,Revenue,Gladstone Primary Academy,Grant Payment
Peterborough City Council,Children's & Safeguarding,Access to Resources & Specialist Commissioning,Services,11/02/2019,30214459,3255.00,Revenue,National Fostering Agency,Boarding Out Fees
Peterborough City Council,Adults,Independent Sector Placements,Services,11/02/2019,30214514,4871.43,Revenue,Askham Village Community Ltd,Residential Care
Peterborough City Council,Adults,Independent Sector Placements,Services,11/02/2019,30214515,4871.43,Revenue,Askham Village Community Ltd,Residential Care
Peterborough City Council,Adults,Independent Sector Placements,Services,11/02/2019,30214518,4871.43,Revenue,Askham Village Community Ltd,Residential Care
Peterborough City Council,Adults,Independent Sector Placements,Services,11/02/2019,30214520,4871.43,Revenue,Askham Village Community Ltd,Residential Care
Peterborough City Council,Adults,Independent Sector Placements,Services,11/02/2019,30214574,625.25,Revenue,Caring Crew,Home Care
Peterborough City Council,Adults,Independent Sector Placements,Services,11/02/2019,30214609,620.10,Revenue,Park Vista Care Home,Residential Care
Peterborough City Council,Adults,Independent Sector Placements,Services,11/02/2019,30214610,1159.18,Revenue,Park Vista Care Home,Residential Care
Peterborough City Council,Adults,Independent Sector Placements,Services,11/02/2019,30214658,-1800.00,Revenue,Park Vista Care Home,Residential Care
Peterborough City Council,Adults,Independent Sector Placements,Services,11/02/2019,30214661,2778.80,Revenue,Country Court Care (Rose Lodge),Residential Care
Peterborough City Council,ICT,ICT,Agency Staff,11/02/2019,30214667,2268.60,Revenue,Reed Specialist Recruitment Limited,External Temporary Staff
Peterborough City Council,ICT,ICT,Agency Staff,11/02/2019,30214668,1814.88,Revenue,Reed Specialist Recruitment Limited,External Temporary Staff
Peterborough City Council,Adults,Independent Sector Placements,Services,11/02/2019,30214672,2927.04,Revenue,Boulevard Care Limited,Residential Care
Peterborough City Council,Legal Services,Legal Services,Agency Staff,11/02/2019,30214736,1152.00,Revenue,Reed Specialist Recruitment Limited,External Temporary Staff
Peterborough City Council,Children's & Safeguarding,External Education Placements,Contract Hire and Operating Leases,11/02/2019,30214769,833.50,Revenue,Goldstar Cabs Ltd,Hired Transport
Peterborough City Council,Development and Construction,Building Control,Services,11/02/2019,30214787,4853.00,Revenue,IHS Global Ltd,Subscriptions
Peterborough City Council,Commissioning and Commercial Operations,Early Years & Quality Improvement,Services,11/02/2019,30214791,22901.41,Revenue,Bright Bambini  Montessori,Grant Payment
Peterborough City Council,Adults,Day opportunities - Older People,Agency Staff,11/02/2019,30214803,2141.92,Revenue,Service Care Solutions Ltd,External Temporary Staff
Peterborough City Council,"Cemeteries, Cremation & Registrars",Registration Service,Repair & Maintenance of Buildings,11/02/2019,30214825,2823.52,Revenue,The Lawns Thorpe Road Management Co. Ltd,Service Charges - Premises
Peterborough City Council,"Cemeteries, Cremation & Registrars",Registration Service,Repair & Maintenance of Buildings,11/02/2019,30214826,2160.55,Revenue,The Lawns Thorpe Road Management Co. Ltd,Service Charges - Premises
Peterborough City Council,Commissioning and Commercial Operations,Commissioning Team,Agency Staff,11/02/2019,30214854,648.15,Revenue,Reed Specialist Recruitment Limited,External Temporary Staff
Peterborough City Council,Children's & Safeguarding,Access to Resources & Specialist Commissioning,Services,11/02/2019,30214871,-2000.00,Revenue,Maze Independent Care Ltd,Boarding Out Fees
Peterborough City Council,Children's & Safeguarding,Access to Resources & Specialist Commissioning,Services,11/02/2019,30214872,3400.04,Revenue,Maze Independent Care Ltd,Boarding Out Fees
Peterborough City Council,Children's & Safeguarding,Access to Resources & Specialist Commissioning,Services,11/02/2019,30214873,3400.04,Revenue,Maze Independent Care Ltd,Boarding Out Fees
Peterborough City Council,Children's & Safeguarding,Access to Resources & Specialist Commissioning,Services,11/02/2019,30214876,2000.00,Revenue,Maze Independent Care Ltd,Boarding Out Fees
Peterborough City Council,Children's & Safeguarding,Access to Resources & Specialist Commissioning,Services,11/02/2019,30214877,1900.00,Revenue,Maze Independent Care Ltd,Boarding Out Fees
Peterborough City Council,Adults,Independent Sector Placements,Services,11/02/2019,8000134752,2490.50,Revenue,Augusta Care Ltd,Home Care
Peterborough City Council,Education,HTS & CSC Transport,Contract Hire and Operating Leases,11/02/2019,8000135311,2489.71,Revenue,Peterborough Cars,Hired Transport
Peterborough City Council,Education,HTS & CSC Transport,Contract Hire and Operating Leases,11/02/2019,8000135312,1722.70,Revenue,Peterborough Cars,Hired Transport
Peterborough City Council,Education,HTS & CSC Transport,Contract Hire and Operating Leases,11/02/2019,8000135313,1139.70,Revenue,Peterborough Cars,Hired Transport
Peterborough City Council,Education,HTS & CSC Transport,Contract Hire and Operating Leases,11/02/2019,8000135314,1631.30,Revenue,Peterborough Cars,Hired Transport
Peterborough City Council,Adults,Independent Sector Placements,Services,11/02/2019,8000135465,11148.72,Revenue,CambridgeshireHome Care,Home Care
Peterborough City Council,Children's & Safeguarding,Commissioning - CSC,Services,11/02/2019,8000135474,736.51,Revenue,P'Boro Council For Voluntary Srvs (PCVS),Financial Assistance
Peterborough City Council,Children's & Safeguarding,Commissioning - CSC,Services,11/02/2019,8000135474,748.76,Revenue,Redacted Personal Information,Financial Assistance
Peterborough City Council,Children's & Safeguarding,Commissioning - CSC,Services,11/02/2019,8000135474,748.76,Revenue,Redacted Personal Information,Financial Assistance
Peterborough City Council,Children's & Safeguarding,Commissioning - CSC,Services,11/02/2019,8000135474,576.38,Revenue,Redacted Personal Information,Financial Assistance
Peterborough City Council,Children's & Safeguarding,Access to Resources & Specialist Commissioning,Services,11/02/2019,8000135474,578.60,Revenue,Cross Keys Homes,Boarding Out Fees
Peterborough City Council,Children's & Safeguarding,Commissioning - CSC,Services,11/02/2019,8000135474,866.76,Revenue,Redacted Personal Information,Financial Assistance
Peterborough City Council,Children's & Safeguarding,Commissioning - CSC,Services,11/02/2019,8000135474,766.34,Revenue,Redacted Personal Information,Financial Assistance
Peterborough City Council,Children's & Safeguarding,Commissioning - CSC,Services,11/02/2019,8000135474,1260.00,Revenue,Redacted Personal Information,Financial Assistance
Peterborough City Council,Children's & Safeguarding,Commissioning - CSC,Services,11/02/2019,8000135474,866.92,Revenue,Redacted Personal Information,Financial Assistance
Peterborough City Council,Children's & Safeguarding,Commissioning - CSC,Services,11/02/2019,8000135474,673.84,Revenue,Redacted Personal Information,Financial Assistance
Peterborough City Council,Children's & Safeguarding,Commissioning - CSC,Services,11/02/2019,8000135474,2022.82,Revenue,Redacted Personal Information,Financial Assistance
Peterborough City Council,Children's & Safeguarding,Commissioning - CSC,Services,11/02/2019,8000135474,627.18,Revenue,Redacted Personal Information,Financial Assistance
Peterborough City Council,Children's & Safeguarding,Commissioning - CSC,Services,11/02/2019,8000135474,550.40,Revenue,Redacted Personal Information,Financial Assistance
Peterborough City Council,Legal & Democratic,Democratic Services,Contract Hire and Operating Leases,11/02/2019,8000136082,534.32,Revenue,Lex Autolease Ltd,Leasing Charges
Peterborough City Council,Corporate,Corporate,Non Revenue,12/02/2019,8000136720,111560.48,Capital,"Metcalfe, Copeman & Pettefar LLP Solicitors",Land/Building Acquisition
Peterborough City Council,Children's & Safeguarding,Access to Resources & Specialist Commissioning,Services,13/02/2019,30200369,4428.66,Revenue,Care Afloat Limited,Boarding Out Fees
Peterborough City Council,Children's & Safeguarding,Access to Resources & Specialist Commissioning,Services,13/02/2019,30200370,1285.74,Revenue,Care Afloat Limited,Boarding Out Fees
Peterborough City Council,Children's & Safeguarding,Access to Resources & Specialist Commissioning,Services,13/02/2019,30200371,4285.80,Revenue,Care Afloat Limited,Boarding Out Fees
Peterborough City Council,Children's & Safeguarding,Access to Resources & Specialist Commissioning,Services,13/02/2019,30200372,4428.66,Revenue,Care Afloat Limited,Boarding Out Fees
Peterborough City Council,Children's & Safeguarding,Children's Social Care,"Tools, Equipment, Furniture & Materials",13/02/2019,30200394,758.91,Revenue,Millwill Furnishers,Furniture And Equipment Purchase
Peterborough City Council,Children's & Safeguarding,Children's Social Care,"Tools, Equipment, Furniture & Materials",13/02/2019,30201584,615.91,Revenue,Millwill Furnishers,Furniture And Equipment Purchase
Peterborough City Council,Children's & Safeguarding,Access to Resources & Specialist Commissioning,Services,13/02/2019,30203730,1285.74,Revenue,Care Afloat Limited,Boarding Out Fees
Peterborough City Council,Communities,Housing,Agency Staff,13/02/2019,30210221,2524.80,Revenue,Service Care Solutions Ltd,External Temporary Staff
Peterborough City Council,Children's & Safeguarding,Access to Resources & Specialist Commissioning,Services,13/02/2019,30210931,905.10,Revenue,Axiom Housing Association Ltd,Boarding Out Fees
Peterborough City Council,Communities,Targeted Youth Service,Third Party Payments,13/02/2019,30211459,4821.00,Revenue,Cambridgeshire County Council,Third Party Payments - Contract
Peterborough City Council,Children's & Safeguarding,Access to Resources & Specialist Commissioning,Services,13/02/2019,30211491,5192.04,Revenue,I S P,Boarding Out Fees
Peterborough City Council,Education,Financing - Resources,Services,13/02/2019,30211494,116500.00,Revenue,New College Stamford,Education Expenses
Peterborough City Council,Education,Financing - Resources,Services,13/02/2019,30211497,24000.00,Revenue,New College Stamford,Education Expenses
Peterborough City Council,Children's & Safeguarding,Access to Resources & Specialist Commissioning,Services,13/02/2019,30211514,3986.60,Revenue,Next Step Fostering Services Limited,Boarding Out Fees
Peterborough City Council,Parking Services,Parking Services,Services,13/02/2019,30211556,3600.00,Revenue,C N SECURITY,Security
Peterborough City Council,Children's & Safeguarding,Child Health,Services,13/02/2019,30211558,3806.57,Revenue,Circles Network,Purchased Social Care Services
Peterborough City Council,Children's & Safeguarding,Access to Resources & Specialist Commissioning,Services,13/02/2019,30211561,5712.86,Revenue,Fostering Innovations Ltd,Boarding Out Fees
Peterborough City Council,Children's & Safeguarding,Access to Resources & Specialist Commissioning,Services,13/02/2019,30211563,13662.14,Revenue,Barford Children's Services,Boarding Out Fees
Peterborough City Council,Sustainable Growth Strategy,Natural & Historic Environment,Services,13/02/2019,30211564,2192.00,Revenue,The Wildlife Trust BCN,Conservation And Bio Diversity Projects
Peterborough City Council,Commissioning and Commercial Operations,Early Years & Quality Improvement,Services,13/02/2019,30211566,834.00,Revenue,Fenland First Aid Services Ltd,Training
Peterborough City Council,Westcombe Engineering,Westcombe Engineering,"Tools, Equipment, Furniture & Materials",13/02/2019,30211586,536.94,Revenue,Perkins Engines Co Ltd,Materials
Peterborough City Council,Westcombe Engineering,Westcombe Engineering,"Tools, Equipment, Furniture & Materials",13/02/2019,30211594,3250.00,Revenue,SMW Autoblok Telbrook Ltd,Materials
Peterborough City Council,Development and Construction,Development Management,Services,13/02/2019,30211619,5400.00,Revenue,Rics Business Services Ltd,Subscriptions
Peterborough City Council,Corporate Property,Office Accomodation,Services,13/02/2019,30211621,1494.95,Revenue,Dot Origin Ltd,Security
Peterborough City Council,Children's & Safeguarding,Child Health,Services,13/02/2019,30211629,13750.00,Revenue,Scope,Hired Services
Peterborough City Council,City Centre Management,"Markets, Tourism & Events",Services,13/02/2019,30211631,591.75,Revenue,Chapter of Peterborough Cathedral,Tickets
Peterborough City Council,Children's & Safeguarding,Child Health,Services,13/02/2019,30211632,13750.00,Revenue,Scope,Hired Services
Peterborough City Council,Legal Services,Legal Services,Agency Staff,13/02/2019,30211633,627.36,Revenue,Venn Group Ltd,External Temporary Staff
Peterborough City Council,Legal Services,Legal Services,Agency Staff,13/02/2019,30211636,2062.50,Revenue,Venn Group Ltd,External Temporary Staff
Peterborough City Council,Legal Services,Legal Services,Agency Staff,13/02/2019,30211637,2040.00,Revenue,Venn Group Ltd,External Temporary Staff
Peterborough City Council,Legal Services,Legal Services,Agency Staff,13/02/2019,30211638,1004.70,Revenue,Venn Group Ltd,External Temporary Staff
Peterborough City Council,Corporate Property,Commercial Propety,Repair & Maintenance of Buildings,13/02/2019,30211642,1200.00,Revenue,P.J. Thory Ltd,Premises Maintenance
Peterborough City Council,Development and Construction,Planning Compliance,Agency Staff,13/02/2019,30211646,2626.20,Revenue,Park Avenue Recruitment Limited,External Temporary Staff
Peterborough City Council,Energy,Environment Capital,Repair & Maintenance of Buildings,13/02/2019,30211670,8775.00,Revenue,B & H Projects Ltd,Premises Maintenance
Peterborough City Council,Energy,Environment Capital,Repair & Maintenance of Buildings,13/02/2019,30211671,1170.32,Revenue,B & H Projects Ltd,Premises Maintenance
Peterborough City Council,Commissioning and Commercial Operations,Clare Lodge,Repair & Maintenance of Buildings,13/02/2019,30211688,2156.00,Revenue,B & H Projects Ltd,Premises Maintenance
Peterborough City Council,Children's & Safeguarding,External Education Placements,Services,13/02/2019,30211693,1075.34,Revenue,Lincolnshire Wolds Community Trust,Education Expenses
Peterborough City Council,Children's & Safeguarding,External Education Placements,Services,13/02/2019,30211694,1075.33,Revenue,Lincolnshire Wolds Community Trust,Education Expenses
Peterborough City Council,Corporate,Corporate,Non Revenue,13/02/2019,30211703,4927.50,Capital,Signs Express,Building And Site Works
Peterborough City Council,Financial Services,Finance,Services,13/02/2019,30211792,12810.00,Revenue,Penna Plc,Consultants Fees
Peterborough City Council,Adults,Independent Sector Placements,Services,13/02/2019,30211822,1329.68,Revenue,Better Healthcare Services,Home Care
Peterborough City Council,Regulatory Services,Regulatory Services,"Tools, Equipment, Furniture & Materials",13/02/2019,30211836,2961.83,Revenue,VIP-System Ltd,Furniture And Equipment Purchase
Peterborough City Council,Children's & Safeguarding,Access to Resources & Specialist Commissioning,Services,13/02/2019,30211854,780.01,Revenue,Swiis Foster Care Ltd,Boarding Out Fees
Peterborough City Council,Children's & Safeguarding,Access to Resources & Specialist Commissioning,Services,13/02/2019,30211856,780.01,Revenue,Swiis Foster Care Ltd,Boarding Out Fees
Peterborough City Council,Children's & Safeguarding,Access to Resources & Specialist Commissioning,Services,13/02/2019,30211857,780.01,Revenue,Swiis Foster Care Ltd,Boarding Out Fees
Peterborough City Council,Children's & Safeguarding,Access to Resources & Specialist Commissioning,Services,13/02/2019,30211859,780.01,Revenue,Swiis Foster Care Ltd,Boarding Out Fees
Peterborough City Council,Children's & Safeguarding,Access to Resources & Specialist Commissioning,Services,13/02/2019,30211861,780.01,Revenue,Swiis Foster Care Ltd,Boarding Out Fees
Peterborough City Council,Corporate,Corporate,Non Revenue,13/02/2019,30211862,2750.00,Capital,8/5 Electrical Ltd,Building And Site Works
Peterborough City Council,Adults,Independent Sector Placements,Services,13/02/2019,30211883,1679.06,Revenue,Better Healthcare Services,Home Care
Peterborough City Council,Adults,Independent Sector Placements,Services,13/02/2019,30211885,615.60,Revenue,Better Healthcare Services,Home Care
Peterborough City Council,Adults,Independent Sector Placements,Services,13/02/2019,30211888,744.52,Revenue,Better Healthcare Services,Home Care
Peterborough City Council,Children's & Safeguarding,Access to Resources & Specialist Commissioning,Services,13/02/2019,30211897,780.01,Revenue,Swiis Foster Care Ltd,Boarding Out Fees
Peterborough City Council,Adults,Strategic Commissioning - Management,Agency Staff,13/02/2019,30211946,1058.82,Revenue,Badenoch & Clark Ltd,External Temporary Staff
Peterborough City Council,Marketing & Communications,Marketing & Communications,Services,13/02/2019,30211948,1075.00,Revenue,ALSOprint Ltd,Printing
Peterborough City Council,Children's & Safeguarding,Access to Resources & Specialist Commissioning,Services,13/02/2019,30211975,1600.30,Revenue,Nexus Fostering Ltd,Boarding Out Fees
Peterborough City Council,Peterborough Highway Services,Transport & Infrastructure Commissioning,Services,13/02/2019,30212047,623.00,Revenue,UK Power Networks (operations) Ltd,Infrastructure Maintenance
Peterborough City Council,Peterborough Highway Services,Transport & Infrastructure Commissioning,Services,13/02/2019,30212048,1049.00,Revenue,UK Power Networks (operations) Ltd,Infrastructure Maintenance
Peterborough City Council,ICT,ICT,"Tools, Equipment, Furniture & Materials",13/02/2019,30212146,775.00,Revenue,Palmer Building Solutions Ltd,Computer Hardware
Peterborough City Council,Corporate Property,Commercial Propety,"Tools, Equipment, Furniture & Materials",13/02/2019,30212149,512.06,Revenue,Hughes TV & Audio Limited,Furniture And Equipment Purchase
Peterborough City Council,Peterborough Highway Services,Highway & Drainage Control,Agency Staff,13/02/2019,30212208,1312.50,Revenue,Matchtech,External Temporary Staff
Peterborough City Council,Peterborough Highway Services,Highway & Drainage Control,Agency Staff,13/02/2019,30212209,882.00,Revenue,Matchtech,External Temporary Staff
Peterborough City Council,Peterborough Highway Services,Highway & Drainage Control,Agency Staff,13/02/2019,30212210,1722.00,Revenue,Matchtech,External Temporary Staff
Peterborough City Council,Commissioning and Commercial Operations,Clare Lodge,Catering,13/02/2019,30212214,600.11,Revenue,King Bros Lady Lodge Ltd,Catering Provisions
Peterborough City Council,Commissioning and Commercial Operations,Clare Lodge,Agency Staff,13/02/2019,30212292,1064.00,Revenue,Wrixon Care Services,External Temporary Staff
Peterborough City Council,Commissioning and Commercial Operations,Clare Lodge,Agency Staff,13/02/2019,30212294,2256.00,Revenue,Wrixon Care Services,External Temporary Staff
Peterborough City Council,Corporate,Corporate,Non Revenue,13/02/2019,30212329,5595.30,Capital,P F S Builders & Contractors,Grant Payment
Peterborough City Council,Corporate,Corporate,Non Revenue,13/02/2019,30212330,5609.00,Capital,M J Greaves,Grant Payment
Peterborough City Council,Corporate,Corporate,Non Revenue,13/02/2019,30212333,4265.00,Capital,MORLEY BUILDING SERVICES LTD,Grant Payment
Peterborough City Council,Constitutional Services,Democratic Services,Services,13/02/2019,30212396,1178.80,Revenue,Toye Kenning & Spencer Ltd,Civic Gifts
Peterborough City Council,ICT,ICT,Services,13/02/2019,30212481,2865.49,Revenue,Ideagen Gael Ltd,Computer Software
Peterborough City Council,Commissioning and Commercial Operations,Commissioning,Services,13/02/2019,30212611,4690.50,Revenue,Crisp and Crane Training Limited,Training
Peterborough City Council,Adults,Home Services Delivery Model,Services,13/02/2019,30212703,1547.00,Revenue,Fletton Electrics Ltd,Contractors
Peterborough City Council,Corporate,Corporate,Non Revenue,13/02/2019,30212731,3000.00,Capital,ITW Ltd,Grant Payment
Peterborough City Council,Corporate,Corporate,Non Revenue,13/02/2019,30212790,4999.89,Capital,Rawheat Heating & Plumbing Eng.,Grant Payment
Peterborough City Council,Corporate,Corporate,Non Revenue,13/02/2019,30212791,4421.00,Capital,MORLEY BUILDING SERVICES LTD,Grant Payment
Peterborough City Council,Corporate,Corporate,Non Revenue,13/02/2019,30212798,4689.30,Capital,Gaswise Services Ltd,Grant Payment
Peterborough City Council,Corporate,Corporate,Non Revenue,13/02/2019,30212925,4932.90,Capital,Rawheat Heating & Plumbing Eng.,Grant Payment
Peterborough City Council,Commissioning and Commercial Operations,Clare Lodge,Agency Staff,13/02/2019,30213129,1632.00,Revenue,Wrixon Care Services,External Temporary Staff
Peterborough City Council,Commissioning and Commercial Operations,Clare Lodge,Agency Staff,13/02/2019,30213130,1984.00,Revenue,Wrixon Care Services,External Temporary Staff
Peterborough City Council,Adults,Independent Sector Placements,Services,13/02/2019,30213192,3576.32,Revenue,GLASALLT FAWR,Residential Care
Peterborough City Council,Adults,Independent Sector Placements,Services,13/02/2019,30213518,2117.14,Revenue,Healthcare Homes Group Ltd,Residential Care
Peterborough City Council,Westcombe Engineering,Westcombe Engineering,"Tools, Equipment, Furniture & Materials",13/02/2019,30213585,520.30,Revenue,Barron Clark Castings Ltd,Materials
Peterborough City Council,Corporate Items,Corporate Services,Services,13/02/2019,30213705,20893.00,Revenue,Ernst & Young LLP,Audit Fees
Peterborough City Council,Children's & Safeguarding,Early Help ASC/CSC,Agency Staff,13/02/2019,30213773,662.97,Revenue,Reed Specialist Recruitment Limited,External Temporary Staff
Peterborough City Council,Programme Management Office,Programme Management Office,Agency Staff,13/02/2019,30213774,4254.81,Revenue,Reed Specialist Recruitment Limited,External Temporary Staff
Peterborough City Council,Development and Construction,Development Management,Agency Staff,13/02/2019,30213777,1568.80,Revenue,Reed Specialist Recruitment Limited,External Temporary Staff
Peterborough City Council,Development and Construction,Building Control,Agency Staff,13/02/2019,30213779,1860.73,Revenue,Reed Specialist Recruitment Limited,External Temporary Staff
Peterborough City Council,Education,HTS & CSC Transport,Agency Staff,13/02/2019,30213780,603.52,Revenue,Reed Specialist Recruitment Limited,External Temporary Staff
Peterborough City Council,Adults,Home Services Delivery Model,Agency Staff,13/02/2019,30213781,1018.13,Revenue,Reed Specialist Recruitment Limited,External Temporary Staff
Peterborough City Council,Regulatory Services,Regulatory Services,Agency Staff,13/02/2019,30213786,1262.62,Revenue,Reed Specialist Recruitment Limited,External Temporary Staff
Peterborough City Council,Development and Construction,Development Management,Agency Staff,13/02/2019,30213787,896.49,Revenue,Reed Specialist Recruitment Limited,External Temporary Staff
Peterborough City Council,ICT,ICT,Agency Staff,13/02/2019,30213788,2268.60,Revenue,Reed Specialist Recruitment Limited,External Temporary Staff
Peterborough City Council,Development and Construction,Development Management,Agency Staff,13/02/2019,30213792,1365.01,Revenue,Reed Specialist Recruitment Limited,External Temporary Staff
Peterborough City Council,Development and Construction,Planning Compliance,Agency Staff,13/02/2019,30213794,851.20,Revenue,Reed Specialist Recruitment Limited,External Temporary Staff
Peterborough City Council,Peterborough Highway Services,Highway & Drainage Control,Agency Staff,13/02/2019,30213843,1305.60,Revenue,Reed Specialist Recruitment Limited,External Temporary Staff
Peterborough City Council,Adults,Strategic Commissioning - Management,Agency Staff,13/02/2019,30213844,836.88,Revenue,Reed Specialist Recruitment Limited,External Temporary Staff
Peterborough City Council,Adults,Independent Sector Placements,Services,13/02/2019,30213952,1440.00,Revenue,"Elliott, Ms Margot",Legal Costs
Peterborough City Council,Corporate,Corporate,Non Revenue,13/02/2019,30214005,108128.52,Capital,Garfield Builders Ltd,Building And Site Works
Peterborough City Council,Children's & Safeguarding,Children's Social Care,Services,13/02/2019,30214143,3962.59,Revenue,LGSS Law Ltd,Legal Costs
Peterborough City Council,Children's & Safeguarding,Children's Social Care,Services,13/02/2019,30214144,652.80,Revenue,LGSS Law Ltd,Legal Costs
Peterborough City Council,Children's & Safeguarding,Children's Social Care,Services,13/02/2019,30214146,2187.02,Revenue,LGSS Law Ltd,Legal Costs
Peterborough City Council,Corporate,Corporate,Non Revenue,13/02/2019,30214162,4000.00,Balance Sheet,Ageas Insurance Ltd,Insurance Claims
Peterborough City Council,"Director, OP & JV",Growth HoS,Third Party Payments,13/02/2019,30214193,1481507.25,Capital & Revenue,Skanska Construction UK Ltd,Third Party Payments - Contract
Peterborough City Council,Children's & Safeguarding,Access to Resources & Specialist Commissioning,Services,13/02/2019,30214412,3541.44,Revenue,Fostering Solutions Limited,Boarding Out Fees
Peterborough City Council,Public Health,PH Commissioning,Third Party Payments,13/02/2019,30214488,775.00,Revenue,Wow Fitness Ltd,Third Party Payments - Contract
Peterborough City Council,Children's & Safeguarding,Access to Resources & Specialist Commissioning,Services,13/02/2019,30214499,3816.10,Revenue,Nexus Fostering Ltd,Boarding Out Fees
Peterborough City Council,Communities,Housing,Services,13/02/2019,30214516,13379.61,Revenue,Cross Keys Homes,Temporary Accommodation Costs
Peterborough City Council,Legal Services,Legal Services,Services,13/02/2019,30214577,1040.00,Revenue,"Elliott, Ms Margot",Legal Costs
Peterborough City Council,Adults,Independent Sector Placements,Services,13/02/2019,30214659,2455.60,Revenue,Sanctuary Care Limited,Residential Care
Peterborough City Council,Adults,Independent Sector Placements,Services,13/02/2019,30214678,1100.64,Revenue,Sanctuary Care Limited,Residential Care
Peterborough City Council,City Centre Management,"Markets, Tourism & Events",Repair & Maintenance of Buildings,13/02/2019,30214688,1140.00,Revenue,The K A Wing Group Ltd,Premises Repairs
Peterborough City Council,Commissioning and Commercial Operations,Clare Lodge,Agency Staff,13/02/2019,30214725,613.44,Revenue,Reed Specialist Recruitment Limited,External Temporary Staff
Peterborough City Council,Regulatory Services,Regulatory Services,Agency Staff,13/02/2019,30214727,1243.77,Revenue,Reed Specialist Recruitment Limited,External Temporary Staff
Peterborough City Council,Legal Services,Legal Services,Agency Staff,13/02/2019,30214731,2025.38,Revenue,Reed Specialist Recruitment Limited,External Temporary Staff
Peterborough City Council,Development and Construction,Development Management,Agency Staff,13/02/2019,30214732,1365.01,Revenue,Reed Specialist Recruitment Limited,External Temporary Staff
Peterborough City Council,ICT,ICT,Agency Staff,13/02/2019,30214733,1814.88,Revenue,Reed Specialist Recruitment Limited,External Temporary Staff
Peterborough City Council,Development and Construction,Building Control,Agency Staff,13/02/2019,30214734,1075.05,Revenue,Reed Specialist Recruitment Limited,External Temporary Staff
Peterborough City Council,Adults,Strategic Commissioning - Management,Agency Staff,13/02/2019,30214735,664.28,Revenue,Reed Specialist Recruitment Limited,External Temporary Staff
Peterborough City Council,Programme Management Office,Programme Management Office,Agency Staff,13/02/2019,30214737,5205.29,Revenue,Reed Specialist Recruitment Limited,External Temporary Staff
Peterborough City Council,Commissioning and Commercial Operations,Commissioning Team,Agency Staff,13/02/2019,30214740,2243.60,Revenue,Reed Specialist Recruitment Limited,External Temporary Staff
Peterborough City Council,ICT,ICT,Agency Staff,13/02/2019,30214741,2268.60,Revenue,Reed Specialist Recruitment Limited,External Temporary Staff
Peterborough City Council,Legal Services,Legal Services,Agency Staff,13/02/2019,30214742,1848.70,Revenue,Reed Specialist Recruitment Limited,External Temporary Staff
Peterborough City Council,Commissioning and Commercial Operations,Commissioning Team,Agency Staff,13/02/2019,30214743,648.15,Revenue,Reed Specialist Recruitment Limited,External Temporary Staff
Peterborough City Council,ICT,ICT,Agency Staff,13/02/2019,30214744,678.80,Revenue,Reed Specialist Recruitment Limited,External Temporary Staff
Peterborough City Council,Corporate,Corporate,Non Revenue,13/02/2019,30214747,2583.60,Capital,Reed Specialist Recruitment Limited,Consultants Fees
Peterborough City Council,Peterborough Highway Services,Highway Services - HoS,Agency Staff,13/02/2019,30214748,828.75,Revenue,Reed Specialist Recruitment Limited,External Temporary Staff
Peterborough City Council,Adults,Strategic Commissioning - Management,Agency Staff,13/02/2019,30214749,2953.60,Revenue,Reed Specialist Recruitment Limited,External Temporary Staff
Peterborough City Council,Regulatory Services,Regulatory Services,Agency Staff,13/02/2019,30214750,1309.55,Revenue,Reed Specialist Recruitment Limited,External Temporary Staff
Peterborough City Council,Peterborough Highway Services,Highway Services - HoS,Agency Staff,13/02/2019,30214751,1235.80,Revenue,Reed Specialist Recruitment Limited,External Temporary Staff
Peterborough City Council,Development and Construction,Building Control,Agency Staff,13/02/2019,30214753,1483.56,Revenue,Reed Specialist Recruitment Limited,External Temporary Staff
Peterborough City Council,Children's & Safeguarding,Early Help ASC/CSC,Agency Staff,13/02/2019,30214754,698.44,Revenue,Reed Specialist Recruitment Limited,External Temporary Staff
Peterborough City Council,Development and Construction,Development Management,Agency Staff,13/02/2019,30214755,1568.80,Revenue,Reed Specialist Recruitment Limited,External Temporary Staff
Peterborough City Council,Development and Construction,Planning Compliance,Agency Staff,13/02/2019,30214757,678.30,Revenue,Reed Specialist Recruitment Limited,External Temporary Staff
Peterborough City Council,Adults,Strategic Commissioning - Management,Agency Staff,13/02/2019,30214758,637.98,Revenue,Reed Specialist Recruitment Limited,External Temporary Staff
Peterborough City Council,Communities,Housing,Services,13/02/2019,30214773,632.57,Revenue,Cross Keys Homes,Financial Assistance
Peterborough City Council,Communities,Housing,Services,13/02/2019,30214781,1005.00,Revenue,Tenant Find,Financial Assistance
Peterborough City Council,Communities,Housing,Services,13/02/2019,30214783,822.00,Revenue,Cozy Lettings Ltd,Financial Assistance
Peterborough City Council,Communities,Housing,Services,13/02/2019,30214784,1190.00,Revenue,LG James Property Solutions,Financial Assistance
Peterborough City Council,Communities,Housing,Services,13/02/2019,30214785,1327.00,Revenue,Aspire Sales & Lettings,Financial Assistance
Peterborough City Council,Communities,Housing,Services,13/02/2019,30214786,1532.00,Revenue,Durham City Homes,Financial Assistance
Peterborough City Council,Adults,Independent Sector Placements,Services,13/02/2019,30214801,1889.29,Revenue,Goldcare Homes t/a The Tudors Care Home,Residential Care
Peterborough City Council,Children's & Safeguarding,Access to Resources & Specialist Commissioning,Services,13/02/2019,30214804,4411.43,Revenue,By The Bridge,Boarding Out Fees
Peterborough City Council,Children's & Safeguarding,Access to Resources & Specialist Commissioning,Services,13/02/2019,30214806,4711.38,Revenue,By The Bridge,Boarding Out Fees
Peterborough City Council,Children's & Safeguarding,Access to Resources & Specialist Commissioning,Services,13/02/2019,30214807,4388.05,Revenue,By The Bridge,Boarding Out Fees
Peterborough City Council,Children's & Safeguarding,Access to Resources & Specialist Commissioning,Services,13/02/2019,30214808,4475.78,Revenue,By The Bridge,Boarding Out Fees
Peterborough City Council,Communities,Housing,Services,13/02/2019,30214836,1650.00,Revenue,Smartmove Property Solutions,Financial Assistance
Peterborough City Council,Peterborough Highway Services,Highway Services - HoS,Agency Staff,13/02/2019,30214852,955.51,Revenue,Reed Specialist Recruitment Limited,External Temporary Staff
Peterborough City Council,Financial Services,Finance,Agency Staff,13/02/2019,30214855,640.08,Revenue,Reed Specialist Recruitment Limited,External Temporary Staff
Peterborough City Council,Peterborough Highway Services,Highway & Drainage Control,Agency Staff,13/02/2019,30214866,1302.60,Revenue,Reed Specialist Recruitment Limited,External Temporary Staff
Peterborough City Council,Legal Services,Legal Services,Agency Staff,13/02/2019,30214867,1049.95,Revenue,Reed Specialist Recruitment Limited,External Temporary Staff
Peterborough City Council,Peterborough Highway Services,Highway & Drainage Control,Agency Staff,13/02/2019,30214868,1401.61,Revenue,Reed Specialist Recruitment Limited,External Temporary Staff
Peterborough City Council,Adults,Home Services Delivery Model,Agency Staff,13/02/2019,30214869,895.72,Revenue,Reed Specialist Recruitment Limited,External Temporary Staff
Peterborough City Council,Corporate,Corporate,Non Revenue,13/02/2019,30214875,235742.79,Capital,Kier Construction Ltd,Building And Site Works
Peterborough City Council,Children's & Safeguarding,Access to Resources & Specialist Commissioning,Services,13/02/2019,30214878,3189.90,Revenue,National Fostering Agency,Boarding Out Fees
Peterborough City Council,Children's & Safeguarding,Access to Resources & Specialist Commissioning,Services,13/02/2019,30214883,3454.33,Revenue,National Fostering Agency,Boarding Out Fees
Peterborough City Council,Children's & Safeguarding,Access to Resources & Specialist Commissioning,Services,13/02/2019,30214885,3157.35,Revenue,National Fostering Agency,Boarding Out Fees
Peterborough City Council,Commissioning and Commercial Operations,Commissioning Team,Agency Staff,13/02/2019,30214892,648.15,Revenue,Reed Specialist Recruitment Limited,External Temporary Staff
Peterborough City Council,Adults,Mental Capacity Act & DoLs,Services,13/02/2019,30214901,1713.00,Revenue,Raj Medical Consultancy Limited,Hired Services
Peterborough City Council,Children's & Safeguarding,Access to Resources & Specialist Commissioning,Services,13/02/2019,30214902,4749.42,Revenue,By The Bridge,Boarding Out Fees
Peterborough City Council,Adults,Day opportunities - Older People,Catering,13/02/2019,30214908,1010.10,Revenue,The Cresset (Peterborough) Ltd,Catering Provisions
Peterborough City Council,Sustainable Growth Strategy,Natural & Historic Environment,Services,13/02/2019,30214911,1968.75,Revenue,The Wildlife Trust BCN,Conservation And Bio Diversity Projects
Peterborough City Council,Adults,Independent Sector Placements,Services,13/02/2019,30214919,5674.64,Revenue,Enham Trust,Residential Care
Peterborough City Council,Adults,Independent Sector Placements,Services,13/02/2019,30214921,1787.60,Revenue,The Orders of St John Care Trust,Residential Care
Peterborough City Council,Corporate Property,Commercial Propety,Repair & Maintenance of Buildings,13/02/2019,30214974,1000.00,Revenue,Stanground Community Space CIC,Service Charges - Premises
Peterborough City Council,Corporate Property,Commercial Propety,Repair & Maintenance of Buildings,13/02/2019,30214975,1000.00,Revenue,Stanground Community Space CIC,Service Charges - Premises
Peterborough City Council,Education,Special Educational Needs / Inclusion,Services,13/02/2019,30214993,1440.00,Revenue,Families First Peterborough,Education Expenses
Peterborough City Council,Adults,Block Contracts,Third Party Payments,13/02/2019,30215000,4034.34,Revenue,Fins Care Ltd t/a St Margarets Rest Home,Third Party Payments - Contract
Peterborough City Council,"Waste, Cleansing and Open Spaces",Waste Management,Services,13/02/2019,30215003,9980.50,Revenue,Aluminium Packaging Recycling Organisation Ltd,Recycling
Peterborough City Council,Adults,Independent Sector Placements,Services,13/02/2019,30215005,660.00,Revenue,Anchor Trust,Residential Care
Peterborough City Council,Adults,Independent Sector Placements,Services,13/02/2019,30215006,660.00,Revenue,Anchor Trust,Residential Care
Peterborough City Council,Adults,Independent Sector Placements,Services,13/02/2019,30215009,660.00,Revenue,Anchor Trust,Residential Care
Peterborough City Council,Adults,Independent Sector Placements,Services,13/02/2019,30215010,660.00,Revenue,Anchor Trust,Residential Care
Peterborough City Council,Adults,Independent Sector Placements,Services,13/02/2019,30215011,660.00,Revenue,Anchor Trust,Residential Care
Peterborough City Council,Adults,Independent Sector Placements,Services,13/02/2019,30215012,660.00,Revenue,Anchor Trust,Residential Care
Peterborough City Council,Adults,Independent Sector Placements,Services,13/02/2019,30215014,660.00,Revenue,Anchor Trust,Residential Care
Peterborough City Council,Adults,Independent Sector Placements,Services,13/02/2019,30215015,888.16,Revenue,THE CLAIR FRANCIS RETIREMENT HOME,Residential Care
Peterborough City Council,Communities,Housing,Agency Staff,13/02/2019,30215016,1339.44,Revenue,Reed Specialist Recruitment Limited,External Temporary Staff
Peterborough City Council,Adults,Independent Sector Placements,Services,13/02/2019,30215017,1821.88,Revenue,THE CLAIR FRANCIS RETIREMENT HOME,Residential Care
Peterborough City Council,Adults,Independent Sector Placements,Services,13/02/2019,30215018,1821.88,Revenue,THE CLAIR FRANCIS RETIREMENT HOME,Residential Care
Peterborough City Council,Adults,Independent Sector Placements,Services,13/02/2019,30215019,1263.44,Revenue,THE CLAIR FRANCIS RETIREMENT HOME,Residential Care
Peterborough City Council,Adults,Independent Sector Placements,Services,13/02/2019,30215020,650.40,Revenue,THE CLAIR FRANCIS RETIREMENT HOME,Residential Care
Peterborough City Council,Adults,Independent Sector Placements,Services,13/02/2019,30215021,1821.88,Revenue,THE CLAIR FRANCIS RETIREMENT HOME,Residential Care
Peterborough City Council,Adults,Independent Sector Placements,Services,13/02/2019,30215022,1821.88,Revenue,THE CLAIR FRANCIS RETIREMENT HOME,Residential Care
Peterborough City Council,Adults,Independent Sector Placements,Services,13/02/2019,30215023,1417.28,Revenue,THE CLAIR FRANCIS RETIREMENT HOME,Residential Care
Peterborough City Council,Adults,Independent Sector Placements,Services,13/02/2019,30215024,771.00,Revenue,THE CLAIR FRANCIS RETIREMENT HOME,Residential Care
Peterborough City Council,Adults,Independent Sector Placements,Services,13/02/2019,30215025,1301.48,Revenue,THE CLAIR FRANCIS RETIREMENT HOME,Residential Care
Peterborough City Council,Adults,Independent Sector Placements,Services,13/02/2019,30215026,1269.48,Revenue,THE CLAIR FRANCIS RETIREMENT HOME,Residential Care
Peterborough City Council,Adults,Independent Sector Placements,Services,13/02/2019,30215027,928.92,Revenue,THE CLAIR FRANCIS RETIREMENT HOME,Residential Care
Peterborough City Council,Adults,Independent Sector Placements,Services,13/02/2019,30215037,976.00,Revenue,THE HELPING HANDS GROUP,Day Care
Peterborough City Council,Adults,Independent Sector Placements,Services,13/02/2019,30215039,2440.00,Revenue,THE HELPING HANDS GROUP,Day Care
Peterborough City Council,Education,Financing - Resources,Services,13/02/2019,30215040,1711.25,Revenue,Orton Longueville Playgroup,Grant Payment
Peterborough City Council,Adults,Independent Sector Placements,Services,13/02/2019,30215041,1952.00,Revenue,THE HELPING HANDS GROUP,Day Care
Peterborough City Council,Education,Financing - Resources,Services,13/02/2019,30215042,2177.95,Revenue,Orton Longueville Playgroup,Grant Payment
Peterborough City Council,Adults,Independent Sector Placements,Services,13/02/2019,30215043,1389.00,Revenue,THE HELPING HANDS GROUP,Day Care
Peterborough City Council,Adults,Independent Sector Placements,Services,13/02/2019,30215044,1260.00,Revenue,THE HELPING HANDS GROUP,Day Care
Peterborough City Council,Adults,Independent Sector Placements,Services,13/02/2019,30215049,756.00,Revenue,THE HELPING HANDS GROUP,Day Care
Peterborough City Council,Adults,Independent Sector Placements,Services,13/02/2019,30215051,1260.00,Revenue,THE HELPING HANDS GROUP,Day Care
Peterborough City Council,Commissioning and Commercial Operations,Clare Lodge,Agency Staff,13/02/2019,30215063,4264.67,Revenue,Southview Building Solutions Ltd,External Temporary Staff
Peterborough City Council,Adults,Independent Sector Placements,Services,13/02/2019,30215066,1062.00,Revenue,THE HELPING HANDS GROUP,Day Care
Peterborough City Council,Adults,Independent Sector Placements,Services,13/02/2019,30215068,2440.00,Revenue,THE HELPING HANDS GROUP,Day Care
Peterborough City Council,Adults,Independent Sector Placements,Services,13/02/2019,30215069,3837.50,Revenue,THE HELPING HANDS GROUP,Day Care
Peterborough City Council,Adults,Independent Sector Placements,Services,13/02/2019,30215070,1260.00,Revenue,THE HELPING HANDS GROUP,Day Care
Peterborough City Council,Adults,Independent Sector Placements,Services,13/02/2019,30215071,1593.00,Revenue,THE HELPING HANDS GROUP,Day Care
Peterborough City Council,Adults,Independent Sector Placements,Services,13/02/2019,30215072,2655.00,Revenue,THE HELPING HANDS GROUP,Day Care
Peterborough City Council,Adults,Independent Sector Placements,Services,13/02/2019,30215091,1593.00,Revenue,THE HELPING HANDS GROUP,Day Care
Peterborough City Council,Adults,Independent Sector Placements,Services,13/02/2019,30215092,1260.00,Revenue,THE HELPING HANDS GROUP,Day Care
Peterborough City Council,Adults,Independent Sector Placements,Services,13/02/2019,30215093,1008.00,Revenue,THE HELPING HANDS GROUP,Day Care
Peterborough City Council,Adults,Independent Sector Placements,Services,13/02/2019,30215094,1075.00,Revenue,THE HELPING HANDS GROUP,Day Care
Peterborough City Council,Adults,Independent Sector Placements,Services,13/02/2019,30215096,504.00,Revenue,THE HELPING HANDS GROUP,Day Care
Peterborough City Council,Adults,Independent Sector Placements,Services,13/02/2019,30215097,2440.00,Revenue,THE HELPING HANDS GROUP,Day Care
Peterborough City Council,Communities,Housing,Services,13/02/2019,30215106,2180.00,Revenue,Redacted Personal Information,Financial Assistance
Peterborough City Council,Commissioning and Commercial Operations,Clare Lodge,Services,13/02/2019,30215108,1000.00,Revenue,Maplefields Academy,Education Expenses
Peterborough City Council,City Centre Management,"Markets, Tourism & Events",Services,13/02/2019,30215112,2560.00,Revenue,Kimbolton Fireworks Ltd,Events
Peterborough City Council,Children's & Safeguarding,Access to Resources & Specialist Commissioning,Services,13/02/2019,30215139,2944.75,Revenue,Key2 Futures Limited,Boarding Out Fees
Peterborough City Council,Communities,Housing,Services,13/02/2019,30215151,2275.00,Revenue,Singh and Sons Property Management Ltd,Temporary Accommodation Costs
Peterborough City Council,Communities,Housing,Services,13/02/2019,30215152,2660.00,Revenue,Singh and Sons Property Management Ltd,Temporary Accommodation Costs
Peterborough City Council,Communities,Housing,Services,13/02/2019,30215153,3020.00,Revenue,Singh and Sons Property Management Ltd,Temporary Accommodation Costs
Peterborough City Council,Communities,Housing,Services,13/02/2019,30215154,2840.00,Revenue,Singh and Sons Property Management Ltd,Temporary Accommodation Costs
Peterborough City Council,Communities,Cohesion,"Tools, Equipment, Furniture & Materials",13/02/2019,30215161,1000.00,Revenue,PARCA,Furniture And Equipment Purchase
Peterborough City Council,Adults,Strategic Commissioning - Management,Agency Staff,13/02/2019,30215165,836.88,Revenue,Reed Specialist Recruitment Limited,External Temporary Staff
Peterborough City Council,Corporate,Corporate,Non Revenue,13/02/2019,30215200,541.26,Balance Sheet,NHS Pensions,Pensions
Peterborough City Council,Corporate,Corporate,Non Revenue,13/02/2019,30215202,8874.17,Balance Sheet,NHS Pensions,Pensions
Peterborough City Council,Corporate,Corporate,Non Revenue,13/02/2019,30215206,4796.36,Balance Sheet,NHS Pensions,Pensions
Peterborough City Council,Corporate,Corporate,Non Revenue,13/02/2019,30215208,64089.57,Balance Sheet,LGSS Cambridgeshire Pension Fund,Pensions
Peterborough City Council,Corporate,Corporate,Non Revenue,13/02/2019,30215209,15680.33,Balance Sheet,LGSS Cambridgeshire Pension Fund,Pensions
Peterborough City Council,Corporate,Corporate,Non Revenue,13/02/2019,30215211,196345.15,Balance Sheet,LGSS Cambridgeshire Pension Fund,Pensions
Peterborough City Council,Corporate,Corporate,Non Revenue,13/02/2019,30215212,485909.78,Balance Sheet,LGSS Cambridgeshire Pension Fund,Pensions
Peterborough City Council,Corporate,Corporate,Non Revenue,13/02/2019,30215221,5290.01,Balance Sheet,The Prudential Assurance Company Ltd,Pensions
Peterborough City Council,Corporate,Corporate,Non Revenue,13/02/2019,30215223,2266.89,Balance Sheet,The Prudential Assurance Company Ltd,Pensions
Peterborough City Council,Communities,Housing,Agency Staff,13/02/2019,30215269,1674.30,Revenue,Reed Specialist Recruitment Limited,External Temporary Staff
Peterborough City Council,Communities,Housing,Agency Staff,13/02/2019,30215279,1674.30,Revenue,Reed Specialist Recruitment Limited,External Temporary Staff
Peterborough City Council,Adults,Therapy/Reablement/Community Equipment,"Tools, Equipment, Furniture & Materials",13/02/2019,30215304,806.66,Revenue,Action on Hearing Loss,Occupational Therapy Equipment
Peterborough City Council,Adults,Therapy/Reablement/Community Equipment,"Tools, Equipment, Furniture & Materials",13/02/2019,30215306,742.94,Revenue,Action on Hearing Loss,Occupational Therapy Equipment
Peterborough City Council,Adults,Therapy/Reablement/Community Equipment,"Tools, Equipment, Furniture & Materials",13/02/2019,30215315,780.43,Revenue,Action on Hearing Loss,Occupational Therapy Equipment
Peterborough City Council,Adults,Therapy/Reablement/Community Equipment,"Tools, Equipment, Furniture & Materials",13/02/2019,30215317,742.94,Revenue,Action on Hearing Loss,Occupational Therapy Equipment
Peterborough City Council,Children's & Safeguarding,Children's Social Care,Services,13/02/2019,30215322,521.10,Revenue,Florinee Homes Ltd,Financial Assistance
Peterborough City Council,Legal Services,Legal Services,Agency Staff,13/02/2019,30215325,1353.00,Revenue,Spinks Notary,External Temporary Staff
Peterborough City Council,Legal Services,Legal Services,Agency Staff,13/02/2019,30215326,1237.50,Revenue,Spinks Notary,External Temporary Staff
Peterborough City Council,Adults,Independent Sector Placements,Social Services,13/02/2019,8000135498,1218.48,Revenue,Redacted Personal Information,Direct Payments
Peterborough City Council,Adults,Independent Sector Placements,Social Services,13/02/2019,8000135500,1599.60,Revenue,Redacted Personal Information,Direct Payments
Peterborough City Council,Adults,Independent Sector Placements,Social Services,13/02/2019,8000135501,1187.96,Revenue,Redacted Personal Information,Direct Payments
Peterborough City Council,Adults,Independent Sector Placements,Social Services,13/02/2019,8000135502,1390.12,Revenue,Redacted Personal Information,Direct Payments
Peterborough City Council,Adults,Independent Sector Placements,Social Services,13/02/2019,8000135503,1003.04,Revenue,Redacted Personal Information,Direct Payments
Peterborough City Council,Adults,Independent Sector Placements,Social Services,13/02/2019,8000135505,4033.40,Revenue,Redacted Personal Information,Direct Payments
Peterborough City Council,Adults,Independent Sector Placements,Social Services,13/02/2019,8000135507,1037.84,Revenue,Redacted Personal Information,Direct Payments
Peterborough City Council,Adults,Independent Sector Placements,Social Services,13/02/2019,8000135508,835.64,Revenue,Redacted Personal Information,Direct Payments
Peterborough City Council,Adults,Independent Sector Placements,Social Services,13/02/2019,8000135509,1668.57,Revenue,Redacted Personal Information,Direct Payments
Peterborough City Council,Adults,Independent Sector Placements,Social Services,13/02/2019,8000135511,1146.92,Revenue,Redacted Personal Information,Direct Payments
Peterborough City Council,Adults,Independent Sector Placements,Social Services,13/02/2019,8000135512,2092.36,Revenue,Redacted Personal Information,Direct Payments
Peterborough City Council,Adults,Independent Sector Placements,Social Services,13/02/2019,8000135513,808.52,Revenue,Redacted Personal Information,Direct Payments
Peterborough City Council,Adults,Independent Sector Placements,Social Services,13/02/2019,8000135515,1504.92,Revenue,Redacted Personal Information,Direct Payments
Peterborough City Council,Adults,Independent Sector Placements,Social Services,13/02/2019,8000135516,544.80,Revenue,Redacted Personal Information,Direct Payments
Peterborough City Council,Adults,Independent Sector Placements,Social Services,13/02/2019,8000135517,706.48,Revenue,Redacted Personal Information,Direct Payments
Peterborough City Council,Adults,Independent Sector Placements,Social Services,13/02/2019,8000135518,938.28,Revenue,Redacted Personal Information,Direct Payments
Peterborough City Council,Adults,Independent Sector Placements,Social Services,13/02/2019,8000135519,1289.52,Revenue,Redacted Personal Information,Direct Payments
Peterborough City Council,Adults,Independent Sector Placements,Social Services,13/02/2019,8000135521,546.48,Revenue,Redacted Personal Information,Direct Payments
Peterborough City Council,Adults,Independent Sector Placements,Social Services,13/02/2019,8000135522,6124.16,Revenue,Redacted Personal Information,Direct Payments
Peterborough City Council,Adults,Independent Sector Placements,Social Services,13/02/2019,8000135523,554.76,Revenue,Redacted Personal Information,Direct Payments
Peterborough City Council,Adults,Independent Sector Placements,Social Services,13/02/2019,8000135524,2358.88,Revenue,Redacted Personal Information,Direct Payments
Peterborough City Council,Adults,Independent Sector Placements,Social Services,13/02/2019,8000135525,777.56,Revenue,Redacted Personal Information,Direct Payments
Peterborough City Council,Adults,Independent Sector Placements,Social Services,13/02/2019,8000135526,684.56,Revenue,Redacted Personal Information,Direct Payments
Peterborough City Council,Adults,Independent Sector Placements,Social Services,13/02/2019,8000135527,1664.40,Revenue,Redacted Personal Information,Direct Payments
Peterborough City Council,Adults,Independent Sector Placements,Social Services,13/02/2019,8000135528,552.48,Revenue,Redacted Personal Information,Direct Payments
Peterborough City Council,Adults,Independent Sector Placements,Social Services,13/02/2019,8000135530,1251.04,Revenue,Redacted Personal Information,Direct Payments
Peterborough City Council,Adults,Independent Sector Placements,Social Services,13/02/2019,8000135531,992.28,Revenue,Redacted Personal Information,Direct Payments
Peterborough City Council,Adults,Independent Sector Placements,Social Services,13/02/2019,8000135532,993.36,Revenue,Redacted Personal Information,Direct Payments
Peterborough City Council,Adults,Independent Sector Placements,Social Services,13/02/2019,8000135533,7679.68,Revenue,Redacted Personal Information,Direct Payments
Peterborough City Council,Adults,Independent Sector Placements,Social Services,13/02/2019,8000135534,514.12,Revenue,Redacted Personal Information,Direct Payments
Peterborough City Council,Adults,Independent Sector Placements,Social Services,13/02/2019,8000135535,758.08,Revenue,Redacted Personal Information,Direct Payments
Peterborough City Council,Adults,Independent Sector Placements,Social Services,13/02/2019,8000135542,774.24,Revenue,Redacted Personal Information,Direct Payments
Peterborough City Council,Adults,Independent Sector Placements,Social Services,13/02/2019,8000135545,590.08,Revenue,Redacted Personal Information,Direct Payments
Peterborough City Council,Adults,Independent Sector Placements,Social Services,13/02/2019,8000135547,870.44,Revenue,Redacted Personal Information,Direct Payments
Peterborough City Council,Adults,Independent Sector Placements,Social Services,13/02/2019,8000135548,7123.48,Revenue,Redacted Personal Information,Direct Payments
Peterborough City Council,Adults,Independent Sector Placements,Social Services,13/02/2019,8000135549,7506.08,Revenue,Redacted Personal Information,Direct Payments
Peterborough City Council,Adults,Independent Sector Placements,Social Services,13/02/2019,8000135550,671.08,Revenue,Redacted Personal Information,Direct Payments
Peterborough City Council,Adults,Independent Sector Placements,Social Services,13/02/2019,8000135551,8281.80,Revenue,Redacted Personal Information,Direct Payments
Peterborough City Council,Adults,Independent Sector Placements,Social Services,13/02/2019,8000135552,892.08,Revenue,Redacted Personal Information,Direct Payments
Peterborough City Council,Adults,Independent Sector Placements,Social Services,13/02/2019,8000135553,509.20,Revenue,Redacted Personal Information,Direct Payments
Peterborough City Council,Adults,Independent Sector Placements,Social Services,13/02/2019,8000135554,777.08,Revenue,Redacted Personal Information,Direct Payments
Peterborough City Council,Adults,Independent Sector Placements,Social Services,13/02/2019,8000135555,3753.12,Revenue,Redacted Personal Information,Direct Payments
Peterborough City Council,Adults,Independent Sector Placements,Social Services,13/02/2019,8000135556,670.60,Revenue,Redacted Personal Information,Direct Payments
Peterborough City Council,Adults,Independent Sector Placements,Social Services,13/02/2019,8000135557,1268.88,Revenue,Redacted Personal Information,Direct Payments
Peterborough City Council,Adults,Independent Sector Placements,Social Services,13/02/2019,8000135558,592.92,Revenue,Redacted Personal Information,Direct Payments
Peterborough City Council,Adults,Independent Sector Placements,Social Services,13/02/2019,8000135559,2529.24,Revenue,Redacted Personal Information,Direct Payments
Peterborough City Council,Adults,Independent Sector Placements,Social Services,13/02/2019,8000135560,2128.36,Revenue,Redacted Personal Information,Direct Payments
Peterborough City Council,Adults,Independent Sector Placements,Social Services,13/02/2019,8000135561,605.56,Revenue,Redacted Personal Information,Direct Payments
Peterborough City Council,Adults,Independent Sector Placements,Social Services,13/02/2019,8000135562,988.68,Revenue,Redacted Personal Information,Direct Payments
Peterborough City Council,Adults,Independent Sector Placements,Social Services,13/02/2019,8000135563,900.48,Revenue,Redacted Personal Information,Direct Payments
Peterborough City Council,Adults,Independent Sector Placements,Social Services,13/02/2019,8000135565,1035.08,Revenue,Redacted Personal Information,Direct Payments
Peterborough City Council,Adults,Independent Sector Placements,Social Services,13/02/2019,8000135567,602.72,Revenue,Redacted Personal Information,Direct Payments
Peterborough City Council,Adults,Independent Sector Placements,Social Services,13/02/2019,8000135568,3990.48,Revenue,Redacted Personal Information,Direct Payments
Peterborough City Council,Adults,Independent Sector Placements,Social Services,13/02/2019,8000135569,1262.88,Revenue,Redacted Personal Information,Direct Payments
Peterborough City Council,Adults,Independent Sector Placements,Social Services,13/02/2019,8000135572,779.56,Revenue,Redacted Personal Information,Direct Payments
Peterborough City Council,Adults,Independent Sector Placements,Social Services,13/02/2019,8000135573,1167.48,Revenue,Redacted Personal Information,Direct Payments
Peterborough City Council,Adults,Independent Sector Placements,Social Services,13/02/2019,8000135574,1142.88,Revenue,Redacted Personal Information,Direct Payments
Peterborough City Council,Adults,Independent Sector Placements,Social Services,13/02/2019,8000135575,500.00,Revenue,Redacted Personal Information,Direct Payments
Peterborough City Council,Adults,Independent Sector Placements,Social Services,13/02/2019,8000135576,2978.52,Revenue,Redacted Personal Information,Direct Payments
Peterborough City Council,Adults,Independent Sector Placements,Social Services,13/02/2019,8000135577,1282.96,Revenue,Redacted Personal Information,Direct Payments
Peterborough City Council,Adults,Independent Sector Placements,Social Services,13/02/2019,8000135579,3488.00,Revenue,Redacted Personal Information,Direct Payments
Peterborough City Council,Adults,Independent Sector Placements,Social Services,13/02/2019,8000135580,883.76,Revenue,Redacted Personal Information,Direct Payments
Peterborough City Council,Adults,Independent Sector Placements,Social Services,13/02/2019,8000135581,3155.68,Revenue,Redacted Personal Information,Direct Payments
Peterborough City Council,Adults,Independent Sector Placements,Social Services,13/02/2019,8000135582,542.28,Revenue,Redacted Personal Information,Direct Payments
Peterborough City Council,Adults,Independent Sector Placements,Social Services,13/02/2019,8000135583,816.00,Revenue,Redacted Personal Information,Direct Payments
Peterborough City Council,Adults,Independent Sector Placements,Social Services,13/02/2019,8000135584,1120.00,Revenue,Redacted Personal Information,Direct Payments
Peterborough City Council,Adults,Independent Sector Placements,Social Services,13/02/2019,8000135585,814.40,Revenue,Redacted Personal Information,Direct Payments
Peterborough City Council,Adults,Independent Sector Placements,Social Services,13/02/2019,8000135586,587.20,Revenue,Redacted Personal Information,Direct Payments
Peterborough City Council,Adults,Independent Sector Placements,Social Services,13/02/2019,8000135588,1041.76,Revenue,Redacted Personal Information,Direct Payments
Peterborough City Council,Adults,Independent Sector Placements,Social Services,13/02/2019,8000135589,9310.30,Revenue,Redacted Personal Information,Direct Payments
Peterborough City Council,Adults,Independent Sector Placements,Social Services,13/02/2019,8000135592,956.76,Revenue,Redacted Personal Information,Direct Payments
Peterborough City Council,Adults,Independent Sector Placements,Social Services,13/02/2019,8000135593,1675.46,Revenue,Redacted Personal Information,Direct Payments
Peterborough City Council,Adults,Independent Sector Placements,Social Services,13/02/2019,8000135594,954.48,Revenue,Redacted Personal Information,Direct Payments
Peterborough City Council,Adults,Independent Sector Placements,Social Services,13/02/2019,8000135595,630.76,Revenue,Redacted Personal Information,Direct Payments
Peterborough City Council,Adults,Independent Sector Placements,Social Services,13/02/2019,8000135596,547.32,Revenue,Redacted Personal Information,Direct Payments
Peterborough City Council,Adults,Independent Sector Placements,Social Services,13/02/2019,8000135598,792.84,Revenue,Redacted Personal Information,Direct Payments
Peterborough City Council,Adults,Independent Sector Placements,Social Services,13/02/2019,8000135599,1427.68,Revenue,Redacted Personal Information,Direct Payments
Peterborough City Council,Adults,Independent Sector Placements,Social Services,13/02/2019,8000135600,1576.24,Revenue,Redacted Personal Information,Direct Payments
Peterborough City Council,Adults,Independent Sector Placements,Social Services,13/02/2019,8000135603,1818.48,Revenue,Redacted Personal Information,Direct Payments
Peterborough City Council,Adults,Independent Sector Placements,Social Services,13/02/2019,8000135604,566.68,Revenue,Redacted Personal Information,Direct Payments
Peterborough City Council,Adults,Independent Sector Placements,Social Services,13/02/2019,8000135605,3317.24,Revenue,Redacted Personal Information,Direct Payments
Peterborough City Council,Adults,Independent Sector Placements,Social Services,13/02/2019,8000135608,1898.48,Revenue,Redacted Personal Information,Direct Payments
Peterborough City Council,Adults,Independent Sector Placements,Social Services,13/02/2019,8000135610,1033.04,Revenue,Redacted Personal Information,Direct Payments
Peterborough City Council,Adults,Independent Sector Placements,Social Services,13/02/2019,8000135611,2052.92,Revenue,Redacted Personal Information,Direct Payments
Peterborough City Council,Adults,Independent Sector Placements,Social Services,13/02/2019,8000135613,978.48,Revenue,Redacted Personal Information,Direct Payments
Peterborough City Council,Adults,Independent Sector Placements,Social Services,13/02/2019,8000135614,762.48,Revenue,Redacted Personal Information,Direct Payments
Peterborough City Council,Adults,Independent Sector Placements,Social Services,13/02/2019,8000135616,2274.48,Revenue,Redacted Personal Information,Direct Payments
Peterborough City Council,Adults,Independent Sector Placements,Social Services,13/02/2019,8000135620,1554.48,Revenue,Redacted Personal Information,Direct Payments
Peterborough City Council,Adults,Independent Sector Placements,Social Services,13/02/2019,8000135622,963.36,Revenue,Redacted Personal Information,Direct Payments
Peterborough City Council,Adults,Independent Sector Placements,Social Services,13/02/2019,8000135623,932.24,Revenue,Redacted Personal Information,Direct Payments
Peterborough City Council,Adults,Independent Sector Placements,Social Services,13/02/2019,8000135624,3411.04,Revenue,Redacted Personal Information,Direct Payments
Peterborough City Council,Adults,Independent Sector Placements,Social Services,13/02/2019,8000135625,1486.40,Revenue,Redacted Personal Information,Direct Payments
Peterborough City Council,Adults,Independent Sector Placements,Social Services,13/02/2019,8000135627,2034.48,Revenue,Redacted Personal Information,Direct Payments
Peterborough City Council,Adults,Independent Sector Placements,Social Services,13/02/2019,8000135628,849.28,Revenue,Redacted Personal Information,Direct Payments
Peterborough City Council,Adults,Independent Sector Placements,Social Services,13/02/2019,8000135629,858.56,Revenue,Redacted Personal Information,Direct Payments
Peterborough City Council,Adults,Independent Sector Placements,Social Services,13/02/2019,8000135632,1476.96,Revenue,Redacted Personal Information,Direct Payments
Peterborough City Council,Adults,Independent Sector Placements,Social Services,13/02/2019,8000135635,640.04,Revenue,Redacted Personal Information,Direct Payments
Peterborough City Council,Adults,Independent Sector Placements,Social Services,13/02/2019,8000135637,1413.92,Revenue,Redacted Personal Information,Direct Payments
Peterborough City Council,Adults,Independent Sector Placements,Social Services,13/02/2019,8000135638,1098.48,Revenue,Redacted Personal Information,Direct Payments
Peterborough City Council,Adults,Independent Sector Placements,Social Services,13/02/2019,8000135644,668.48,Revenue,Redacted Personal Information,Direct Payments
Peterborough City Council,Adults,Independent Sector Placements,Social Services,13/02/2019,8000135645,794.68,Revenue,Redacted Personal Information,Direct Payments
Peterborough City Council,Adults,Independent Sector Placements,Social Services,13/02/2019,8000135646,633.60,Revenue,Redacted Personal Information,Direct Payments
Peterborough City Council,Adults,Independent Sector Placements,Social Services,13/02/2019,8000135647,670.08,Revenue,Redacted Personal Information,Direct Payments
Peterborough City Council,Adults,Independent Sector Placements,Social Services,13/02/2019,8000135648,602.48,Revenue,Redacted Personal Information,Direct Payments
Peterborough City Council,Adults,Independent Sector Placements,Social Services,13/02/2019,8000135650,689.84,Revenue,Redacted Personal Information,Direct Payments
Peterborough City Council,Adults,Independent Sector Placements,Social Services,13/02/2019,8000135651,1523.28,Revenue,Redacted Personal Information,Direct Payments
Peterborough City Council,Adults,Independent Sector Placements,Social Services,13/02/2019,8000135652,1754.48,Revenue,Redacted Personal Information,Direct Payments
Peterborough City Council,Adults,Independent Sector Placements,Social Services,13/02/2019,8000135653,510.76,Revenue,Redacted Personal Information,Direct Payments
Peterborough City Council,Adults,Independent Sector Placements,Social Services,13/02/2019,8000135654,1655.84,Revenue,Redacted Personal Information,Direct Payments
Peterborough City Council,Adults,Independent Sector Placements,Social Services,13/02/2019,8000135655,2335.12,Revenue,Redacted Personal Information,Direct Payments
Peterborough City Council,Adults,Independent Sector Placements,Social Services,13/02/2019,8000135656,571.28,Revenue,Redacted Personal Information,Direct Payments
Peterborough City Council,Adults,Independent Sector Placements,Social Services,13/02/2019,8000135657,606.48,Revenue,Redacted Personal Information,Direct Payments
Peterborough City Council,Adults,Independent Sector Placements,Social Services,13/02/2019,8000135659,1494.44,Revenue,Redacted Personal Information,Direct Payments
Peterborough City Council,Adults,Independent Sector Placements,Social Services,13/02/2019,8000135660,1110.48,Revenue,Redacted Personal Information,Direct Payments
Peterborough City Council,Adults,Independent Sector Placements,Social Services,13/02/2019,8000135661,1395.08,Revenue,Redacted Personal Information,Direct Payments
Peterborough City Council,Adults,Independent Sector Placements,Social Services,13/02/2019,8000135662,2118.36,Revenue,Redacted Personal Information,Direct Payments
Peterborough City Council,Adults,Independent Sector Placements,Social Services,13/02/2019,8000135663,541.24,Revenue,Redacted Personal Information,Direct Payments
Peterborough City Council,Adults,Independent Sector Placements,Social Services,13/02/2019,8000135665,810.08,Revenue,Redacted Personal Information,Direct Payments
Peterborough City Council,Adults,Independent Sector Placements,Social Services,13/02/2019,8000135667,538.48,Revenue,Redacted Personal Information,Direct Payments
Peterborough City Council,Adults,Independent Sector Placements,Social Services,13/02/2019,8000135668,1073.00,Revenue,Redacted Personal Information,Direct Payments
Peterborough City Council,Adults,Independent Sector Placements,Social Services,13/02/2019,8000135669,690.48,Revenue,Redacted Personal Information,Direct Payments
Peterborough City Council,Adults,Independent Sector Placements,Social Services,13/02/2019,8000135671,718.48,Revenue,Redacted Personal Information,Direct Payments
Peterborough City Council,Adults,Independent Sector Placements,Social Services,13/02/2019,8000135673,1223.48,Revenue,Redacted Personal Information,Direct Payments
Peterborough City Council,Adults,Independent Sector Placements,Social Services,13/02/2019,8000135674,639.56,Revenue,Redacted Personal Information,Direct Payments
Peterborough City Council,Adults,Independent Sector Placements,Social Services,13/02/2019,8000135676,518.28,Revenue,Redacted Personal Information,Direct Payments
Peterborough City Council,Adults,Independent Sector Placements,Social Services,13/02/2019,8000135677,504.00,Revenue,Redacted Personal Information,Direct Payments
Peterborough City Council,Adults,Independent Sector Placements,Social Services,13/02/2019,8000135679,939.72,Revenue,Redacted Personal Information,Direct Payments
Peterborough City Council,Adults,Independent Sector Placements,Social Services,13/02/2019,8000135682,946.48,Revenue,Redacted Personal Information,Direct Payments
Peterborough City Council,Adults,Independent Sector Placements,Social Services,13/02/2019,8000135683,1578.48,Revenue,Redacted Personal Information,Direct Payments
Peterborough City Council,Adults,Independent Sector Placements,Social Services,13/02/2019,8000135685,858.48,Revenue,Redacted Personal Information,Direct Payments
Peterborough City Council,Adults,Independent Sector Placements,Social Services,13/02/2019,8000135686,738.48,Revenue,Redacted Personal Information,Direct Payments
Peterborough City Council,Adults,Independent Sector Placements,Social Services,13/02/2019,8000135687,630.48,Revenue,Redacted Personal Information,Direct Payments
Peterborough City Council,Adults,Independent Sector Placements,Social Services,13/02/2019,8000135688,900.48,Revenue,Redacted Personal Information,Direct Payments
Peterborough City Council,Adults,Independent Sector Placements,Social Services,13/02/2019,8000135689,546.48,Revenue,Redacted Personal Information,Direct Payments
Peterborough City Council,Adults,Independent Sector Placements,Social Services,13/02/2019,8000135690,2299.28,Revenue,Redacted Personal Information,Direct Payments
Peterborough City Council,Adults,Independent Sector Placements,Social Services,13/02/2019,8000135693,1094.64,Revenue,Redacted Personal Information,Direct Payments
Peterborough City Council,Adults,Independent Sector Placements,Social Services,13/02/2019,8000135695,1822.16,Revenue,Redacted Personal Information,Direct Payments
Peterborough City Council,Adults,Independent Sector Placements,Social Services,13/02/2019,8000135698,1475.28,Revenue,Redacted Personal Information,Direct Payments
Peterborough City Council,Adults,Independent Sector Placements,Social Services,13/02/2019,8000135700,546.48,Revenue,Redacted Personal Information,Direct Payments
Peterborough City Council,Adults,Independent Sector Placements,Social Services,13/02/2019,8000135701,634.48,Revenue,Redacted Personal Information,Direct Payments
Peterborough City Council,Adults,Independent Sector Placements,Social Services,13/02/2019,8000135704,617.20,Revenue,Redacted Personal Information,Direct Payments
Peterborough City Council,Adults,Independent Sector Placements,Social Services,13/02/2019,8000135707,2010.24,Revenue,Redacted Personal Information,Direct Payments
Peterborough City Council,Adults,Independent Sector Placements,Social Services,13/02/2019,8000135710,738.48,Revenue,Redacted Personal Information,Direct Payments
Peterborough City Council,Adults,Independent Sector Placements,Social Services,13/02/2019,8000135711,714.48,Revenue,Redacted Personal Information,Direct Payments
Peterborough City Council,Adults,Independent Sector Placements,Social Services,13/02/2019,8000135712,875.76,Revenue,Redacted Personal Information,Direct Payments
Peterborough City Council,Adults,Independent Sector Placements,Social Services,13/02/2019,8000135713,1403.76,Revenue,Redacted Personal Information,Direct Payments
Peterborough City Council,Adults,Independent Sector Placements,Social Services,13/02/2019,8000135714,1008.00,Revenue,Redacted Personal Information,Direct Payments
Peterborough City Council,Adults,Independent Sector Placements,Social Services,13/02/2019,8000135715,978.48,Revenue,Redacted Personal Information,Direct Payments
Peterborough City Council,Adults,Independent Sector Placements,Social Services,13/02/2019,8000135717,1547.56,Revenue,Redacted Personal Information,Direct Payments
Peterborough City Council,Adults,Independent Sector Placements,Social Services,13/02/2019,8000135718,7317.68,Revenue,Redacted Personal Information,Direct Payments
Peterborough City Council,Adults,Independent Sector Placements,Social Services,13/02/2019,8000135719,877.24,Revenue,Redacted Personal Information,Direct Payments
Peterborough City Council,Adults,Independent Sector Placements,Social Services,13/02/2019,8000135720,1407.52,Revenue,Redacted Personal Information,Direct Payments
Peterborough City Council,Adults,Independent Sector Placements,Social Services,13/02/2019,8000135723,763.56,Revenue,Redacted Personal Information,Direct Payments
Peterborough City Council,Adults,Independent Sector Placements,Social Services,13/02/2019,8000135724,978.40,Revenue,Redacted Personal Information,Direct Payments
